Service Delivery Area(T),Service Delivery Team(T),ExpenditureGroup(T),Account(T),Supplier Name(T),Trans Date,Amount
Adult Social Care,ASC Prevention & Enablement,Employees,Employee Costs Recharged,SHROPSHIRE COMMUNITY HEALTH NHS TRUST,24/08/2023,"39,324.00"
Adult Social Care,ASC Prevention & Enablement,Supplies & Services,Equipment - Purchase,Lawley Pharmacy,01/08/2023,140.00
Adult Social Care,ASC Prevention & Enablement,Transport-Related Expenditure,Taxi Costs,Cartello Ambulance,31/08/2023,187.25
Adult Social Care,ASC Prevention & Enablement,Transport-Related Expenditure,Taxi Costs,Cartello Ambulance,31/08/2023,160.50
Adult Social Care,"Assurance, Transformation & Financial Management",Supplies & Services,Other Expenses,Easy Read UK,15/08/2023,"1,380.00"
Adult Social Care,"Assurance, Transformation & Financial Management",Supplies & Services,Other Expenses,VISS Sign Language Interpreting Service,08/08/2023,230.00
Adult Social Care,"Assurance, Transformation & Financial Management",Supplies & Services,Other Expenses,B Bank Client Account,18/08/2023,371.00
Adult Social Care,"Assurance, Transformation & Financial Management",Supplies & Services,Comp Software (Purch / Hire),Signis Limited,29/08/2023,"2,000.00"
Adult Social Care,"Commissioning, Procurement & Brokerage",Supplies & Services,Printing - Other,VISS Sign Language Interpreting Service,09/08/2023,115.00
Adult Social Care,"Commissioning, Procurement & Brokerage",Supplies & Services,Other Grants (Expenses),COVERAGE CARE SERVICES LTD,01/08/2023,"108,990.00"
Adult Social Care,"Commissioning, Procurement & Brokerage",Supplies & Services,Other Grants (Expenses),COVERAGE CARE SERVICES LTD,17/08/2023,"21,798.00"
Adult Social Care,"Commissioning, Procurement & Brokerage",Third Party Payments,Interpreters Fees,EXPRESS INTERPRETING & TRANSLATION,09/08/2023,"5,630.66"
Adult Social Care,"Commissioning, Procurement & Brokerage",Supplies & Services,Other Grants (Expenses),SHROPSHIRE PARTNERS IN CARE LTD,11/08/2023,"2,500.00"
Adult Social Care,Community Social Work (Principal Social Worker),Transport-Related Expenditure,Taxi Costs,Ezy Car Ltd,29/08/2023,628.30
Adult Social Care,Community Social Work (Principal Social Worker),Supplies & Services,Furniture - Purchase,Tough Furniture Ltd,18/08/2023,"1,484.00"
Adult Social Care,Community Social Work (Principal Social Worker),Supplies & Services,Furniture - Purchase,Tough Furniture Ltd,18/08/2023,"1,298.00"
Adult Social Care,Community Social Work (Principal Social Worker),Supplies & Services,Furniture - Purchase,Tough Furniture Ltd,18/08/2023,825.00
Adult Social Care,Community Social Work (Principal Social Worker),Supplies & Services,Furniture - Purchase,Tough Furniture Ltd,18/08/2023,316.00
Adult Social Care,Community Social Work (Principal Social Worker),Supplies & Services,Furniture - Purchase,Tough Furniture Ltd,18/08/2023,554.00
Adult Social Care,Community Social Work (Principal Social Worker),Supplies & Services,Furniture - Purchase,Tough Furniture Ltd,18/08/2023,772.00
Adult Social Care,Community Social Work (Principal Social Worker),Supplies & Services,Furniture - Purchase,Tough Furniture Ltd,18/08/2023,553.00
Adult Social Care,Community Social Work (Principal Social Worker),Supplies & Services,Furniture - Purchase,Tough Furniture Ltd,18/08/2023,559.00
Adult Social Care,Community Social Work (Principal Social Worker),Supplies & Services,Furniture - Purchase,Tough Furniture Ltd,18/08/2023,879.00
Adult Social Care,Community Social Work (Principal Social Worker),Premises-Related Expenditure,General Rents,Inclusion Housing CIC Ltd,29/08/2023,526.74
Adult Social Care,My Options,Employees,Training Expenses,SHROPSHIRE PARTNERS IN CARE LTD,02/08/2023,117.00
Adult Social Care,My Options,Premises-Related Expenditure,Clean Mats & Toilet Requisites,CARESHOP,21/08/2023,236.45
Adult Social Care,My Options,Premises-Related Expenditure,Hire Of Rooms,Dawley Baptist Church,04/08/2023,210.00
Adult Social Care,My Options,Supplies & Services,Laundry & Towel Hire,PHS GROUP,31/08/2023,191.10
Adult Social Care,My Options,Employees,Agency Supply Costs,Nurse Plus and Carer Plus Limited,04/08/2023,137.70
Adult Social Care,My Options,Employees,Agency Supply Costs,Nurse Plus and Carer Plus Limited,02/08/2023,240.98
Adult Social Care,My Options,Employees,Agency Supply Costs,Nurse Plus and Carer Plus Limited,02/08/2023,994.69
Adult Social Care,My Options,Employees,Agency Supply Costs,Nurse Plus and Carer Plus Limited,10/08/2023,550.80
Adult Social Care,My Options,Employees,Agency Supply Costs,Nurse Plus and Carer Plus Limited,31/08/2023,714.30
Adult Social Care,My Options,Employees,Agency Supply Costs,Nurse Plus and Carer Plus Limited,31/08/2023,770.78
Adult Social Care,My Options,Employees,Agency Supply Costs,Safehands Recruitment,04/08/2023,"8,524.88"
Adult Social Care,My Options,Employees,Agency Supply Costs,Safehands Recruitment,02/08/2023,"7,463.62"
Adult Social Care,My Options,Employees,Agency Supply Costs,Safehands Recruitment,02/08/2023,"6,418.05"
Adult Social Care,My Options,Employees,Agency Supply Costs,Safehands Recruitment,10/08/2023,"6,313.88"
Adult Social Care,My Options,Employees,Agency Supply Costs,Safehands Recruitment,10/08/2023,"10,762.28"
Adult Social Care,My Options,Employees,Agency Supply Costs,Safehands Recruitment,22/08/2023,"7,006.45"
Adult Social Care,My Options,Employees,Agency Supply Costs,Safehands Recruitment,31/08/2023,"5,786.00"
Adult Social Care,My Options,Employees,Agency Supply Costs,Safehands Recruitment,31/08/2023,"6,571.95"
Adult Social Care,My Options,Premises-Related Expenditure,Clean Mats & Toilet Requisites,BERWICK CARE EQUIPMENT LTD,10/08/2023,260.25
Adult Social Care,My Options,Premises-Related Expenditure,Clean Mats & Toilet Requisites,BERWICK CARE EQUIPMENT LTD,10/08/2023,142.60
Adult Social Care,My Options,Premises-Related Expenditure,Clean Mats & Toilet Requisites,BERWICK CARE EQUIPMENT LTD,22/08/2023,112.00
Adult Social Care,My Options,Premises-Related Expenditure,Clean Mats & Toilet Requisites,BERWICK CARE EQUIPMENT LTD,31/08/2023,434.17
Adult Social Care,My Options,Supplies & Services,Equipment - Purchase,ASLES LTD,14/08/2023,200.00
Adult Social Care,My Options,Supplies & Services,Equipment - Hire,C WASTE DISPOSAL SERV LTD,15/08/2023,"1,163.25"
Adult Social Care,My Options,Supplies & Services,Equipment - Hire,C WASTE DISPOSAL SERV LTD,31/08/2023,215.25
Adult Social Care,My Options,Supplies & Services,Equipment - Hire,C WASTE DISPOSAL SERV LTD,31/08/2023,300.00
Adult Social Care,My Options,Supplies & Services,Equipment - Purchase,TYNETEC Ltd,21/08/2023,216.44
Adult Social Care,My Options,Employees,Agency Supply Costs,A B Limited,04/08/2023,323.33
Adult Social Care,My Options,Employees,Agency Supply Costs,A B Limited,04/08/2023,243.57
Adult Social Care,My Options,Employees,Agency Supply Costs,A B Limited,04/08/2023,331.23
Adult Social Care,My Options,Employees,Agency Supply Costs,A B Limited,04/08/2023,167.65
Adult Social Care,My Options,Employees,Agency Supply Costs,A B Limited,04/08/2023,323.33
Adult Social Care,My Options,Employees,Agency Supply Costs,A B Limited,04/08/2023,331.23
Adult Social Care,My Options,Employees,Agency Supply Costs,A B Limited,04/08/2023,311.35
Adult Social Care,My Options,Employees,Agency Supply Costs,A B Limited,04/08/2023,227.53
Adult Social Care,My Options,Employees,Agency Supply Costs,A B Limited,04/08/2023,311.35
Adult Social Care,My Options,Employees,Agency Supply Costs,A B Limited,04/08/2023,167.65
Adult Social Care,My Options,Employees,Agency Supply Costs,A B Limited,04/08/2023,167.65
Adult Social Care,My Options,Employees,Agency Supply Costs,A B Limited,04/08/2023,331.23
Adult Social Care,My Options,Employees,Agency Supply Costs,A B Limited,04/08/2023,323.33
Adult Social Care,My Options,Employees,Agency Supply Costs,A B Limited,04/08/2023,239.50
Adult Social Care,My Options,Employees,Agency Supply Costs,A B Limited,04/08/2023,239.50
Adult Social Care,My Options,Employees,Agency Supply Costs,A B Limited,04/08/2023,323.33
Adult Social Care,My Options,Employees,Agency Supply Costs,A B Limited,04/08/2023,331.23
Adult Social Care,My Options,Employees,Agency Supply Costs,A B Limited,04/08/2023,311.35
Adult Social Care,My Options,Employees,Agency Supply Costs,A B Limited,04/08/2023,311.35
Adult Social Care,My Options,Employees,Agency Supply Costs,A B Limited,04/08/2023,323.33
Adult Social Care,My Options,Employees,Agency Supply Costs,A B Limited,04/08/2023,311.35
Adult Social Care,My Options,Employees,Agency Supply Costs,A B Limited,04/08/2023,167.65
Adult Social Care,My Options,Employees,Agency Supply Costs,A B Limited,04/08/2023,239.50
Adult Social Care,My Options,Employees,Agency Supply Costs,A B Limited,04/08/2023,323.33
Adult Social Care,My Options,Employees,Agency Supply Costs,A B Limited,04/08/2023,171.72
Adult Social Care,My Options,Employees,Agency Supply Costs,A B Limited,02/08/2023,171.72
Adult Social Care,My Options,Employees,Agency Supply Costs,A B Limited,02/08/2023,171.72
Adult Social Care,My Options,Employees,Agency Supply Costs,A B Limited,02/08/2023,239.50
Adult Social Care,My Options,Employees,Agency Supply Costs,A B Limited,02/08/2023,167.65
Adult Social Care,My Options,Employees,Agency Supply Costs,A B Limited,02/08/2023,171.72
Adult Social Care,My Options,Employees,Agency Supply Costs,A B Limited,02/08/2023,167.65
Adult Social Care,My Options,Employees,Agency Supply Costs,A B Limited,02/08/2023,331.23
Adult Social Care,My Options,Employees,Agency Supply Costs,A B Limited,02/08/2023,167.65
Adult Social Care,My Options,Employees,Agency Supply Costs,A B Limited,02/08/2023,311.35
Adult Social Care,My Options,Employees,Agency Supply Costs,A B Limited,02/08/2023,171.72
Adult Social Care,My Options,Employees,Agency Supply Costs,A B Limited,02/08/2023,323.33
Adult Social Care,My Options,Employees,Agency Supply Costs,A B Limited,02/08/2023,239.50
Adult Social Care,My Options,Employees,Agency Supply Costs,A B Limited,02/08/2023,323.33
Adult Social Care,My Options,Employees,Agency Supply Costs,A B Limited,02/08/2023,311.35
Adult Social Care,My Options,Employees,Agency Supply Costs,A B Limited,02/08/2023,311.35
Adult Social Care,My Options,Employees,Agency Supply Costs,A B Limited,02/08/2023,171.72
Adult Social Care,My Options,Employees,Agency Supply Costs,A B Limited,02/08/2023,243.57
Adult Social Care,My Options,Employees,Agency Supply Costs,A B Limited,02/08/2023,323.33
Adult Social Care,My Options,Employees,Agency Supply Costs,A B Limited,10/08/2023,319.25
Adult Social Care,My Options,Employees,Agency Supply Costs,A B Limited,10/08/2023,323.33
Adult Social Care,My Options,Employees,Agency Supply Costs,A B Limited,10/08/2023,239.50
Adult Social Care,My Options,Employees,Agency Supply Costs,A B Limited,10/08/2023,331.23
Adult Social Care,My Options,Employees,Agency Supply Costs,Iconic Care Limited,10/08/2023,"2,772.00"
Adult Social Care,My Options,Employees,Agency Supply Costs,Nurse Plus and Carer Plus Limited,04/08/2023,149.63
Adult Social Care,My Options,Employees,Agency Supply Costs,Nurse Plus and Carer Plus Limited,04/08/2023,561.89
Adult Social Care,My Options,Employees,Agency Supply Costs,Nurse Plus and Carer Plus Limited,04/08/2023,419.00
Adult Social Care,My Options,Employees,Agency Supply Costs,Nurse Plus and Carer Plus Limited,02/08/2023,139.65
Adult Social Care,My Options,Employees,Agency Supply Costs,Nurse Plus and Carer Plus Limited,02/08/2023,579.65
Adult Social Care,My Options,Employees,Agency Supply Costs,Nurse Plus and Carer Plus Limited,02/08/2023,493.79
Adult Social Care,My Options,Employees,Agency Supply Costs,Nurse Plus and Carer Plus Limited,02/08/2023,"2,257.66"
Adult Social Care,My Options,Employees,Agency Supply Costs,Nurse Plus and Carer Plus Limited,02/08/2023,"1,147.30"
Adult Social Care,My Options,Employees,Agency Supply Costs,Nurse Plus and Carer Plus Limited,22/08/2023,202.59
Adult Social Care,My Options,Employees,Agency Supply Costs,Safehands Recruitment,04/08/2023,"1,087.13"
Adult Social Care,My Options,Employees,Agency Supply Costs,Safehands Recruitment,04/08/2023,130.90
Adult Social Care,My Options,Employees,Agency Supply Costs,Safehands Recruitment,04/08/2023,497.20
Adult Social Care,My Options,Employees,Agency Supply Costs,Safehands Recruitment,04/08/2023,345.95
Adult Social Care,My Options,Employees,Agency Supply Costs,Safehands Recruitment,04/08/2023,"1,005.45"
Adult Social Care,My Options,Employees,Agency Supply Costs,Safehands Recruitment,02/08/2023,621.62
Adult Social Care,My Options,Employees,Agency Supply Costs,Safehands Recruitment,02/08/2023,"2,148.85"
Adult Social Care,My Options,Employees,Agency Supply Costs,Safehands Recruitment,02/08/2023,848.10
Adult Social Care,My Options,Employees,Agency Supply Costs,Safehands Recruitment,02/08/2023,962.50
Adult Social Care,My Options,Employees,Agency Supply Costs,Safehands Recruitment,02/08/2023,856.48
Adult Social Care,My Options,Employees,Agency Supply Costs,Safehands Recruitment,02/08/2023,"2,267.72"
Adult Social Care,My Options,Employees,Agency Supply Costs,Safehands Recruitment,02/08/2023,261.25
Adult Social Care,My Options,Employees,Agency Supply Costs,Safehands Recruitment,02/08/2023,261.80
Adult Social Care,My Options,Employees,Agency Supply Costs,Safehands Recruitment,02/08/2023,"1,024.15"
Adult Social Care,My Options,Employees,Agency Supply Costs,Safehands Recruitment,02/08/2023,130.90
Adult Social Care,My Options,Employees,Agency Supply Costs,Safehands Recruitment,02/08/2023,"1,036.20"
Adult Social Care,My Options,Employees,Agency Supply Costs,Safehands Recruitment,02/08/2023,570.55
Adult Social Care,My Options,Employees,Agency Supply Costs,Safehands Recruitment,10/08/2023,"2,070.29"
Adult Social Care,My Options,Employees,Agency Supply Costs,Safehands Recruitment,10/08/2023,104.50
Adult Social Care,My Options,Employees,Agency Supply Costs,Safehands Recruitment,22/08/2023,632.81
Adult Social Care,My Options,Employees,Agency Supply Costs,Safehands Recruitment,22/08/2023,146.30
Adult Social Care,My Options,Employees,Agency Supply Costs,Safehands Recruitment,31/08/2023,156.75
Adult Social Care,My Options,Employees,Agency Supply Costs,Safehands Recruitment,31/08/2023,130.90
Adult Social Care,My Options,Employees,Agency Supply Costs,Safehands Recruitment,31/08/2023,121.55
Adult Social Care,My Options,Employees,Agency Supply Costs,Safehands Recruitment,31/08/2023,146.30
Adult Social Care,My Options,Employees,Agency Supply Costs,Safehands Recruitment,31/08/2023,146.30
Adult Social Care,My Options,Employees,Agency Supply Costs,Safehands Recruitment,31/08/2023,510.40
Adult Social Care,My Options,Employees,Agency Supply Costs,Safehands Recruitment,31/08/2023,146.30
Adult Social Care,My Options,Employees,Agency Supply Costs,Safehands Recruitment,31/08/2023,545.17
Adult Social Care,My Options,Employees,Agency Supply Costs,Safehands Recruitment,31/08/2023,261.80
Adult Social Care,My Options,Employees,Agency Supply Costs,Safehands Recruitment,31/08/2023,"1,166.47"
Adult Social Care,My Options,Supplies & Services,Computer Software (Maint),Access UK Ltd,10/08/2023,644.40
Adult Social Care,My Options,Supplies & Services,Computer Software (Maint),Access UK Ltd,10/08/2023,644.40
Adult Social Care,My Options,Supplies & Services,Mobile Phones,EE LTD EQUIPMENT  ,08/08/2023,408.00
Adult Social Care,My Options,Supplies & Services,Mobile Phones,EE LTD EQUIPMENT  ,08/08/2023,408.00
Adult Social Care,My Options,Supplies & Services,Mobile Phones,EE LTD EQUIPMENT  ,08/08/2023,-150.00
Adult Social Care,My Options,Supplies & Services,Text Messages,PROCESS FLOWS UK LTD,11/08/2023,140.00
Adult Social Care,My Options,Supplies & Services,Respite Care,REDACTED PERSONAL INFORMATION,22/08/2023,"1,030.40"
Adult Social Care,My Options,Supplies & Services,Respite Care,REDACTED PERSONAL INFORMATION,22/08/2023,856.80
Adult Social Care,My Options,Supplies & Services,Respite Care,REDACTED PERSONAL INFORMATION,24/08/2023,404.18
Adult Social Care,My Options,Employees,Agency Supply Costs,Nurse Plus and Carer Plus Limited,04/08/2023,"1,362.68"
Adult Social Care,My Options,Employees,Agency Supply Costs,Nurse Plus and Carer Plus Limited,02/08/2023,"1,058.40"
Adult Social Care,My Options,Employees,Agency Supply Costs,Nurse Plus and Carer Plus Limited,02/08/2023,"2,540.48"
Adult Social Care,My Options,Employees,Agency Supply Costs,Nurse Plus and Carer Plus Limited,10/08/2023,279.30
Adult Social Care,My Options,Employees,Agency Supply Costs,Safehands Recruitment,04/08/2023,"9,213.10"
Adult Social Care,My Options,Employees,Agency Supply Costs,Safehands Recruitment,04/08/2023,130.90
Adult Social Care,My Options,Employees,Agency Supply Costs,Safehands Recruitment,02/08/2023,"1,159.20"
Adult Social Care,My Options,Employees,Agency Supply Costs,Safehands Recruitment,02/08/2023,"7,193.20"
Adult Social Care,My Options,Employees,Agency Supply Costs,Safehands Recruitment,02/08/2023,"5,562.58"
Adult Social Care,My Options,Employees,Agency Supply Costs,Safehands Recruitment,02/08/2023,460.90
Adult Social Care,My Options,Employees,Agency Supply Costs,Safehands Recruitment,10/08/2023,"8,791.20"
Adult Social Care,My Options,Employees,Agency Supply Costs,Safehands Recruitment,10/08/2023,570.80
Adult Social Care,My Options,Employees,Agency Supply Costs,Safehands Recruitment,22/08/2023,"8,851.46"
Adult Social Care,My Options,Employees,Agency Supply Costs,Safehands Recruitment,22/08/2023,644.50
Adult Social Care,My Options,Employees,Agency Supply Costs,Safehands Recruitment,31/08/2023,"13,925.45"
Adult Social Care,My Options,Employees,Agency Supply Costs,Safehands Recruitment,31/08/2023,374.00
Adult Social Care,My Options,Employees,Agency Supply Costs,Safehands Recruitment,31/08/2023,"13,398.05"
Adult Social Care,My Options,Employees,Course Fees,Dulson Training Ltd,14/08/2023,570.80
Adult Social Care,My Options,Supplies & Services,Laundry & Towel Hire,PHS GROUP,08/08/2023,149.16
Adult Social Care,My Options,Supplies & Services,Equipment - Purchase,TELFORD TIMBER SUPPLIES,14/08/2023,280.00
Adult Social Care,Prevention & Independence - Older Adults & Disability,Third Party Payments,Interpreters Fees,VISS Sign Language Interpreting Service,22/08/2023,115.00
Adult Social Care,Prevention & Independence - Older Adults & Disability,Supplies & Services,Aids & Appliances,Alert-it Care Alarms,24/08/2023,255.78
Adult Social Care,Prevention & Independence - Older Adults & Disability,Supplies & Services,Aids & Appliances,Canary Care Global Limited,29/08/2023,207.00
Adult Social Care,Prevention & Independence - Older Adults & Disability,Supplies & Services,Aids & Appliances,Canary Care Global Limited,29/08/2023,319.00
Adult Social Care,Prevention & Independence - Older Adults & Disability,Supplies & Services,Aids & Appliances,Medequip,14/08/2023,103.20
Adult Social Care,Prevention & Independence - Older Adults & Disability,Supplies & Services,Aids & Appliances,Ravencourt Ltd,25/08/2023,"2,838.50"
Adult Social Care,Prevention & Independence - Older Adults & Disability,Supplies & Services,Aids & Appliances,IC,02/08/2023,110.50
Adult Social Care,Prevention & Independence - Older Adults & Disability,Supplies & Services,Aids & Appliances,BERWICK CARE EQUIPMENT LTD,10/08/2023,"1,324.00"
Adult Social Care,Prevention & Independence - Older Adults & Disability,Supplies & Services,Aids & Appliances,BERWICK CARE EQUIPMENT LTD,10/08/2023,662.00
Adult Social Care,Prevention & Independence - Older Adults & Disability,Supplies & Services,Aids & Appliances,BERWICK CARE EQUIPMENT LTD,10/08/2023,662.00
Adult Social Care,Prevention & Independence - Older Adults & Disability,Supplies & Services,Aids & Appliances,BERWICK CARE EQUIPMENT LTD,08/08/2023,662.00
Adult Social Care,Prevention & Independence - Older Adults & Disability,Supplies & Services,Aids & Appliances,BERWICK CARE EQUIPMENT LTD,17/08/2023,662.00
Adult Social Care,Prevention & Independence - Older Adults & Disability,Supplies & Services,Aids & Appliances,BERWICK CARE EQUIPMENT LTD,17/08/2023,662.00
Adult Social Care,Prevention & Independence - Older Adults & Disability,Supplies & Services,Aids & Appliances,CEFNDY ENTERPRISES HEALTHCARE,22/08/2023,131.58
Adult Social Care,Prevention & Independence - Older Adults & Disability,Supplies & Services,Aids & Appliances,CHILTERN INVADEX LTD,22/08/2023,"2,759.00"
Adult Social Care,Prevention & Independence - Older Adults & Disability,Supplies & Services,Aids & Appliances,Nottingham Rehab Ltd,25/08/2023,"1,012.40"
Adult Social Care,Prevention & Independence - Older Adults & Disability,Supplies & Services,Aids & Appliances,Nottingham Rehab Ltd,25/08/2023,"2,790.00"
Adult Social Care,Prevention & Independence - Older Adults & Disability,Supplies & Services,Aids & Appliances,OSPREY HEALTHCARE LTD,21/08/2023,225.74
Adult Social Care,Prevention & Independence - Older Adults & Disability,Supplies & Services,Aids & Appliances,OSPREY HEALTHCARE LTD,22/08/2023,322.50
Adult Social Care,Prevention & Independence - Older Adults & Disability,Supplies & Services,Aids & Appliances,OSPREY HEALTHCARE LTD,22/08/2023,225.74
Adult Social Care,Prevention & Independence - Older Adults & Disability,Supplies & Services,Aids & Appliances,OSPREY HEALTHCARE LTD,22/08/2023,794.00
Adult Social Care,Prevention & Independence - Older Adults & Disability,Supplies & Services,Aids & Appliances,PRISM MEDICAL WESTHOLME DIVISION,11/08/2023,121.44
Adult Social Care,Prevention & Independence - Older Adults & Disability,Supplies & Services,Aids & Appliances,PRISM MEDICAL WESTHOLME DIVISION,21/08/2023,137.36
Adult Social Care,Prevention & Independence - Older Adults & Disability,Supplies & Services,Aids & Appliances,PRISM MEDICAL WESTHOLME DIVISION,17/08/2023,486.04
Adult Social Care,Prevention & Independence - Older Adults & Disability,Supplies & Services,Equipment - Repair,STANNAH LIFT SERVICES LTD,14/08/2023,142.12
Adult Social Care,Prevention & Independence - Older Adults & Disability,Supplies & Services,Aids & Appliances,SHROPSHIRE COMMUNITY HEALTH NHS TRUST,21/08/2023,"12,603.32"
Adult Social Care,Prevention & Independence - Older Adults & Disability,Supplies & Services,Other Grants (Expenses),Doro Care Uk,18/08/2023,"5,217.17"
Adult Social Care,Prevention & Independence - Older Adults & Disability,Supplies & Services,Other Grants (Expenses),Doro Care Uk,18/08/2023,"5,217.17"
Adult Social Care,Prevention & Independence - Older Adults & Disability,Supplies & Services,Other Grants (Expenses),Doro Care Uk,18/08/2023,"5,217.17"
Adult Social Care,Prevention & Independence - Older Adults & Disability,Employees,Staff Training,SHROPSHIRE COUNCIL,22/08/2023,219.00
Adult Social Care,Prevention & Independence - Older Adults & Disability,Employees,Staff Training,SHROPSHIRE COUNCIL,22/08/2023,404.00
Children�s Safeguarding & Family Support,Child Protection & Family Support,Supplies & Services,Mobile Phones,EE LTD EQUIPMENT  ,08/08/2023,136.00
Children�s Safeguarding & Family Support,Child Protection & Family Support,Premises-Related Expenditure,Hire Of Rooms,MEETING POINT TRUST LTD,16/08/2023,115.00
Children�s Safeguarding & Family Support,Child Protection & Family Support,Third Party Payments,Social Care External Contact,Neighbourly Helpers Ltd,16/08/2023,418.12
Children�s Safeguarding & Family Support,Child Protection & Family Support,Employees,Course Fees,Institute of Family Therapy,29/08/2023,"3,136.00"
Children�s Safeguarding & Family Support,Child Protection & Family Support,Supplies & Services,Other Grants (Expenses),Midlands Partnership NHS Foundation Trust,29/08/2023,"40,210.85"
Children�s Safeguarding & Family Support,Family Connect & Childrens Centres,Supplies & Services,Comp Hardware (Purch / Hire),CCS MEDIA LIMITED,03/08/2023,276.00
Children�s Safeguarding & Family Support,Family Connect & Childrens Centres,Premises-Related Expenditure,R&M -Building Other,GRANVILLE CONSTRUCTION & MAINTENANCE LTD,14/08/2023,212.35
Children�s Safeguarding & Family Support,Family Connect & Childrens Centres,Premises-Related Expenditure,R&M -Building Other,GRANVILLE CONSTRUCTION & MAINTENANCE LTD,14/08/2023,325.93
Children�s Safeguarding & Family Support,Family Connect & Childrens Centres,Premises-Related Expenditure,R&M -Building Other,GRANVILLE CONSTRUCTION & MAINTENANCE LTD,14/08/2023,760.00
Children�s Safeguarding & Family Support,Family Connect & Childrens Centres,Premises-Related Expenditure,R&M -Building Other,GRANVILLE CONSTRUCTION & MAINTENANCE LTD,25/08/2023,124.98
Children�s Safeguarding & Family Support,Family Connect & Childrens Centres,Premises-Related Expenditure,R&M -Building Other,Security Wise Ltd,14/08/2023,139.00
Children�s Safeguarding & Family Support,Family Connect & Childrens Centres,Supplies & Services,Equipment - Purchase,Neurobox Limited,03/08/2023,405.00
Children�s Safeguarding & Family Support,Family Connect & Childrens Centres,Supplies & Services,Equipment - Purchase,Neurobox Limited,03/08/2023,405.00
Children�s Safeguarding & Family Support,Family Connect & Childrens Centres,Supplies & Services,Equipment - Purchase,Neurobox Limited,03/08/2023,894.00
Children�s Safeguarding & Family Support,Family Connect & Childrens Centres,Supplies & Services,Equipment - Purchase,Neurobox Limited,03/08/2023,525.00
Children�s Safeguarding & Family Support,Family Connect & Childrens Centres,Supplies & Services,Equipment - Purchase,Neurobox Limited,03/08/2023,360.00
Children�s Safeguarding & Family Support,Family Connect & Childrens Centres,Premises-Related Expenditure,Hire Of Rooms,HOLLINSWOOD & RANDLAY PARISH COUNCIL,09/08/2023,117.50
Children�s Safeguarding & Family Support,Family Connect & Childrens Centres,Supplies & Services,Other Expenses,BACK CARE SOLUTIONS LTD,17/08/2023,447.00
Children�s Safeguarding & Family Support,Family Connect & Childrens Centres,Supplies & Services,Administrative/Office Supplies,Kings of the Road,01/08/2023,110.00
Children�s Safeguarding & Family Support,Family Connect & Childrens Centres,Supplies & Services,Administrative/Office Supplies,Kings of the Road,01/08/2023,125.00
Children�s Safeguarding & Family Support,Family Connect & Childrens Centres,Supplies & Services,Other Services,Families in Telford ,21/08/2023,"4,500.00"
Children�s Safeguarding & Family Support,Family Connect & Childrens Centres,Supplies & Services,Stationery,SIGNS EXPRESS,29/08/2023,380.00
Children�s Safeguarding & Family Support,Family Connect & Childrens Centres,Supplies & Services,Other Services,The Breastfeeding Network,18/08/2023,"43,750.00"
Children�s Safeguarding & Family Support,Family Connect & Childrens Centres,Supplies & Services,Other Services,The Sea Change Trust,18/08/2023,"28,750.00"
Children�s Safeguarding & Family Support,"Family Placements, Children in Care, Leaving Care & Emergency Duty Team",Supplies & Services,Form F Assessments,ES-PBS Services,10/08/2023,500.00
Children�s Safeguarding & Family Support,"Family Placements, Children in Care, Leaving Care & Emergency Duty Team",Supplies & Services,Form F Assessments,ES-PBS Services,10/08/2023,"1,000.00"
Children�s Safeguarding & Family Support,"Family Placements, Children in Care, Leaving Care & Emergency Duty Team",Supplies & Services,Form F Assessments,ES-PBS Services,10/08/2023,"2,500.00"
Children�s Safeguarding & Family Support,"Family Placements, Children in Care, Leaving Care & Emergency Duty Team",Supplies & Services,Form F Assessments,ES-PBS Services,10/08/2023,500.00
Children�s Safeguarding & Family Support,"Family Placements, Children in Care, Leaving Care & Emergency Duty Team",Supplies & Services,Comp Software (Purch / Hire),PHOENIX SOFTWARE LTD,08/08/2023,555.99
Children�s Safeguarding & Family Support,"Family Placements, Children in Care, Leaving Care & Emergency Duty Team",Supplies & Services,Aids & Appliances,Care & Independence,14/08/2023,488.30
Children�s Safeguarding & Family Support,"Family Placements, Children in Care, Leaving Care & Emergency Duty Team",Supplies & Services,Aids & Appliances,Jiraffe,17/08/2023,"2,768.00"
Children�s Safeguarding & Family Support,"Family Placements, Children in Care, Leaving Care & Emergency Duty Team",Supplies & Services,Aids & Appliances,M A S Associates,17/08/2023,458.00
Children�s Safeguarding & Family Support,"Family Placements, Children in Care, Leaving Care & Emergency Duty Team",Supplies & Services,Aids & Appliances,MIDSHIRES MOBILITY GROUP,23/08/2023,114.50
Children�s Safeguarding & Family Support,"Family Placements, Children in Care, Leaving Care & Emergency Duty Team",Supplies & Services,Aids & Appliances,MIDSHIRES MOBILITY GROUP,03/08/2023,"3,225.00"
Children�s Safeguarding & Family Support,"Family Placements, Children in Care, Leaving Care & Emergency Duty Team",Supplies & Services,Aids & Appliances,Tough Furniture Ltd,10/08/2023,754.00
Children�s Safeguarding & Family Support,"Family Placements, Children in Care, Leaving Care & Emergency Duty Team",Supplies & Services,Aids & Appliances,Tough Furniture Ltd,10/08/2023,877.00
Children�s Safeguarding & Family Support,"Family Placements, Children in Care, Leaving Care & Emergency Duty Team",Employees,Staff Training,SHROPSHIRE PARTNERS IN CARE LTD,23/08/2023,800.00
Children�s Safeguarding & Family Support,"Family Placements, Children in Care, Leaving Care & Emergency Duty Team",Premises-Related Expenditure,Hire Of Rooms,TELFORD COLLEGE,10/08/2023,"13,333.40"
Children�s Safeguarding & Family Support,"Family Placements, Children in Care, Leaving Care & Emergency Duty Team",Employees,Staff Training,Under 17 Drivers Path Finder Ltd,29/08/2023,720.00
Children�s Safeguarding & Family Support,"Family Placements, Children in Care, Leaving Care & Emergency Duty Team",Supplies & Services,Section 17 Childrens Act,BROMFORD HOUSING ASSOCIATION LIMITED,23/08/2023,417.70
Children�s Safeguarding & Family Support,"Family Placements, Children in Care, Leaving Care & Emergency Duty Team",Third Party Payments,Social Care External Contact,Neighbourly Helpers Ltd,16/08/2023,"1,156.29"
Children�s Safeguarding & Family Support,"Family Placements, Children in Care, Leaving Care & Emergency Duty Team",Premises-Related Expenditure,Hire Of Rooms,MEETING POINT TRUST LTD,30/08/2023,140.00
Children�s Safeguarding & Family Support,"Family Placements, Children in Care, Leaving Care & Emergency Duty Team",Premises-Related Expenditure,Hire Of Rooms,Dawley Baptist Church,24/08/2023,450.00
Children�s Safeguarding & Family Support,"Family Placements, Children in Care, Leaving Care & Emergency Duty Team",Supplies & Services,Advertising,Bauer Radio Ltd,23/08/2023,663.94
Children�s Safeguarding & Family Support,"Family Placements, Children in Care, Leaving Care & Emergency Duty Team",Supplies & Services,Advertising,Bauer Radio Ltd,23/08/2023,740.00
Children�s Safeguarding & Family Support,"Family Placements, Children in Care, Leaving Care & Emergency Duty Team",Supplies & Services,Advertising,Bauer Radio Ltd,23/08/2023,"1,786.88"
Children�s Safeguarding & Family Support,"Family Placements, Children in Care, Leaving Care & Emergency Duty Team",Supplies & Services,Advertising,Bauer Radio Ltd,23/08/2023,525.00
Children�s Safeguarding & Family Support,"Family Placements, Children in Care, Leaving Care & Emergency Duty Team",Supplies & Services,Advertising,Bauer Radio Ltd,23/08/2023,"1,147.55"
Children�s Safeguarding & Family Support,"Family Placements, Children in Care, Leaving Care & Emergency Duty Team",Supplies & Services,Doctors Fees,DONNINGTON MEDICAL PRACTICE,16/08/2023,230.00
Children�s Safeguarding & Family Support,"Family Placements, Children in Care, Leaving Care & Emergency Duty Team",Supplies & Services,Form F Assessments,Kite Fostering Consultancy Ltd,11/08/2023,"2,029.16"
Children�s Safeguarding & Family Support,"Family Placements, Children in Care, Leaving Care & Emergency Duty Team",Supplies & Services,Advertising,Newsquest Media Group,11/08/2023,"2,800.00"
Children�s Safeguarding & Family Support,"Family Placements, Children in Care, Leaving Care & Emergency Duty Team",Supplies & Services,Other Services,Share Foundation,24/08/2023,"18,893.08"
Children�s Safeguarding & Family Support,"Family Placements, Children in Care, Leaving Care & Emergency Duty Team",Supplies & Services,Other Services,SUNDRY SUPPLIER ,02/08/2023,128.07
Children�s Safeguarding & Family Support,"Family Placements, Children in Care, Leaving Care & Emergency Duty Team",Third Party Payments,Residential Expenditure,NHS Shropshire Telford & Wrekin ICB ,01/08/2023,"-18,195.52"
Children�s Safeguarding & Family Support,"Family Placements, Children in Care, Leaving Care & Emergency Duty Team",Third Party Payments,Residential Expenditure,NHS Shropshire Telford & Wrekin ICB ,15/08/2023,"80,131.31"
Children�s Safeguarding & Family Support,"Family Placements, Children in Care, Leaving Care & Emergency Duty Team",Third Party Payments,Residential Expenditure,NHS Shropshire Telford & Wrekin ICB ,15/08/2023,"-87,054.97"
Children�s Safeguarding & Family Support,"Family Placements, Children in Care, Leaving Care & Emergency Duty Team",Third Party Payments,Private Contractors,Shared Services Connected Limited,29/08/2023,"9,184.00"
Children�s Safeguarding & Family Support,"Family Placements, Children in Care, Leaving Care & Emergency Duty Team",Third Party Payments,Private Contractors,Shared Services Connected Limited,29/08/2023,328.00
Children�s Safeguarding & Family Support,Safeguarding Advisory,Employees,Recruitment Advertising,Todays Recruitment,01/08/2023,186.00
Children�s Safeguarding & Family Support,Safeguarding Advisory,Third Party Payments,Private Contractors,Change Grow Live Services Ltd ,11/08/2023,"6,035.25"
Children�s Safeguarding & Family Support,Safeguarding Advisory,Supplies & Services,Public Transport Subsidy,MEETING POINT TRUST LTD,01/08/2023,296.35
Children�s Safeguarding & Family Support,Safeguarding Advisory,Supplies & Services,Public Transport Subsidy,Mercure Telford Centre Hotel,21/08/2023,515.00
Children's Safeguarding,Child Protection & Family Support,contribution to provision,legal,HM Courts and Tribunal service,16/08/2023," 6,581.00 "
"Communities, Customer & Commercial Services",Community Services,Supplies & Services,Equipment - Purchase,Safety Goggles Co,29/08/2023,149.76
"Communities, Customer & Commercial Services",Community Services,Supplies & Services,Equipment - Purchase,S LIMITED,16/08/2023,110.64
"Communities, Customer & Commercial Services",Community Services,Supplies & Services,Equipment - Purchase,Symmetrikit,29/08/2023,461.50
"Communities, Customer & Commercial Services",Community Services,Supplies & Services,Equipment - Purchase,Symmetrikit,29/08/2023,646.20
"Communities, Customer & Commercial Services",Community Services,Supplies & Services,Equipment - Purchase,The Purple Company Ltd,29/08/2023,515.00
"Communities, Customer & Commercial Services",Community Services,Supplies & Services,Equipment - Purchase,The Purple Company Ltd,29/08/2023,515.00
"Communities, Customer & Commercial Services",Community Services,Supplies & Services,Equipment - Purchase,Waterhaul Ltd ,30/08/2023,842.00
"Communities, Customer & Commercial Services",Community Services,Supplies & Services,Grants To Voluntary Organis,Donnington Sports & Social ABC,14/08/2023,"1,000.00"
"Communities, Customer & Commercial Services",Community Services,Supplies & Services,Grants To Voluntary Organis,Great Dawley Town Council,03/08/2023,250.00
"Communities, Customer & Commercial Services",Community Services,Supplies & Services,Grants To Voluntary Organis,STIRCHLEY & BROOKSIDE PARISH COUNCIL,02/08/2023,600.00
"Communities, Customer & Commercial Services",Community Services,Supplies & Services,Grants To Voluntary Organis,STIRCHLEY & BROOKSIDE PARISH COUNCIL ,02/08/2023,500.00
"Communities, Customer & Commercial Services",Community Services,Supplies & Services,Grants To Voluntary Organis,Telford and Wrekin Interfaith Council,30/08/2023,500.00
"Communities, Customer & Commercial Services",Community Services,Supplies & Services,Grants To Voluntary Organis,The Ironbridge Gorge Brass Band Festival,18/08/2023,500.00
"Communities, Customer & Commercial Services",Community Services,Supplies & Services,Grants To Voluntary Organis,KETLEY PARISH COUNCIL,18/08/2023,745.32
"Communities, Customer & Commercial Services",Community Services,Premises-Related Expenditure,Electricity,West Mercia Energy (WME),24/08/2023,"1,006.45"
"Communities, Customer & Commercial Services",Community Services,Supplies & Services,Other Services,NPOWER ELECTRICITY,22/08/2023,315.00
"Communities, Customer & Commercial Services",Culture & Events,Supplies & Services,Marketing & Publicity,APL Media Ltd,02/08/2023,"6,571.00"
"Communities, Customer & Commercial Services",Culture & Events,Supplies & Services,Marketing & Publicity,Blue Sail Consulting Limited,30/08/2023,"15,962.40"
"Communities, Customer & Commercial Services",Culture & Events,Employees,Staff Training,FREEMANS OF TELFORD LTD,10/08/2023,460.00
"Communities, Customer & Commercial Services",Culture & Events,Supplies & Services,Equipment - Purchase,ASLES LTD,14/08/2023,250.00
"Communities, Customer & Commercial Services",Culture & Events,Supplies & Services,Advertising,Colston Media Ltd,22/08/2023,150.00
"Communities, Customer & Commercial Services",Culture & Events,Supplies & Services,Promotion Expenses,crowdEngage Limited,22/08/2023,221.99
"Communities, Customer & Commercial Services",Culture & Events,Supplies & Services,Equipment - Purchase,E N CATERING EQUIPMENT AND SERVICES  LTD,01/08/2023,138.65
"Communities, Customer & Commercial Services",Culture & Events,Supplies & Services,Advertising,M C MARKETING LTD,22/08/2023,575.00
"Communities, Customer & Commercial Services",Culture & Events,Supplies & Services,Promotion Expenses,Spektrix Limited,11/08/2023,"1,952.00"
"Communities, Customer & Commercial Services",Culture & Events,Supplies & Services,Artistes Fees,ARTISTES INTERNATIONAL MANAGEMENT,08/08/2023,"7,282.19"
"Communities, Customer & Commercial Services",Culture & Events,Supplies & Services,Artistes Fees,M T Productions Limited,01/08/2023,"2,561.27"
"Communities, Customer & Commercial Services",Culture & Events,Supplies & Services,Artistes Fees,Orangebox Theatre Group Ltd,03/08/2023,"2,837.95"
"Communities, Customer & Commercial Services",Culture & Events,Supplies & Services,Artistes Fees,Prestige Productions,01/08/2023,"3,397.50"
"Communities, Customer & Commercial Services",Culture & Events,Supplies & Services,Artistes Fees,Shropshire Musical Theatre Company,03/08/2023,"3,573.00"
"Communities, Customer & Commercial Services",Culture & Events,Supplies & Services,Artistes Fees,Talented Artists Ltd,14/08/2023,"5,212.60"
"Communities, Customer & Commercial Services",Culture & Events,Supplies & Services,Advertising,WHATS ON MAGAZINES LTD,08/08/2023,275.00
"Communities, Customer & Commercial Services",Culture & Events,Supplies & Services,Wet Resale Provision,MOLSON COORS BREWING COMPANY UK LTD,15/08/2023,"1,259.25"
"Communities, Customer & Commercial Services",Culture & Events,Supplies & Services,Wet Resale Provision,MOLSON COORS BREWING COMPANY UK LTD,23/08/2023,107.35
"Communities, Customer & Commercial Services",Culture & Events,Supplies & Services,Wet Resale Provision,MOLSON COORS BREWING COMPANY UK LTD,23/08/2023,232.74
"Communities, Customer & Commercial Services",Culture & Events,Supplies & Services,Wet Resale Provision,MOLSON COORS BREWING COMPANY UK LTD,23/08/2023,145.73
"Communities, Customer & Commercial Services",Culture & Events,Supplies & Services,Wet Resale Provision,MOLSON COORS BREWING COMPANY UK LTD,23/08/2023,252.54
"Communities, Customer & Commercial Services",Culture & Events,Supplies & Services,Wet Resale Provision,MOLSON COORS BREWING COMPANY UK LTD,23/08/2023,145.89
"Communities, Customer & Commercial Services",Culture & Events,Supplies & Services,Wet Resale Provision,MOLSON COORS BREWING COMPANY UK LTD,01/08/2023,391.74
"Communities, Customer & Commercial Services",Culture & Events,Supplies & Services,Wet Resale Provision,MOLSON COORS BREWING COMPANY UK LTD,01/08/2023,148.08
"Communities, Customer & Commercial Services",Culture & Events,Supplies & Services,Wet Resale Provision,MOLSON COORS BREWING COMPANY UK LTD,01/08/2023,232.74
"Communities, Customer & Commercial Services",Culture & Events,Supplies & Services,Wet Resale Provision,MOLSON COORS BREWING COMPANY UK LTD,03/08/2023,183.68
"Communities, Customer & Commercial Services",Culture & Events,Supplies & Services,Wet Resale Provision,MOLSON COORS BREWING COMPANY UK LTD,03/08/2023,130.58
"Communities, Customer & Commercial Services",Culture & Events,Supplies & Services,Wet Resale Provision,MOLSON COORS BREWING COMPANY UK LTD,15/08/2023,291.46
"Communities, Customer & Commercial Services",Culture & Events,Supplies & Services,Wet Resale Provision,MOLSON COORS BREWING COMPANY UK LTD,15/08/2023,118.31
"Communities, Customer & Commercial Services",Culture & Events,Supplies & Services,Wet Resale Provision,MOLSON COORS BREWING COMPANY UK LTD,23/08/2023,291.46
"Communities, Customer & Commercial Services",Culture & Events,Supplies & Services,Wet Resale Provision,MOLSON COORS BREWING COMPANY UK LTD,23/08/2023,110.63
"Communities, Customer & Commercial Services",Culture & Events,Supplies & Services,Audit Services,DMC STOCKTAKING,15/08/2023,160.00
"Communities, Customer & Commercial Services",Culture & Events,Supplies & Services,Wet Resale Provision,MOLSON COORS BREWING COMPANY UK LTD,11/08/2023,291.46
"Communities, Customer & Commercial Services",Culture & Events,Premises-Related Expenditure,Grounds Maintenance - Other,GN Groundworks Limited,01/08/2023,258.82
"Communities, Customer & Commercial Services",Culture & Events,Supplies & Services,Equipment - Hire,Event Furniture Hire Ltd,22/08/2023,170.00
"Communities, Customer & Commercial Services",Culture & Events,Supplies & Services,Artistes Fees,Fools Paradise Ltd,30/08/2023,736.50
"Communities, Customer & Commercial Services",Culture & Events,Supplies & Services,Artistes Fees,Fools Paradise Ltd,30/08/2023,"6,900.00"
"Communities, Customer & Commercial Services",Culture & Events,Supplies & Services,Artistes Fees,Fools Paradise Ltd,30/08/2023,580.00
"Communities, Customer & Commercial Services",Culture & Events,Supplies & Services,Artistes Fees,Fools Paradise Ltd,30/08/2023,790.00
"Communities, Customer & Commercial Services",Culture & Events,Supplies & Services,Artistes Fees,Fools Paradise Ltd,30/08/2023,755.00
"Communities, Customer & Commercial Services",Culture & Events,Supplies & Services,Artistes Fees,Historical Promotions,16/08/2023,"1,350.00"
"Communities, Customer & Commercial Services",Culture & Events,Supplies & Services,Equipment - Hire,Illuminate Audio Visual Effects,22/08/2023,391.80
"Communities, Customer & Commercial Services",Culture & Events,Supplies & Services,Marketing & Publicity,Kitform Promotional Products Ltd,21/08/2023,195.00
"Communities, Customer & Commercial Services",Culture & Events,Supplies & Services,Equipment - Purchase,Multimatts Ltd,09/08/2023,"2,640.00"
"Communities, Customer & Commercial Services",Culture & Events,Supplies & Services,First Aid,MW MEDICS LTD,23/08/2023,180.00
"Communities, Customer & Commercial Services",Culture & Events,Supplies & Services,First Aid,MW MEDICS LTD,30/08/2023,"8,020.00"
"Communities, Customer & Commercial Services",Culture & Events,Supplies & Services,Equipment - Hire,PUMP & PLANT SERVICES LTD,02/08/2023,-125.00
"Communities, Customer & Commercial Services",Customer Relationships & Welfare Services,Employees,Agency Supply Costs,E B  LTD,15/08/2023,"1,012.50"
"Communities, Customer & Commercial Services",Customer Relationships & Welfare Services,Employees,Agency Supply Costs,E B  LTD,31/08/2023,810.00
"Communities, Customer & Commercial Services",Customer Relationships & Welfare Services,Supplies & Services,Other Grants (Expenses),Discretionary Household Support,24/08/2023,400.00
"Communities, Customer & Commercial Services",Customer Relationships & Welfare Services,Supplies & Services,Other Grants (Expenses),Discretionary Household Support,18/08/2023,189.34
"Communities, Customer & Commercial Services",Customer Relationships & Welfare Services,Supplies & Services,Other Grants (Expenses),Hawk Incentives Ltd ,14/08/2023,"19,744.00"
"Communities, Customer & Commercial Services",Customer Relationships & Welfare Services,Transfer Payments,Crisis Assistance Awards,PayPoint Network Limited,14/08/2023,245.00
"Communities, Customer & Commercial Services",Customer Relationships & Welfare Services,Transfer Payments,Crisis Assistance Awards,PayPoint Network Limited,21/08/2023,370.00
"Communities, Customer & Commercial Services",Customer Relationships & Welfare Services,Transfer Payments,Crisis Assistance Awards,PayPoint Network Limited,09/08/2023,210.00
"Communities, Customer & Commercial Services",Customer Relationships & Welfare Services,Transfer Payments,Crisis Assistance Awards,PayPoint Network Limited,29/08/2023,480.00
"Communities, Customer & Commercial Services",Customer Relationships & Welfare Services,Employees,Staff Training,The Institute of Customer Service,01/08/2023,250.00
"Communities, Customer & Commercial Services",Customer Relationships & Welfare Services,Supplies & Services,Printing - Other,Financial Data Management plc,04/08/2023,184.11
"Communities, Customer & Commercial Services",Customer Relationships & Welfare Services,Supplies & Services,Printing - Other,Financial Data Management plc,04/08/2023,115.33
"Communities, Customer & Commercial Services",Customer Relationships & Welfare Services,Supplies & Services,Printing - Other,Financial Data Management plc,04/08/2023,194.58
"Communities, Customer & Commercial Services",Customer Relationships & Welfare Services,Supplies & Services,Printing - Other,Financial Data Management plc,04/08/2023,201.48
"Communities, Customer & Commercial Services",Customer Relationships & Welfare Services,Supplies & Services,Printing - Other,Financial Data Management plc,11/08/2023,127.93
"Communities, Customer & Commercial Services",Customer Relationships & Welfare Services,Supplies & Services,Postages,Financial Data Management plc,11/08/2023,104.98
"Communities, Customer & Commercial Services",Customer Relationships & Welfare Services,Supplies & Services,Postages,Financial Data Management plc,11/08/2023,112.33
"Communities, Customer & Commercial Services",Customer Relationships & Welfare Services,Supplies & Services,Postages,Financial Data Management plc,18/08/2023,113.92
"Communities, Customer & Commercial Services",Customer Relationships & Welfare Services,Supplies & Services,Postages,Financial Data Management plc,18/08/2023,152.47
"Communities, Customer & Commercial Services",Customer Relationships & Welfare Services,Supplies & Services,Permit Production - Blue Badge,APS Group,03/08/2023,"1,207.58"
"Communities, Customer & Commercial Services",Customer Relationships & Welfare Services,Supplies & Services,Blue Badge Assessments,Ascenti,08/08/2023,720.00
"Communities, Customer & Commercial Services",Customer Relationships & Welfare Services,Supplies & Services,Bus Pass Production,Euclid Limited,09/08/2023,807.82
"Communities, Customer & Commercial Services",Customer Relationships & Welfare Services,Supplies & Services,Permit Production - Blue Badge,Valtech Limited,31/08/2023,483.00
"Communities, Customer & Commercial Services",Customer Relationships & Welfare Services,Supplies & Services,Permit Production - Blue Badge,Valtech Limited,03/08/2023,596.16
"Communities, Customer & Commercial Services",Customer Relationships & Welfare Services,Transfer Payments,Crisis Assistance Awards,Kings of the Road,15/08/2023,495.00
"Communities, Customer & Commercial Services",Customer Relationships & Welfare Services,Transfer Payments,Crisis Assistance Awards,Kings of the Road,15/08/2023,225.00
"Communities, Customer & Commercial Services",Customer Relationships & Welfare Services,Transfer Payments,Crisis Assistance Awards,Kings of the Road,04/08/2023,275.00
"Communities, Customer & Commercial Services",Customer Relationships & Welfare Services,Transfer Payments,Crisis Assistance Awards,Kings of the Road,03/08/2023,325.00
"Communities, Customer & Commercial Services",Customer Relationships & Welfare Services,Premises-Related Expenditure,Trade Refuse,CHAFFINCH DOCUMENT,14/08/2023,132.00
"Communities, Customer & Commercial Services",Customer Relationships & Welfare Services,Supplies & Services,Conference Expenses,LOCAL REGISTRATION SERVICES ASSOCIATION,21/08/2023,170.00
"Communities, Customer & Commercial Services",ICT,Supplies & Services,Comp Hardware (Purch / Hire),Park Place Technologies,24/08/2023,474.60
"Communities, Customer & Commercial Services",ICT,Supplies & Services,Comp Hardware (Purch / Hire),Park Place Technologies,24/08/2023,474.60
"Communities, Customer & Commercial Services",ICT,Supplies & Services,Telecomms,VIRGIN MEDIA BUSINESS ,30/08/2023,"4,267.00"
"Communities, Customer & Commercial Services",ICT,Supplies & Services,Comp Hardware (Purch / Hire),CCS MEDIA LIMITED,03/08/2023,213.82
"Communities, Customer & Commercial Services",ICT,Supplies & Services,Comp Hardware (Purch / Hire),CCS MEDIA LIMITED,15/08/2023,"26,854.49"
"Communities, Customer & Commercial Services",ICT,Supplies & Services,Equipment - Purchase,CCS MEDIA LIMITED,15/08/2023,"13,497.69"
"Communities, Customer & Commercial Services",ICT,Supplies & Services,Equipment - Purchase,CCS MEDIA LIMITED,15/08/2023,564.00
"Communities, Customer & Commercial Services",ICT,Supplies & Services,Mobile Phones,EE LTD AIRTIME  ,08/08/2023,"13,595.85"
"Communities, Customer & Commercial Services",ICT,Supplies & Services,Telecomms,VIRGIN MEDIA BUSINESS,14/08/2023,"1,801.75"
"Communities, Customer & Commercial Services",ICT,Premises-Related Expenditure,R&M -Buildings DLO Charge,PP ELECTRICAL SERVICES Ltd,14/08/2023,220.00
"Communities, Customer & Commercial Services",ICT,Supplies & Services,Comp Software (Purch / Hire),Barnbrook Software Limited,10/08/2023,"1,200.00"
"Communities, Customer & Commercial Services",ICT,Supplies & Services,Telephones,CAPITA BUSINESS SERVICES LTD ,08/08/2023,"391,884.00"
"Communities, Customer & Commercial Services",ICT,Supplies & Services,Telephones,CAPITA BUSINESS SERVICES LTD ,08/08/2023,"50,025.00"
"Communities, Customer & Commercial Services",ICT,Supplies & Services,Telephones,CAPITA BUSINESS SERVICES LTD ,08/08/2023,"1,843.00"
"Communities, Customer & Commercial Services",ICT,Supplies & Services,Telephones,CAPITA BUSINESS SERVICES LTD ,08/08/2023,"44,000.00"
"Communities, Customer & Commercial Services",ICT,Supplies & Services,Telephones,CAPITA BUSINESS SERVICES LTD ,08/08/2023,"68,450.00"
"Communities, Customer & Commercial Services",ICT,Supplies & Services,Telephones,CAPITA BUSINESS SERVICES LTD ,08/08/2023,"57,845.00"
"Communities, Customer & Commercial Services",ICT,Supplies & Services,Comp Software (Purch / Hire),IDOX SOFTWARE LTD,29/08/2023,"1,250.00"
"Communities, Customer & Commercial Services",ICT,Supplies & Services,Comp Software (Purch / Hire),JISC SERVICES LTD ,09/08/2023,"-7,389.70"
"Communities, Customer & Commercial Services",ICT,Supplies & Services,Comp Software (Purch / Hire),JISC SERVICES LTD ,09/08/2023,"-9,186.19"
"Communities, Customer & Commercial Services",ICT,Supplies & Services,Comp Software (Purch / Hire),JISC SERVICES LTD ,09/08/2023,"2,815.12"
"Communities, Customer & Commercial Services",ICT,Supplies & Services,Comp Software (Purch / Hire),JISC SERVICES LTD ,09/08/2023,"13,836.99"
"Communities, Customer & Commercial Services",ICT,Supplies & Services,Comp Software (Purch / Hire),NEC Software Solutions UK Ltd,29/08/2023,-103.51
"Communities, Customer & Commercial Services",ICT,Supplies & Services,Comp Software (Purch / Hire),Nominet,08/08/2023,422.22
"Communities, Customer & Commercial Services",ICT,Supplies & Services,Comp Software (Purch / Hire),PHOENIX SOFTWARE LTD,01/08/2023,"3,499.15"
"Communities, Customer & Commercial Services",ICT,Supplies & Services,Comp Software (Purch / Hire),PHOENIX SOFTWARE LTD,30/08/2023,"13,808.68"
"Communities, Customer & Commercial Services",ICT,Supplies & Services,Stationery,PREMIER PAPER GROUP LTD,16/08/2023,327.00
"Communities, Customer & Commercial Services",ICT,Supplies & Services,Comp Hardware (Purch / Hire),CCS MEDIA LIMITED,22/08/2023,410.00
"Communities, Customer & Commercial Services",ICT,Supplies & Services,Comp Hardware (Purch / Hire),CCS MEDIA LIMITED,30/08/2023,"1,934.67"
"Communities, Customer & Commercial Services",ICT,Supplies & Services,Comp Hardware (Purch / Hire),CCS MEDIA LIMITED,30/08/2023,192.00
"Communities, Customer & Commercial Services",ICT,Supplies & Services,Comp Software (Purch / Hire),CCS MEDIA LIMITED,30/08/2023,"7,975.36"
"Communities, Customer & Commercial Services",ICT,Supplies & Services,Comp Hardware (Purch / Hire),ICTn Limited,03/08/2023,235.00
"Communities, Customer & Commercial Services",ICT,Supplies & Services,Equipment - Purchase,ICTn Limited,03/08/2023,395.00
"Communities, Customer & Commercial Services",ICT,Supplies & Services,Comp Hardware (Purch / Hire),ICTn Limited,30/08/2023,"1,720.44"
"Communities, Customer & Commercial Services",ICT,Supplies & Services,Comp Hardware (Purch / Hire),Park Place Technologies,24/08/2023,191.40
"Communities, Customer & Commercial Services",ICT,Supplies & Services,Comp Hardware (Purch / Hire),Park Place Technologies,24/08/2023,247.20
"Communities, Customer & Commercial Services",ICT,Supplies & Services,Comp Hardware (Purch / Hire),Park Place Technologies,24/08/2023,247.20
"Communities, Customer & Commercial Services",ICT,Supplies & Services,Comp Hardware (Purch / Hire),CCS MEDIA LIMITED,15/08/2023,119.41
"Communities, Customer & Commercial Services",ICT,Supplies & Services,Comp Software (Purch / Hire),CCS MEDIA LIMITED,03/08/2023,"2,978.00"
"Communities, Customer & Commercial Services",ICT,Supplies & Services,Comp Software (Purch / Hire),ADVANCED BUSINESS SOLUTIONS ,18/08/2023,"1,115.10"
"Communities, Customer & Commercial Services",ICT,Supplies & Services,Comp Software (Purch / Hire),ADVANCED BUSINESS SOLUTIONS ,18/08/2023,"1,593.00"
"Communities, Customer & Commercial Services",ICT,Supplies & Services,Comp Software (Purch / Hire),ADVANCED BUSINESS SOLUTIONS ,18/08/2023,"1,174.10"
"Communities, Customer & Commercial Services",ICT,Supplies & Services,Comp Software (Purch / Hire),ADVANCED BUSINESS SOLUTIONS ,18/08/2023,"1,628.40"
"Communities, Customer & Commercial Services",ICT,Supplies & Services,Comp Software (Purch / Hire),ADVANCED BUSINESS SOLUTIONS ,18/08/2023,"1,079.70"
"Communities, Customer & Commercial Services",ICT,Supplies & Services,Comp Software (Purch / Hire),ADVANCED BUSINESS SOLUTIONS ,18/08/2023,890.90
"Communities, Customer & Commercial Services",ICT,Supplies & Services,Comp Software (Purch / Hire),ADVANCED BUSINESS SOLUTIONS ,18/08/2023,"1,180.00"
"Communities, Customer & Commercial Services",ICT,Supplies & Services,Comp Software (Purch / Hire),ADVANCED BUSINESS SOLUTIONS ,18/08/2023,"2,312.80"
"Communities, Customer & Commercial Services",ICT,Supplies & Services,Comp Software (Purch / Hire),ADVANCED BUSINESS SOLUTIONS ,18/08/2023,"1,923.40"
"Communities, Customer & Commercial Services",ICT,Supplies & Services,Comp Software (Purch / Hire),ADVANCED BUSINESS SOLUTIONS ,18/08/2023,"1,646.10"
"Communities, Customer & Commercial Services",ICT,Supplies & Services,Comp Software (Purch / Hire),ADVANCED BUSINESS SOLUTIONS ,18/08/2023,"1,244.90"
"Communities, Customer & Commercial Services",ICT,Supplies & Services,Comp Software (Purch / Hire),ADVANCED BUSINESS SOLUTIONS ,18/08/2023,"1,339.30"
"Communities, Customer & Commercial Services",ICT,Supplies & Services,Comp Software (Purch / Hire),ADVANCED BUSINESS SOLUTIONS ,18/08/2023,"1,864.40"
"Communities, Customer & Commercial Services",ICT,Supplies & Services,Comp Software (Purch / Hire),ADVANCED BUSINESS SOLUTIONS ,18/08/2023,"1,994.20"
"Communities, Customer & Commercial Services",ICT,Supplies & Services,Comp Software (Purch / Hire),ADVANCED BUSINESS SOLUTIONS ,18/08/2023,277.30
"Communities, Customer & Commercial Services",ICT,Supplies & Services,Comp Software (Purch / Hire),Bromcom Computers Plc,24/08/2023,"1,020.40"
"Communities, Customer & Commercial Services",ICT,Supplies & Services,Comp Software (Purch / Hire),Bromcom Computers Plc,24/08/2023,"8,294.36"
"Communities, Customer & Commercial Services",ICT,Supplies & Services,Comp Software (Purch / Hire),Bromcom Computers Plc,24/08/2023,"5,607.97"
"Communities, Customer & Commercial Services",ICT,Supplies & Services,Comp Software (Purch / Hire),Bromcom Computers Plc,24/08/2023,"9,395.15"
"Communities, Customer & Commercial Services",ICT,Supplies & Services,Comp Software (Purch / Hire),Bromcom Computers Plc,24/08/2023,"2,963.18"
"Communities, Customer & Commercial Services",ICT,Supplies & Services,Comp Software (Purch / Hire),Bromcom Computers Plc,24/08/2023,"1,206.39"
"Communities, Customer & Commercial Services",ICT,Supplies & Services,Comp Software (Purch / Hire),Bromcom Computers Plc,24/08/2023,"2,367.99"
"Communities, Customer & Commercial Services",ICT,Supplies & Services,Comp Software (Purch / Hire),Bromcom Computers Plc,24/08/2023,"1,825.59"
"Communities, Customer & Commercial Services",ICT,Supplies & Services,Comp Software (Purch / Hire),Bromcom Computers Plc,24/08/2023,"2,991.98"
"Communities, Customer & Commercial Services",ICT,Supplies & Services,Comp Software (Purch / Hire),Bromcom Computers Plc,24/08/2023,"1,950.39"
"Communities, Customer & Commercial Services",ICT,Supplies & Services,Comp Software (Purch / Hire),Bromcom Computers Plc,24/08/2023,"2,022.39"
"Communities, Customer & Commercial Services",ICT,Supplies & Services,Comp Software (Purch / Hire),Bromcom Computers Plc,24/08/2023,788.80
"Communities, Customer & Commercial Services",ICT,Supplies & Services,Comp Software (Purch / Hire),Bromcom Computers Plc,24/08/2023,"8,678.36"
"Communities, Customer & Commercial Services",ICT,Supplies & Services,Comp Software (Purch / Hire),Bromcom Computers Plc,24/08/2023,"1,335.99"
"Communities, Customer & Commercial Services",ICT,Supplies & Services,Comp Software (Purch / Hire),Bromcom Computers Plc,24/08/2023,"2,930.39"
"Communities, Customer & Commercial Services",ICT,Supplies & Services,Comp Software (Purch / Hire),Bromcom Computers Plc,24/08/2023,"1,811.19"
"Communities, Customer & Commercial Services",ICT,Supplies & Services,Comp Software (Purch / Hire),Bromcom Computers Plc,24/08/2023,"2,975.18"
"Communities, Customer & Commercial Services",ICT,Supplies & Services,Comp Software (Purch / Hire),Bromcom Computers Plc,24/08/2023,"3,131.98"
"Communities, Customer & Commercial Services",ICT,Supplies & Services,Comp Software (Purch / Hire),Bromcom Computers Plc,24/08/2023,"3,745.58"
"Communities, Customer & Commercial Services",ICT,Supplies & Services,Comp Software (Purch / Hire),Bromcom Computers Plc,24/08/2023,"4,520.78"
"Communities, Customer & Commercial Services",ICT,Supplies & Services,Comp Software (Purch / Hire),Bromcom Computers Plc,24/08/2023,"3,678.38"
"Communities, Customer & Commercial Services",ICT,Supplies & Services,Comp Software (Purch / Hire),Bromcom Computers Plc,24/08/2023,"9,958.35"
"Communities, Customer & Commercial Services",ICT,Supplies & Services,Comp Software (Purch / Hire),Bromcom Computers Plc,24/08/2023,"1,843.99"
"Communities, Customer & Commercial Services",ICT,Capital Expenditure,Computer Software,Bramble Hub Limited,03/08/2023,"2,340.93"
"Communities, Customer & Commercial Services",ICT,Capital Expenditure,Payments to Contractor,Bramble Hub Limited,03/08/2023,"16,983.00"
"Communities, Customer & Commercial Services",ICT,Capital Expenditure,Payments to Contractor,Bramble Hub Limited,08/08/2023,"14,000.00"
"Communities, Customer & Commercial Services",ICT,Capital Expenditure,Computer Hardware,CCS MEDIA LIMITED,03/08/2023,"7,576.32"
"Communities, Customer & Commercial Services",ICT,Capital Expenditure,Computer Hardware,Daisy Corporate Services Trading Limited,03/08/2023,"3,537.24"
"Communities, Customer & Commercial Services",ICT,Capital Expenditure,Computer Hardware,Daisy Corporate Services Trading Limited,03/08/2023,"4,042.56"
"Communities, Customer & Commercial Services",ICT,Capital Expenditure,Payments to Contractor,ICTn Limited,03/08/2023,302.40
"Communities, Customer & Commercial Services",ICT,Capital Expenditure,Payments to Contractor,ICTn Limited,01/08/2023,260.00
"Communities, Customer & Commercial Services",ICT,Capital Expenditure,Payments to Contractor,Orange Cyberdefense UK Limited,18/08/2023,950.00
"Communities, Customer & Commercial Services",ICT,Capital Expenditure,Payments to Contractor,Orange Cyberdefense UK Limited,17/08/2023,525.00
"Communities, Customer & Commercial Services",ICT,Capital Expenditure,Payments to Contractor,Orange Cyberdefense UK Limited,17/08/2023,"1,050.00"
"Communities, Customer & Commercial Services",ICT,Capital Expenditure,Computer Software,PHOENIX SOFTWARE LTD,31/08/2023,"3,316.50"
"Communities, Customer & Commercial Services",ICT,Capital Expenditure,Computer Software,Round Software Ltd,01/08/2023,"1,750.00"
"Communities, Customer & Commercial Services",ICT,Capital Expenditure,Payments to Contractor,SGS United Kingdom Limited,11/08/2023,365.00
"Communities, Customer & Commercial Services",ICT,Capital Expenditure,Payments to Contractor,Zellis UK Ltd,08/08/2023,423.00
"Communities, Customer & Commercial Services",Sport & Leisure,Premises-Related Expenditure,Clean Mats & Toilet Requisites,Border Janitorial Supplies Limited,08/08/2023,220.48
"Communities, Customer & Commercial Services",Sport & Leisure,Supplies & Services,Subscriptions,APSE ,25/08/2023,880.80
"Communities, Customer & Commercial Services",Sport & Leisure,Supplies & Services,Computer Hardware (Maint),CIVICA UK LIMITED ,03/08/2023,"51,496.14"
"Communities, Customer & Commercial Services",Sport & Leisure,Supplies & Services,Computer Hardware (Maint),CIVICA UK LIMITED ,03/08/2023,-643.47
"Communities, Customer & Commercial Services",Sport & Leisure,Supplies & Services,Computer Hardware (Maint),CIVICA UK LIMITED ,02/08/2023,"40,242.74"
"Communities, Customer & Commercial Services",Sport & Leisure,Supplies & Services,Computer Hardware (Maint),CIVICA UK LIMITED ,02/08/2023,"-40,242.74"
"Communities, Customer & Commercial Services",Sport & Leisure,Supplies & Services,Crockery/Hardware/Light Equip,Harfield Components Ltd,29/08/2023,747.00
"Communities, Customer & Commercial Services",Sport & Leisure,Supplies & Services,EEC Whole Milk,J DAIRIES,01/08/2023,840.97
"Communities, Customer & Commercial Services",Sport & Leisure,Supplies & Services,EEC Whole Milk,J DAIRIES,01/08/2023,"1,666.50"
"Communities, Customer & Commercial Services",Sport & Leisure,Supplies & Services,Provisions,BIKOLD,03/08/2023,180.01
"Communities, Customer & Commercial Services",Sport & Leisure,Supplies & Services,Provisions,BIKOLD,17/08/2023,168.90
"Communities, Customer & Commercial Services",Sport & Leisure,Employees,Agency Supply Costs,TOTAL CATERING SOLUTONS RECRUITMENT LTD,03/08/2023,273.92
"Communities, Customer & Commercial Services",Sport & Leisure,Employees,Agency Supply Costs,TOTAL CATERING SOLUTONS RECRUITMENT LTD,03/08/2023,342.40
"Communities, Customer & Commercial Services",Sport & Leisure,Employees,Agency Supply Costs,TOTAL CATERING SOLUTONS RECRUITMENT LTD,03/08/2023,410.88
"Communities, Customer & Commercial Services",Sport & Leisure,Employees,Agency Supply Costs,TOTAL CATERING SOLUTONS RECRUITMENT LTD,03/08/2023,273.92
"Communities, Customer & Commercial Services",Sport & Leisure,Employees,Agency Supply Costs,TOTAL CATERING SOLUTONS RECRUITMENT LTD,02/08/2023,342.40
"Communities, Customer & Commercial Services",Sport & Leisure,Employees,Agency Supply Costs,TOTAL CATERING SOLUTONS RECRUITMENT LTD,02/08/2023,342.40
"Communities, Customer & Commercial Services",Sport & Leisure,Employees,Agency Supply Costs,TOTAL CATERING SOLUTONS RECRUITMENT LTD,02/08/2023,273.92
"Communities, Customer & Commercial Services",Sport & Leisure,Employees,Agency Supply Costs,TOTAL CATERING SOLUTONS RECRUITMENT LTD,02/08/2023,256.80
"Communities, Customer & Commercial Services",Sport & Leisure,Premises-Related Expenditure,Clean Mats & Toilet Requisites,Border Janitorial Supplies Limited,02/08/2023,"1,002.97"
"Communities, Customer & Commercial Services",Sport & Leisure,Premises-Related Expenditure,Clean Mats & Toilet Requisites,Border Janitorial Supplies Limited,02/08/2023,110.32
"Communities, Customer & Commercial Services",Sport & Leisure,Premises-Related Expenditure,Clean Mats & Toilet Requisites,Border Janitorial Supplies Limited,02/08/2023,318.48
"Communities, Customer & Commercial Services",Sport & Leisure,Supplies & Services,Provisions,BIKOLD,11/08/2023,350.42
"Communities, Customer & Commercial Services",Sport & Leisure,Supplies & Services,Provisions,BIKOLD,11/08/2023,125.73
"Communities, Customer & Commercial Services",Sport & Leisure,Supplies & Services,Provisions,BIKOLD,11/08/2023,111.98
"Communities, Customer & Commercial Services",Sport & Leisure,Supplies & Services,Provisions,BIKOLD,03/08/2023,123.64
"Communities, Customer & Commercial Services",Sport & Leisure,Supplies & Services,Provisions,BIKOLD,03/08/2023,634.95
"Communities, Customer & Commercial Services",Sport & Leisure,Supplies & Services,Provisions,BIKOLD,03/08/2023,138.35
"Communities, Customer & Commercial Services",Sport & Leisure,Supplies & Services,Provisions,BIKOLD,03/08/2023,304.53
"Communities, Customer & Commercial Services",Sport & Leisure,Supplies & Services,Provisions,BIKOLD,17/08/2023,605.42
"Communities, Customer & Commercial Services",Sport & Leisure,Supplies & Services,Provisions,BIKOLD,17/08/2023,131.33
"Communities, Customer & Commercial Services",Sport & Leisure,Supplies & Services,Provisions,BIKOLD,24/08/2023,547.67
"Communities, Customer & Commercial Services",Sport & Leisure,Supplies & Services,Provisions,BIKOLD,24/08/2023,139.42
"Communities, Customer & Commercial Services",Sport & Leisure,Supplies & Services,Provisions,BIKOLD,24/08/2023,341.74
"Communities, Customer & Commercial Services",Sport & Leisure,Supplies & Services,Provisions,On A Roll,02/08/2023,256.20
"Communities, Customer & Commercial Services",Sport & Leisure,Supplies & Services,Provisions,PASTA KING LIMITED,02/08/2023,150.24
"Communities, Customer & Commercial Services",Sport & Leisure,Supplies & Services,Provisions,On A Roll,02/08/2023,144.03
"Communities, Customer & Commercial Services",Sport & Leisure,Supplies & Services,Provisions,On A Roll,02/08/2023,344.85
"Communities, Customer & Commercial Services",Sport & Leisure,Supplies & Services,Provisions,On A Roll,02/08/2023,518.65
"Communities, Customer & Commercial Services",Sport & Leisure,Supplies & Services,Provisions,PASTA KING LIMITED,31/08/2023,525.84
"Communities, Customer & Commercial Services",Sport & Leisure,Supplies & Services,Provisions,PASTA KING LIMITED,31/08/2023,413.16
"Communities, Customer & Commercial Services",Sport & Leisure,Supplies & Services,Provisions,PASTA KING LIMITED,31/08/2023,638.52
"Communities, Customer & Commercial Services",Sport & Leisure,Premises-Related Expenditure,Clean Mats & Toilet Requisites,Border Janitorial Supplies Limited,02/08/2023,289.00
"Communities, Customer & Commercial Services",Sport & Leisure,Premises-Related Expenditure,Clean Mats & Toilet Requisites,Border Janitorial Supplies Limited,02/08/2023,386.62
"Communities, Customer & Commercial Services",Sport & Leisure,Premises-Related Expenditure,Clean Mats & Toilet Requisites,Border Janitorial Supplies Limited,10/08/2023,226.41
"Communities, Customer & Commercial Services",Sport & Leisure,Premises-Related Expenditure,Clean Mats & Toilet Requisites,Border Janitorial Supplies Limited,04/08/2023,100.34
"Communities, Customer & Commercial Services",Sport & Leisure,Premises-Related Expenditure,Clean Mats & Toilet Requisites,Border Janitorial Supplies Limited,04/08/2023,235.59
"Communities, Customer & Commercial Services",Sport & Leisure,Premises-Related Expenditure,Clean Mats & Toilet Requisites,Border Janitorial Supplies Limited,04/08/2023,100.17
"Communities, Customer & Commercial Services",Sport & Leisure,Premises-Related Expenditure,Clean Mats & Toilet Requisites,Border Janitorial Supplies Limited,02/08/2023,146.17
"Communities, Customer & Commercial Services",Sport & Leisure,Premises-Related Expenditure,Clean Mats & Toilet Requisites,Border Janitorial Supplies Limited,02/08/2023,495.01
"Communities, Customer & Commercial Services",Sport & Leisure,Premises-Related Expenditure,Clean Mats & Toilet Requisites,Border Janitorial Supplies Limited,25/08/2023,141.80
"Communities, Customer & Commercial Services",Sport & Leisure,Premises-Related Expenditure,Clean Mats & Toilet Requisites,Border Janitorial Supplies Limited,25/08/2023,327.41
"Communities, Customer & Commercial Services",Sport & Leisure,Premises-Related Expenditure,Clean Mats & Toilet Requisites,Border Janitorial Supplies Limited,25/08/2023,156.73
"Communities, Customer & Commercial Services",Sport & Leisure,Premises-Related Expenditure,Clean Mats & Toilet Requisites,Border Janitorial Supplies Limited,25/08/2023,194.11
"Communities, Customer & Commercial Services",Sport & Leisure,Premises-Related Expenditure,Clean Mats & Toilet Requisites,Border Janitorial Supplies Limited,25/08/2023,"1,265.00"
"Communities, Customer & Commercial Services",Sport & Leisure,Premises-Related Expenditure,Clean Mats & Toilet Requisites,Border Janitorial Supplies Limited,25/08/2023,220.80
"Communities, Customer & Commercial Services",Sport & Leisure,Supplies & Services,Subscriptions,APSE ,25/08/2023,880.80
"Communities, Customer & Commercial Services",Sport & Leisure,Supplies & Services,Equipment - Repair,THE CLEAN MACHINE DIRECT LTD,25/08/2023,129.45
"Communities, Customer & Commercial Services",Sport & Leisure,Premises-Related Expenditure,Clean Mats & Toilet Requisites,Border Janitorial Supplies Limited,02/08/2023,246.51
"Communities, Customer & Commercial Services",Sport & Leisure,Supplies & Services,Equipment - Repair,THE CLEAN MACHINE DIRECT LTD,25/08/2023,209.40
"Communities, Customer & Commercial Services",Sport & Leisure,Premises-Related Expenditure,R&M -Building Other,B INDUSTRIAL SERVICES,02/08/2023,110.25
"Communities, Customer & Commercial Services",Sport & Leisure,Premises-Related Expenditure,R&M -Building Other,COOL SERVICES LTD,02/08/2023,323.03
"Communities, Customer & Commercial Services",Sport & Leisure,Premises-Related Expenditure,R&M -Building Other,GRANVILLE CONSTRUCTION & MAINTENANCE LTD,29/08/2023,107.70
"Communities, Customer & Commercial Services",Sport & Leisure,Supplies & Services,Provisions,Aroma Tea & Coffee Merchants,03/08/2023,743.66
"Communities, Customer & Commercial Services",Sport & Leisure,Supplies & Services,Provisions,Aroma Tea & Coffee Merchants,03/08/2023,195.00
"Communities, Customer & Commercial Services",Sport & Leisure,Supplies & Services,Provisions,BIKOLD,11/08/2023,126.72
"Communities, Customer & Commercial Services",Sport & Leisure,Supplies & Services,Provisions,BIKOLD,03/08/2023,136.89
"Communities, Customer & Commercial Services",Sport & Leisure,Supplies & Services,Provisions,BIKOLD,17/08/2023,134.39
"Communities, Customer & Commercial Services",Sport & Leisure,Supplies & Services,Provisions,BIKOLD,24/08/2023,127.31
"Communities, Customer & Commercial Services",Sport & Leisure,Supplies & Services,Provisions,TROPICAL ICE,01/08/2023,318.00
"Communities, Customer & Commercial Services",Sport & Leisure,Supplies & Services,Provisions,TROPICAL ICE,01/08/2023,370.00
"Communities, Customer & Commercial Services",Sport & Leisure,Supplies & Services,Provisions,TROPICAL ICE,15/08/2023,240.00
"Communities, Customer & Commercial Services",Sport & Leisure,Supplies & Services,Provisions,TROPICAL ICE,15/08/2023,"1,287.50"
"Communities, Customer & Commercial Services",Sport & Leisure,Supplies & Services,Provisions,TROPICAL ICE,15/08/2023,788.75
"Communities, Customer & Commercial Services",Sport & Leisure,Supplies & Services,Crockery/Hardware/Light Equip,Vegware,03/08/2023,205.33
"Communities, Customer & Commercial Services",Sport & Leisure,Premises-Related Expenditure,Electricity,West Mercia Energy (WME),24/08/2023,445.21
"Communities, Customer & Commercial Services",Sport & Leisure,Supplies & Services,Subscriptions,APSE ,25/08/2023,880.80
"Communities, Customer & Commercial Services",Sport & Leisure,Supplies & Services,Sub Contractors,BUSINESS WATCH GUARDING LIMITED,09/08/2023,574.06
"Communities, Customer & Commercial Services",Sport & Leisure,Supplies & Services,Other Materials,Cambers Country Stores Ltd,15/08/2023,600.56
"Communities, Customer & Commercial Services",Sport & Leisure,Supplies & Services,Other Materials,Cambers Country Stores Ltd,09/08/2023,-415.15
"Communities, Customer & Commercial Services",Sport & Leisure,Supplies & Services,Other Materials,Hydron Protective Coatings LTD,22/08/2023,147.00
"Communities, Customer & Commercial Services",Sport & Leisure,Supplies & Services,Other Materials,Hydron Protective Coatings LTD,22/08/2023,130.50
"Communities, Customer & Commercial Services",Sport & Leisure,Supplies & Services,Other Materials,PROVAC CLEANING SUPPLIES LTD,17/08/2023,481.14
"Communities, Customer & Commercial Services",Sport & Leisure,Supplies & Services,Other Materials,PROVAC CLEANING SUPPLIES LTD,29/08/2023,215.76
"Communities, Customer & Commercial Services",Sport & Leisure,Supplies & Services,Sub Contractors,Waterplay Solutions Limited,01/08/2023,"1,295.00"
"Communities, Customer & Commercial Services",Sport & Leisure,Supplies & Services,Chemicals/Cleaning Products,Border Janitorial Supplies Limited,08/08/2023,362.33
"Communities, Customer & Commercial Services",Sport & Leisure,Supplies & Services,Financial Services,DEBIT FINANCE COLLECTIONS,02/08/2023,155.80
"Communities, Customer & Commercial Services",Sport & Leisure,Supplies & Services,Licences,PPL PRS Ltd,04/08/2023,631.47
"Communities, Customer & Commercial Services",Sport & Leisure,Supplies & Services,Financial Services,DEBIT FINANCE COLLECTIONS,02/08/2023,136.08
"Communities, Customer & Commercial Services",Sport & Leisure,Supplies & Services,Financial Services,DEBIT FINANCE COLLECTIONS,02/08/2023,886.48
"Communities, Customer & Commercial Services",Sport & Leisure,Supplies & Services,Licences,L M Fitness UK Ltd,03/08/2023,"1,045.00"
"Communities, Customer & Commercial Services",Sport & Leisure,Supplies & Services,Licences,L M Fitness UK Ltd,15/08/2023,"1,045.00"
"Communities, Customer & Commercial Services",Sport & Leisure,Supplies & Services,Licences,PPL PRS Ltd,04/08/2023,"9,796.09"
"Communities, Customer & Commercial Services",Sport & Leisure,Supplies & Services,Licences,PPL PRS Ltd,04/08/2023,297.93
"Communities, Customer & Commercial Services",Sport & Leisure,Premises-Related Expenditure,Grounds Maint - Sports Pitches,Technical Surfaces Ltd,15/08/2023,513.00
"Communities, Customer & Commercial Services",Sport & Leisure,Supplies & Services,Chemicals/Cleaning Products,BRENNTAG UK LIMITED,10/08/2023,309.00
"Communities, Customer & Commercial Services",Sport & Leisure,Supplies & Services,Chemicals/Cleaning Products,BRENNTAG UK LIMITED,10/08/2023,611.85
"Communities, Customer & Commercial Services",Sport & Leisure,Supplies & Services,Items For Resale,SWIM ENGLAND TRADING LIMITED,09/08/2023,448.20
"Communities, Customer & Commercial Services",Sport & Leisure,Supplies & Services,Items For Resale,SWIM ENGLAND TRADING LIMITED,09/08/2023,868.70
"Communities, Customer & Commercial Services",Sport & Leisure,Supplies & Services,Items For Resale,SWIM ENGLAND TRADING LIMITED,18/08/2023,180.09
"Communities, Customer & Commercial Services",Sport & Leisure,Premises-Related Expenditure,R&M -Building Other,Support in Sport Limited,11/08/2023,"1,760.00"
"Communities, Customer & Commercial Services",Sport & Leisure,Supplies & Services,Financial Services,DEBIT FINANCE COLLECTIONS,02/08/2023,"1,049.52"
"Communities, Customer & Commercial Services",Sport & Leisure,Supplies & Services,Licences,L M Fitness UK Ltd,09/08/2023,650.00
"Communities, Customer & Commercial Services",Sport & Leisure,Supplies & Services,Licences,PPL PRS Ltd,04/08/2023,"4,424.78"
"Communities, Customer & Commercial Services",Sport & Leisure,Supplies & Services,Financial Services,DEBIT FINANCE COLLECTIONS,02/08/2023,107.28
"Communities, Customer & Commercial Services",Sport & Leisure,Supplies & Services,Subscriptions,APSE ,25/08/2023,880.80
"Communities, Customer & Commercial Services",Sport & Leisure,Supplies & Services,Equipment - Purchase,Bramble Hub Limited,03/08/2023,536.33
"Communities, Customer & Commercial Services",Sport & Leisure,Supplies & Services,Equipment - Purchase,GB GROUP PLC,30/08/2023,800.00
"Communities, Customer & Commercial Services",Sport & Leisure,Supplies & Services,Registration / Licence Fees,G MRM Ltd,25/08/2023,800.00
"Communities, Customer & Commercial Services",Sport & Leisure,Supplies & Services,Flex Charges,Verifone UK Limited,09/08/2023,297.50
"Communities, Customer & Commercial Services",Sport & Leisure,Supplies & Services,Flex Charges,Verifone UK Limited,09/08/2023,297.50
"Communities, Customer & Commercial Services",Sport & Leisure,Supplies & Services,Flex Charges,Verifone UK Limited,22/08/2023,297.50
"Communities, Customer & Commercial Services",Sport & Leisure,Supplies & Services,Equipment - Purchase,N LTD,14/08/2023,"1,020.00"
"Communities, Customer & Commercial Services",Sport & Leisure,Supplies & Services,Licences,PPL PRS Ltd,04/08/2023,"2,012.22"
"Communities, Customer & Commercial Services",Sport & Leisure,Supplies & Services,Equipment - Purchase,N LTD,14/08/2023,600.00
"Communities, Customer & Commercial Services",Sport & Leisure,Supplies & Services,Financial Services,DEBIT FINANCE COLLECTIONS,02/08/2023,531.12
"Communities, Customer & Commercial Services",Sport & Leisure,Supplies & Services,Licences,PPL PRS Ltd,04/08/2023,"1,518.20"
"Communities, Customer & Commercial Services",Sport & Leisure,Premises-Related Expenditure,R&M WC Planned,Agrovista UK LTD,22/08/2023,635.92
"Communities, Customer & Commercial Services",Sport & Leisure,Supplies & Services,Equipment - Purchase,CMW Equipment Holdings Limited,15/08/2023,446.50
"Communities, Customer & Commercial Services",Sport & Leisure,Transport-Related Expenditure,Fuel,Butler Fuels,23/08/2023,"1,275.00"
"Communities, Customer & Commercial Services",Sport & Leisure,Transport-Related Expenditure,Servicing & Repairs V&P,THE LODGE TYRE CO LTD,22/08/2023,239.90
"Communities, Customer & Commercial Services",Sport & Leisure,Supplies & Services,Provisions,BIKOLD,11/08/2023,206.59
"Communities, Customer & Commercial Services",Sport & Leisure,Supplies & Services,Provisions,BIKOLD,11/08/2023,269.46
"Communities, Customer & Commercial Services",Sport & Leisure,Supplies & Services,Provisions,BIKOLD,03/08/2023,256.43
"Communities, Customer & Commercial Services",Sport & Leisure,Supplies & Services,Provisions,BIKOLD,03/08/2023,207.34
"Communities, Customer & Commercial Services",Sport & Leisure,Supplies & Services,Provisions,BIKOLD,03/08/2023,266.79
"Communities, Customer & Commercial Services",Sport & Leisure,Supplies & Services,Provisions,BIKOLD,03/08/2023,140.40
"Communities, Customer & Commercial Services",Sport & Leisure,Supplies & Services,Provisions,BIKOLD,17/08/2023,419.82
"Communities, Customer & Commercial Services",Sport & Leisure,Supplies & Services,Provisions,BIKOLD,17/08/2023,531.60
"Communities, Customer & Commercial Services",Sport & Leisure,Supplies & Services,Provisions,BIKOLD,17/08/2023,110.75
"Communities, Customer & Commercial Services",Sport & Leisure,Supplies & Services,Provisions,BIKOLD,24/08/2023,120.42
"Communities, Customer & Commercial Services",Sport & Leisure,Supplies & Services,Provisions,BIKOLD,24/08/2023,280.08
"Communities, Customer & Commercial Services",Sport & Leisure,Supplies & Services,Provisions,BIKOLD,24/08/2023,130.84
"Communities, Customer & Commercial Services",Sport & Leisure,Supplies & Services,Provisions,BIKOLD,24/08/2023,150.84
"Communities, Customer & Commercial Services",Sport & Leisure,Supplies & Services,Licences,ICE RINK MANAGERS ASSOCIATION,03/08/2023,140.00
"Communities, Customer & Commercial Services",Sport & Leisure,Supplies & Services,Equipment - Hire,SLIDERS SKATE SHOP,01/08/2023,300.00
"Communities, Customer & Commercial Services",Sport & Leisure,Supplies & Services,Financial Services,DEBIT FINANCE COLLECTIONS,02/08/2023,890.96
"Communities, Customer & Commercial Services",Sport & Leisure,Supplies & Services,Licences,PPL PRS Ltd,04/08/2023,"1,603.40"
"Communities, Customer & Commercial Services",Sport & Leisure,Employees,Staff Training,INSTITUTE OF SWIMMING ,08/08/2023,659.00
"Communities, Customer & Commercial Services",Sport & Leisure,Supplies & Services,Protective Clothing,CORPORATE TOGS LTD,29/08/2023,169.75
"Communities, Customer & Commercial Services",Sport & Leisure,Supplies & Services,Equipment - Purchase,RLSS UK Enterprises Ltd,02/08/2023,258.00
"Communities, Customer & Commercial Services",Sport & Leisure,Employees,Staff Training,INSTITUTE OF SWIMMING ,04/08/2023,299.00
"Communities, Customer & Commercial Services",Sport & Leisure,Premises-Related Expenditure,Swimming Pool Chemicals,BRENNTAG UK LIMITED,14/08/2023,"1,017.70"
"Communities, Customer & Commercial Services",Sport & Leisure,Premises-Related Expenditure,Swimming Pool Chemicals,BRENNTAG UK LIMITED,14/08/2023,125.00
"Communities, Customer & Commercial Services",Sport & Leisure,Supplies & Services,Carriage/Delivery Charge,BRENNTAG UK LIMITED,14/08/2023,103.00
"Communities, Customer & Commercial Services",Sport & Leisure,Supplies & Services,Items For Resale,Splash About International Limited,15/08/2023,661.35
"Communities, Customer & Commercial Services",Sport & Leisure,Supplies & Services,Items For Resale,SWIM ENGLAND TRADING LIMITED,10/08/2023,126.50
"Communities, Customer & Commercial Services",Sport & Leisure,Supplies & Services,Items For Resale,SWIM ENGLAND TRADING LIMITED,08/08/2023,313.70
"Communities, Customer & Commercial Services",Sport & Leisure,Premises-Related Expenditure,R&M - Mechanical,Culligan LTD,10/08/2023,117.72
"Communities, Customer & Commercial Services",Sport & Leisure,Premises-Related Expenditure,R&M - Mechanical,Culligan LTD,18/08/2023,117.72
"Communities, Customer & Commercial Services",Sport & Leisure,Supplies & Services,Financial Services,DEBIT FINANCE COLLECTIONS,02/08/2023,"1,756.18"
"Communities, Customer & Commercial Services",Sport & Leisure,Supplies & Services,Licences,L M Fitness UK Ltd,18/08/2023,"1,045.00"
"Communities, Customer & Commercial Services",Sport & Leisure,Supplies & Services,Licences,L M Fitness UK Ltd,18/08/2023,"1,045.00"
"Communities, Customer & Commercial Services",Sport & Leisure,Supplies & Services,Licences,PPL PRS Ltd,04/08/2023,"13,676.36"
"Communities, Customer & Commercial Services",Sport & Leisure,Employees,Staff Training,INSTITUTE OF SWIMMING ,08/08/2023,645.00
"Communities, Customer & Commercial Services",Sport & Leisure,Supplies & Services,Financial Services,DEBIT FINANCE COLLECTIONS,02/08/2023,140.66
"Communities, Customer & Commercial Services",Sport & Leisure,Employees,Staff Training,INSTITUTE OF SWIMMING ,08/08/2023,598.00
"Communities, Customer & Commercial Services",Sport & Leisure,Employees,Staff Training,INSTITUTE OF SWIMMING ,24/08/2023,580.00
"Communities, Customer & Commercial Services",Sport & Leisure,Supplies & Services,Equipment - Purchase,J P L LTD,03/08/2023,575.38
"Communities, Customer & Commercial Services",Sport & Leisure,Supplies & Services,Chemicals/Cleaning Products,JAK WATER SYSTEMS LTD,23/08/2023,295.24
"Communities, Customer & Commercial Services",Sport & Leisure,Supplies & Services,Items For Resale,Splash About International Limited,03/08/2023,"1,869.00"
"Communities, Customer & Commercial Services",Sport & Leisure,Supplies & Services,Items For Resale,SWIM ENGLAND TRADING LIMITED,11/08/2023,879.75
"Communities, Customer & Commercial Services",Sport & Leisure,Supplies & Services,Items For Resale,SWIM ENGLAND TRADING LIMITED,02/08/2023,293.80
"Communities, Customer & Commercial Services",Sport & Leisure,Supplies & Services,Fees,Austin Mix Ltd,09/08/2023,"2,428.00"
"Communities, Customer & Commercial Services",Sport & Leisure,Capital Expenditure,Payments to Contractor,A Designs Limited,05/08/2023,205.00
"Communities, Customer & Commercial Services",Sport & Leisure,Capital Expenditure,Payments to Contractor,REDACTED PERSONAL INFORMATION,01/08/2023,559.93
"Communities, Customer & Commercial Services",Sport & Leisure,Capital Expenditure,Payments to Contractor,Red Kite Network Limited,17/08/2023,"12,685.35"
"Communities, Customer & Commercial Services",Sport & Leisure,Capital Expenditure,Payments to Contractor,Surfacing Standards Ltd,16/08/2023,"2,700.00"
"Communities, Customer & Commercial Services",Sport & Leisure,Capital Expenditure,Payments to Contractor,Surfacing Standards Ltd,16/08/2023,650.00
Corporate Communications,Communications & Marketing,Supplies & Services,Other Expenses,The Curiuous Way,02/08/2023,600.00
Corporate Items,Corporate Codes,Capital Financing Costs,Penalty Deductions,PYRAMID SCHOOLS LTD,03/08/2023,"-1,332.84"
Corporate Items,Corporate Codes,Capital Financing Costs,Unitary Charge,PYRAMID SCHOOLS LTD,03/08/2023,"1,005,653.64"
Corporate Items,Corporate Codes,Employees,Agency Supply Costs,Matrix SCM,11/08/2023,"32,596.58"
Corporate Items,Corporate Codes,Employees,Agency Supply Costs,Matrix SCM,01/08/2023,"49,679.14"
Corporate Items,Corporate Codes,Employees,Agency Supply Costs,Matrix SCM,08/08/2023,"36,686.45"
Corporate Items,Corporate Codes,Employees,Agency Supply Costs,Matrix SCM,24/08/2023,"29,809.37"
Corporate Items,Corporate Codes,Employees,Agency Supply Costs,Matrix SCM,18/08/2023,"38,927.02"
Corporate Items,Corporate Codes,Supplies & Services,Other Grants (Expenses),Great Dawley Town Council,22/08/2023,"7,684.45"
Corporate Items,Corporate Codes,Supplies & Services,Other Grants (Expenses),MADELEY TOWN COUNCIL ,22/08/2023,"1,096.49"
Corporate Items,Corporate Codes,Supplies & Services,Other Grants (Expenses),OAKENGATES TOWN COUNCIL,22/08/2023,"6,274.81"
Corporate Items,Corporate Codes,Supplies & Services,Other Grants (Expenses),ST GEORGES & PRIORSLEE PARISH COUNCIL,22/08/2023,285.06
Corporate Items,Corporate Codes,Supplies & Services,Other Grants (Expenses),WELLINGTON TOWN COUNCIL,22/08/2023,146.96
Corporate Items,Corporate Codes,Supplies & Services,Other Grants (Expenses),WROCKWARDINE WOOD & TRENCH PC ,22/08/2023,203.73
Education & Skills,Consultancy & Advisory Services,Employees,Staff Training,ITS Training Limited,03/08/2023,335.00
Education & Skills,Consultancy & Advisory Services,Premises-Related Expenditure,Hire Of Rooms,Mercure Telford Centre Hotel,10/08/2023,139.17
Education & Skills,Consultancy & Advisory Services,Premises-Related Expenditure,Hire Of Rooms,MEETING POINT TRUST LTD,14/08/2023,230.00
Education & Skills,Consultancy & Advisory Services,Supplies & Services,Marketing & Publicity,Deco Stitch Ltd,14/08/2023,644.87
Education & Skills,Consultancy & Advisory Services,Supplies & Services,Other Grants (Expenses),AFC Telford United Foundation CIC,22/08/2023,476.88
Education & Skills,Consultancy & Advisory Services,Supplies & Services,Other Grants (Expenses),IRONBRIDGE GORGE MUSEUM TRUST LTD,01/08/2023,656.25
Education & Skills,Consultancy & Advisory Services,Supplies & Services,Other Grants (Expenses),MEETING POINT TRUST LTD,14/08/2023,126.00
Education & Skills,Consultancy & Advisory Services,Supplies & Services,Other Grants (Expenses),Portalkids Ltd,14/08/2023,"2,209.79"
Education & Skills,Consultancy & Advisory Services,Supplies & Services,Other Grants (Expenses),School of Coding Ltd,01/08/2023,"3,374.25"
Education & Skills,Consultancy & Advisory Services,Supplies & Services,Other Grants (Expenses),School of Coding Ltd,01/08/2023,"3,750.00"
Education & Skills,Consultancy & Advisory Services,Supplies & Services,Other Grants (Expenses),School of Coding Ltd,01/08/2023,"6,750.00"
Education & Skills,Education & Skills,Capital Expenditure,Payments to Contractor,PAVE AWAYS LTD,10/08/2023,"6,531.30"
Education & Skills,Education & Skills,Capital Expenditure,External Professional Fees,W H SOLICITORS,18/08/2023,"1,203.60"
Education & Skills,Education & Skills,Capital Expenditure,External Professional Fees,W H SOLICITORS,18/08/2023,136.80
Education & Skills,Education & Skills,Capital Expenditure,External Professional Fees,W H SOLICITORS,18/08/2023,700.00
Education & Skills,Education & Skills,Capital Expenditure,Payments to Contractor,SGS United Kingdom Limited,14/08/2023,150.00
Education & Skills,Education & Skills,Capital Expenditure,Payments to Contractor,SGS United Kingdom Limited,01/08/2023,975.00
Education & Skills,Education & Skills,Capital Expenditure,Payments to Contractor,SGS United Kingdom Limited,01/08/2023,975.00
Education & Skills,Education & Skills,Capital Expenditure,Payments to Contractor,Services in Design Ltd,21/08/2023,322.25
Education & Skills,Education & Skills,Capital Expenditure,Payments to Contractor,TAYLORS MECHANICAL H & P SERVICES LTD,21/08/2023,"6,530.00"
Education & Skills,Education & Skills,Capital Expenditure,Payments to Contractor,SGS United Kingdom Limited,21/08/2023,125.00
Education & Skills,Education & Skills,Capital Expenditure,Payments to Contractor,W H SOLICITORS,01/08/2023,486.40
Education & Skills,Education & Skills,Capital Expenditure,Payments to Contractor,Security Wise Ltd,21/08/2023,"2,215.00"
Education & Skills,Education & Skills,Capital Expenditure,Payments to Contractor,TAYLORS MECHANICAL H & P SERVICES LTD,21/08/2023,"17,805.81"
Education & Skills,Education & Skills,Capital Expenditure,Payments to Contractor,SMS Connections plc,21/08/2023,"1,767.35"
Education & Skills,Education & Skills,Capital Expenditure,Payments to Contractor,SMS Connections plc,21/08/2023,"1,657.65"
Education & Skills,Education & Skills,Capital Expenditure,Payments to Contractor,GRANVILLE CONSTRUCTION & MAINTENANCE LTD,10/08/2023,410.80
Education & Skills,Education & Skills,Capital Expenditure,Payments to Contractor,Services in Design Ltd,21/08/2023,"2,516.67"
Education & Skills,Education & Skills,Capital Expenditure,Payments to Contractor,TDR Heating & Ventilation Engineers,18/08/2023,"38,684.00"
Education & Skills,Education & Skills,Capital Expenditure,Payments to Contractor,SGS United Kingdom Limited,14/08/2023,450.00
Education & Skills,Education & Skills,Capital Expenditure,Payments to Contractor,PP ELECTRICAL SERVICES Ltd,11/08/2023,"1,800.00"
Education & Skills,Pupil Support Services,Supplies & Services,Equipment - Purchase,N MUSICAL INSTRUMENTS,08/08/2023,733.25
Education & Skills,Pupil Support Services,Supplies & Services,Equipment - Purchase,TTS GROUP LTD,18/08/2023,103.96
Education & Skills,SEND (0-25),Transport-Related Expenditure,Taxi Costs,365 Transports Ltd,01/08/2023,385.00
Education & Skills,SEND (0-25),Transport-Related Expenditure,Transport Contractors,A-STAR TRANSPORT MIDLANDS LTD,01/08/2023,"3,250.00"
Education & Skills,SEND (0-25),Third Party Payments,DSG - High Needs Block,ABC Day Nursery ,10/08/2023,"1,168.94"
Education & Skills,SEND (0-25),Third Party Payments,DSG - High Needs Block,Busy Bees Day Nursery Telford,10/08/2023,584.47
Education & Skills,SEND (0-25),Third Party Payments,DSG - High Needs Block,Chec Mates Day Care,10/08/2023,"2,096.98"
Education & Skills,SEND (0-25),Third Party Payments,DSG - High Needs Block,Church Street Day Nursery,10/08/2023,"1,753.41"
Education & Skills,SEND (0-25),Third Party Payments,DSG - High Needs Block,Lawley Village Academy,10/08/2023,335.84
Education & Skills,SEND (0-25),Third Party Payments,DSG - High Needs Block,Twiggy�s Day Nursery ,10/08/2023,584.47
Education & Skills,SEND (0-25),Third Party Payments,DSG - High Needs Block,TWIGGYS DAY NURSERY ,10/08/2023,584.47
Education & Skills,SEND (0-25),Third Party Payments,DSG - High Needs Block,Wrekin View Primary School,10/08/2023,335.84
Education & Skills,SEND (0-25),Premises-Related Expenditure,Hire Of Rooms,Mercure Telford Centre Hotel,17/08/2023,155.83
Education & Skills,SEND (0-25),Supplies & Services,Other Services,E B  LTD,17/08/2023,"2,750.00"
Education & Skills,SEND (0-25),Supplies & Services,Other Services,E B  LTD,17/08/2023,"2,750.00"
Education & Skills,SEND (0-25),Supplies & Services,Training Costs - Participants Recharged,Mercure Telford Centre Hotel,17/08/2023,117.08
Education & Skills,SEND (0-25),Supplies & Services,Other Services,Permanent Futures Ltd,17/08/2023,"1,100.00"
Education & Skills,SEND (0-25),Third Party Payments,Health Funded Services,SHROPSHIRE COMMUNITY HEALTH NHS TRUST,10/08/2023,"4,000.00"
Education & Skills,SEND (0-25),Third Party Payments,DSG - High Needs Block,Crudgington Primary School,14/08/2023,610.69
Education & Skills,SEND (0-25),Third Party Payments,DSG - High Needs Block,Dawley C of E Primary Academy,14/08/2023,610.69
Education & Skills,SEND (0-25),Third Party Payments,DSG - High Needs Block,Grange Park Primary School,14/08/2023,"4,013.07"
Education & Skills,SEND (0-25),Third Party Payments,DSG - High Needs Block,Lawley Village Academy,14/08/2023,610.69
Education & Skills,SEND (0-25),Third Party Payments,DSG - High Needs Block,PRIORSLEE ACADEMY,14/08/2023,"2,617.22"
Education & Skills,SEND (0-25),Third Party Payments,DSG - High Needs Block,Redhill Primary Academy,14/08/2023,"3,140.67"
Education & Skills,SEND (0-25),Third Party Payments,DSG - High Needs Block,St Peter�s Bratton C of E Academy,14/08/2023,"1,832.06"
Education & Skills,SEND (0-25),Third Party Payments,DSG - High Needs Block,Windmill Primary School Academy,14/08/2023,"2,966.18"
Education & Skills,SEND (0-25),Third Party Payments,DSG - High Needs Block,Wrekin View Primary School,14/08/2023,"3,925.83"
Education & Skills,SEND (0-25),Third Party Payments,DSG - High Needs Block,ABRAHAM DARBY ACADEMY ,14/08/2023,"6,455.82"
Education & Skills,SEND (0-25),Third Party Payments,DSG - High Needs Block,CAT - Telford Priory School,14/08/2023,"6,892.02"
Education & Skills,SEND (0-25),Third Party Payments,DSG - High Needs Block,Charlton Academy,14/08/2023,"4,623.76"
Education & Skills,SEND (0-25),Third Party Payments,DSG - High Needs Block,Ercall Wood Academy,14/08/2023,"9,160.28"
Education & Skills,SEND (0-25),Third Party Payments,DSG - High Needs Block,Hadley Learning Community Academy,14/08/2023,"1,483.09"
Education & Skills,SEND (0-25),Third Party Payments,DSG - High Needs Block,Hadley Learning Community Academy,14/08/2023,"18,931.24"
Education & Skills,SEND (0-25),Third Party Payments,DSG - High Needs Block,MADELEY ACADEMY TRUST LTD,14/08/2023,"4,711.00"
Education & Skills,SEND (0-25),Third Party Payments,DSG - High Needs Block,NEWPORT GIRLS HIGH SCHOOL ACADEMY TRUST,14/08/2023,610.69
Education & Skills,SEND (0-25),Third Party Payments,DSG - High Needs Block,Telford Park School,14/08/2023,"9,596.49"
Education & Skills,SEND (0-25),Third Party Payments,DSG - High Needs Block,The Telford Langley School ,14/08/2023,"6,892.02"
Education & Skills,SEND (0-25),Third Party Payments,DSG - High Needs Block,Queensway HLC,30/08/2023,"45,718.50"
Education & Skills,SEND (0-25),Third Party Payments,DSG - High Needs Block,Queensway HLC,30/08/2023,"47,356.50"
Education & Skills,SEND (0-25),Third Party Payments,DSG - High Needs Block,Queensway HLC,30/08/2023,"27,549.25"
Education & Skills,SEND (0-25),Third Party Payments,DSG - High Needs Block,Queensway HLC,30/08/2023,"43,726.75"
Education & Skills,SEND (0-25),Third Party Payments,DSG - High Needs Block,Acorn Education & Care Ltd,17/08/2023,"19,532.01"
Education & Skills,SEND (0-25),Third Party Payments,DSG - High Needs Block,Acorn Education & Care Ltd,17/08/2023,"28,969.66"
Education & Skills,SEND (0-25),Third Party Payments,DSG - High Needs Block,Bettws Lifehouse Ltd,10/08/2023,"3,850.00"
Education & Skills,SEND (0-25),Third Party Payments,DSG - High Needs Block,Bettws Lifehouse Ltd,10/08/2023,"14,666.67"
Education & Skills,SEND (0-25),Third Party Payments,DSG - High Needs Block,Bettws Lifehouse Ltd,10/08/2023,"10,000.00"
Education & Skills,SEND (0-25),Third Party Payments,DSG - High Needs Block,Bettws Lifehouse Ltd,10/08/2023,"7,500.00"
Education & Skills,SEND (0-25),Third Party Payments,DSG - High Needs Block,HORIZON CARE & EDUCATION GROUP LTD,17/08/2023,"26,836.03"
Education & Skills,SEND (0-25),Third Party Payments,DSG - High Needs Block,SHROPSHIRE COUNCIL,10/08/2023,"14,300.00"
Education & Skills,SEND (0-25),Third Party Payments,DSG - High Needs Block,Young Foundations Ltd,10/08/2023,"6,350.26"
Education & Skills,SEND (0-25),Third Party Payments,DSG - High Needs Block,Young Foundations Ltd,10/08/2023,"4,762.69"
Education & Skills,SEND (0-25),Third Party Payments,DSG - High Needs Block,Cheslyn Hay Academy,10/08/2023,"9,876.00"
Education & Skills,SEND (0-25),Third Party Payments,DSG - High Needs Block,Pine Green Academy,10/08/2023,"10,315.05"
Education & Skills,SEND (0-25),Third Party Payments,DSG - High Needs Block,CHILDCARE SOS,10/08/2023,"3,326.18"
Education & Skills,SEND (0-25),Third Party Payments,DSG - High Needs Block,HADLEY UNDER 5�S ,10/08/2023,899.26
Education & Skills,SEND (0-25),Third Party Payments,DSG - High Needs Block,THE BEARS DEN PRE-SCHOOL ,10/08/2023,"3,750.12"
Education & Skills,SEND (0-25),Third Party Payments,DSG - High Needs Block,WOODEN TOPS DAY NURSERY,10/08/2023,"3,647.34"
Education & Skills,SEND (0-25),Third Party Payments,DSG - High Needs Block,WOODEN TOPS DAY NURSERY ,10/08/2023,"3,428.95"
Education & Skills,SEND (0-25),Employees,Agency Supply Costs,Guide Dogs for the Blind,17/08/2023,"4,210.26"
Education & Skills,SEND (0-25),Employees,Agency Supply Costs,Guide Dogs for the Blind,17/08/2023,"1,051.48"
Education & Skills,SEND (0-25),Supplies & Services,Equipment - Purchase,CONNEVANS LIMITED,02/08/2023,119.95
Education & Skills,SEND (0-25),Supplies & Services,Equipment - Purchase,CONNEVANS LIMITED,30/08/2023,203.80
Education & Skills,SEND (0-25),Third Party Payments,DSG - High Needs Block,Chalkline Education & Support Ltd,10/08/2023,750.00
Education & Skills,SEND (0-25),Third Party Payments,DSG - High Needs Block,Chalkline Education & Support Ltd,10/08/2023,300.00
Education & Skills,SEND (0-25),Third Party Payments,DSG - High Needs Block,Chalkline Education & Support Ltd,10/08/2023,360.00
Education & Skills,SEND (0-25),Third Party Payments,DSG - High Needs Block,Chalkline Education & Support Ltd,10/08/2023,750.00
Education & Skills,SEND (0-25),Third Party Payments,DSG - High Needs Block,Chalkline Education & Support Ltd,17/08/2023,300.00
Education & Skills,SEND (0-25),Third Party Payments,DSG - High Needs Block,Chalkline Education & Support Ltd,17/08/2023,750.00
Education & Skills,SEND (0-25),Third Party Payments,DSG - High Needs Block,HRP Education,10/08/2023,460.00
Education & Skills,SEND (0-25),Third Party Payments,DSG - High Needs Block,HRP Education,10/08/2023,260.00
Education & Skills,SEND (0-25),Third Party Payments,DSG - High Needs Block,HRP Education,10/08/2023,115.00
Education & Skills,SEND (0-25),Third Party Payments,DSG - High Needs Block,HRP Education,10/08/2023,735.00
Education & Skills,SEND (0-25),Third Party Payments,DSG - High Needs Block,HRP Education,10/08/2023,230.00
Education & Skills,SEND (0-25),Third Party Payments,DSG - High Needs Block,HRP Education,10/08/2023,172.50
Education & Skills,SEND (0-25),Third Party Payments,DSG - High Needs Block,HRP Education,10/08/2023,460.00
Education & Skills,SEND (0-25),Third Party Payments,DSG - High Needs Block,HRP Education,10/08/2023,780.00
Education & Skills,SEND (0-25),Third Party Payments,DSG - High Needs Block,HRP Education,10/08/2023,780.00
Education & Skills,SEND (0-25),Third Party Payments,DSG - High Needs Block,HRP Education,10/08/2023,"1,040.00"
Education & Skills,SEND (0-25),Third Party Payments,DSG - High Needs Block,HRP Education,10/08/2023,431.25
Education & Skills,SEND (0-25),Third Party Payments,DSG - High Needs Block,HRP Education,10/08/2023,172.50
Education & Skills,SEND (0-25),Third Party Payments,DSG - High Needs Block,HRP Education,10/08/2023,260.00
Education & Skills,SEND (0-25),Third Party Payments,DSG - High Needs Block,HRP Education,10/08/2023,780.00
Education & Skills,SEND (0-25),Third Party Payments,DSG - High Needs Block,HRP Education,10/08/2023,115.00
Education & Skills,SEND (0-25),Third Party Payments,DSG - High Needs Block,HRP Education,10/08/2023,"1,040.00"
Education & Skills,SEND (0-25),Third Party Payments,DSG - High Needs Block,HRP Education,10/08/2023,431.25
Education & Skills,SEND (0-25),Supplies & Services,Health & Safety Expenses,Activate for Kids Ltd,17/08/2023,"5,580.25"
Education & Skills,SEND (0-25),Supplies & Services,Health & Safety Expenses,Schuchmann LLP,17/08/2023,164.00
Education & Skills,SEND (0-25),Third Party Payments,DSG - High Needs Block,ABC Day Nursery ,14/08/2023,204.22
Education & Skills,SEND (0-25),Third Party Payments,DSG - High Needs Block,Grange Park Primary School,14/08/2023,141.04
Education & Skills,SEND (0-25),Third Party Payments,DSG - High Needs Block,Lawley Village Academy,14/08/2023,120.65
Education & Skills,SEND (0-25),Third Party Payments,DSG - High Needs Block,PRIORSLEE ACADEMY,14/08/2023,272.29
Education & Skills,SEND (0-25),Third Party Payments,DSG - High Needs Block,Windmill Primary School Academy,14/08/2023,176.18
Education & Skills,SEND (0-25),Third Party Payments,DSG - High Needs Block,Acorn Education & Care Ltd,17/08/2023,"33,800.00"
Education & Skills,SEND (0-25),Third Party Payments,DSG - High Needs Block,CROSSBAR COACHING,17/08/2023,"7,812.00"
Education & Skills,SEND (0-25),Third Party Payments,DSG - High Needs Block,CROSSBAR COACHING,17/08/2023,"7,812.00"
Education & Skills,SEND (0-25),Third Party Payments,DSG - High Needs Block,NOVA TRAINING LTD,10/08/2023,744.52
Education & Skills,SEND (0-25),Third Party Payments,DSG - High Needs Block,Tettenhall College,10/08/2023,630.00
Education & Skills,SEND (0-25),Third Party Payments,DSG - High Needs Block,The Really NEET Project Ltd,10/08/2023,"3,493.97"
Education & Skills,SEND (0-25),Third Party Payments,DSG - High Needs Block,SHREWSBURY COLLEGES GROUP,21/08/2023,"21,460.34"
Education & Skills,Skills,Employees,Course Fees,UNIVERSITY OF WOLVERHAMPTON ,03/08/2023,"1,017.00"
Education & Skills,Skills,Premises-Related Expenditure,Hire Of Rooms,Dawley Social Club,01/08/2023,"1,465.00"
Education & Skills,Skills,Premises-Related Expenditure,Hire Of Rooms,DONNINGTON PARTNERSHIP,15/08/2023,157.25
Education & Skills,Skills,Premises-Related Expenditure,Hire Of Rooms,HADLEY & LEEGOMERY PARISH COUNCIL,01/08/2023,328.13
Education & Skills,Skills,Premises-Related Expenditure,Hire Of Rooms,MADELEY TOWN COUNCIL ,01/08/2023,110.00
Education & Skills,Skills,Premises-Related Expenditure,Hire Of Rooms,MEETING POINT TRUST LTD,01/08/2023,140.00
Education & Skills,Skills,Premises-Related Expenditure,Hire Of Rooms,Sutton Hill Community Trust,15/08/2023,116.25
Education & Skills,Skills,Premises-Related Expenditure,Hire Of Rooms,The Leegate Centre CIC,15/08/2023,120.00
Education & Skills,Skills,Supplies & Services,Computer Software (Maint),CogniSoft Limited,16/08/2023,"2,625.00"
Education & Skills,Skills,Supplies & Services,Stationery,Digital ID Ltd,01/08/2023,461.45
Education & Skills,Skills,Supplies & Services,Subscriptions,Holex,15/08/2023,945.00
Education & Skills,Skills,Third Party Payments,Childminders,CHILDCARE SOS,23/08/2023,743.75
Education & Skills,Skills,Employees,Course Fees,QUALSAFE.COM,03/08/2023,228.50
Education & Skills,Skills,Premises-Related Expenditure,Hire Of Rooms,Sutton Hill Community Trust,01/08/2023,120.00
Education & Skills,Skills,Premises-Related Expenditure,Hire Of Rooms,MEETING POINT TRUST LTD,22/08/2023,213.35
Education & Skills,Skills,Supplies & Services,Subscriptions,Career Development Institute,22/08/2023,190.00
Education & Skills,Skills,Premises-Related Expenditure,Hire Of Rooms,Sutton Hill Community Trust,09/08/2023,131.25
Education & Skills,Skills,Third Party Payments,Childminders,CHILDCARE SOS,23/08/2023,157.50
Finance & Human Resources,Finance Manager (Corporate & Capital),Employees,Staff Training,Severn Financial Training,11/08/2023,"2,032.50"
Finance & Human Resources,Finance Manager (Corporate & Capital),Employees,Staff Training,Severn Financial Training,11/08/2023,487.50
Finance & Human Resources,Finance Manager (Corporate & Capital),Supplies & Services,Bank Charges,TALL Security Print Ltd,17/08/2023,283.45
Finance & Human Resources,Finance Manager (Corporate & Capital),Supplies & Services,Bank Charges,TALL Security Print Ltd,17/08/2023,113.38
Finance & Human Resources,Finance Manager (Corporate & Capital),Supplies & Services,Bank Charges,TrueCommerce Limited,14/08/2023,968.35
Finance & Human Resources,Human Resources,Employees,Criminal Records Bureau Checks,Capita Recruitment Vetting Service ,03/08/2023,861.31
Finance & Human Resources,Human Resources,Employees,Criminal Records Bureau Checks,DISCLOSURE & BARRING SERVICE,09/08/2023,"14,150.00"
Finance & Human Resources,Human Resources,Employees,Criminal Records Bureau Checks,Matrix Security Watchdog,23/08/2023,726.90
Finance & Human Resources,Human Resources,Supplies & Services,Doctors Fees,Get Medic Ltd,14/08/2023,490.00
Finance & Human Resources,Human Resources,Supplies & Services,Subscriptions,LNRS Data Services Limited,30/08/2023,797.25
Finance & Human Resources,Human Resources,Supplies & Services,Doctors Fees,Talos 360 Ltd,23/08/2023,399.00
Finance & Human Resources,Human Resources,Supplies & Services,Doctors Fees,Talos 360 Ltd,23/08/2023,399.00
Finance & Human Resources,Human Resources,Supplies & Services,Doctors Fees,WELLINGTON MEDICAL PRACTICE,01/08/2023,170.00
Finance & Human Resources,Revenues,Supplies & Services,Printing - Other,ALLWAG PROMOTIONS LTD,29/08/2023,"1,465.00"
Finance & Human Resources,Revenues,Supplies & Services,Printing - Other,IMPACT MAIL & PRINT LTD,04/08/2023,"5,985.00"
Finance & Human Resources,Revenues,Supplies & Services,Printing - Other,MailSolutions,09/08/2023,"1,023.00"
Finance & Human Resources,Revenues,Supplies & Services,Printing - Other,MARKETING AT THE MILL,11/08/2023,320.00
Finance & Human Resources,Revenues,Supplies & Services,Printing - Other,MARKETING AT THE MILL,02/08/2023,200.00
Finance & Human Resources,Revenues,Supplies & Services,Printing - Other,MARKETING AT THE MILL,15/08/2023,110.00
Finance & Human Resources,Revenues,Supplies & Services,Printing - Other,MARKETING AT THE MILL,22/08/2023,200.00
Finance & Human Resources,Revenues,Supplies & Services,Stationery,PREMIER PAPER GROUP LTD,15/08/2023,163.50
Finance & Human Resources,Revenues,Supplies & Services,Stationery,PREMIER PAPER GROUP LTD,09/08/2023,163.50
Finance & Human Resources,Revenues,Supplies & Services,Stationery,PREMIER PAPER GROUP LTD,11/08/2023,163.50
Finance & Human Resources,Revenues,Supplies & Services,Stationery,PREMIER PAPER GROUP LTD,11/08/2023,-163.50
Finance & Human Resources,Revenues,Supplies & Services,Stationery,PREMIER PAPER GROUP LTD,16/08/2023,261.60
Finance & Human Resources,Revenues,Supplies & Services,Stationery,PREMIER PAPER GROUP LTD,09/08/2023,163.50
Finance & Human Resources,Revenues,Supplies & Services,Printing - Other,Prontaprint - Stratford,22/08/2023,356.13
Finance & Human Resources,Revenues,Supplies & Services,Printing - Other,T PRINT & SIGNS,03/08/2023,320.00
Finance & Human Resources,Revenues,Supplies & Services,Printing - Other,Visual Print & Design,30/08/2023,305.00
Finance & Human Resources,Revenues,Supplies & Services,Stationery,Francotyp Postalia Ltd ,02/08/2023,375.20
Finance & Human Resources,Revenues,Supplies & Services,Franking Machine Service,FRANCOTYP-POSTALIA LTD,11/08/2023,"1,500.00"
Finance & Human Resources,Revenues,Supplies & Services,Postages,ROYAL MAIL GROUP PLC ,11/08/2023,"3,453.40"
Finance & Human Resources,Revenues,Supplies & Services,Postages,ROYAL MAIL GROUP PLC ,18/08/2023,"25,449.19"
Finance & Human Resources,Revenues,Supplies & Services,Postages,ROYAL MAIL GROUP PLC ,18/08/2023,"15,749.21"
Finance & Human Resources,Revenues,Supplies & Services,Postages,ROYAL MAIL GROUP PLC ,18/08/2023,574.67
Finance & Human Resources,Revenues,Supplies & Services,Postages,ROYAL MAIL GROUP PLC ,29/08/2023,"4,532.25"
Finance & Human Resources,Revenues,Supplies & Services,Other Expenses,CAPS,01/08/2023,212.03
Finance & Human Resources,Revenues,Premises-Related Expenditure,Hire Of Rooms,Anstice Community Trust,25/08/2023,120.00
Finance & Human Resources,Revenues,Supplies & Services,Printing - Other,Financial Data Management plc,04/08/2023,450.34
Finance & Human Resources,Revenues,Supplies & Services,Printing - Other,Financial Data Management plc,04/08/2023,210.91
Finance & Human Resources,Revenues,Supplies & Services,Printing - Other,Financial Data Management plc,04/08/2023,993.21
Finance & Human Resources,Revenues,Supplies & Services,Printing - Other,Financial Data Management plc,04/08/2023,188.38
Finance & Human Resources,Revenues,Supplies & Services,Printing - Other,Financial Data Management plc,04/08/2023,496.12
Finance & Human Resources,Revenues,Supplies & Services,Printing - Other,Financial Data Management plc,04/08/2023,201.42
Finance & Human Resources,Revenues,Supplies & Services,Printing - Other,Financial Data Management plc,04/08/2023,700.25
Finance & Human Resources,Revenues,Supplies & Services,Printing - Other,Financial Data Management plc,04/08/2023,171.45
Finance & Human Resources,Revenues,Supplies & Services,Printing - Other,Financial Data Management plc,11/08/2023,338.32
Finance & Human Resources,Revenues,Supplies & Services,Printing - Other,Financial Data Management plc,11/08/2023,166.22
Finance & Human Resources,Revenues,Supplies & Services,Postages,Financial Data Management plc,11/08/2023,"1,057.76"
Finance & Human Resources,Revenues,Supplies & Services,Postages,Financial Data Management plc,11/08/2023,400.26
Finance & Human Resources,Revenues,Supplies & Services,Postages,Financial Data Management plc,11/08/2023,192.19
Finance & Human Resources,Revenues,Supplies & Services,Postages,Financial Data Management plc,11/08/2023,"1,108.54"
Finance & Human Resources,Revenues,Supplies & Services,Postages,Financial Data Management plc,11/08/2023,346.60
Finance & Human Resources,Revenues,Supplies & Services,Postages,Financial Data Management plc,11/08/2023,"1,086.06"
Finance & Human Resources,Revenues,Supplies & Services,Postages,Financial Data Management plc,11/08/2023,200.30
Finance & Human Resources,Revenues,Supplies & Services,Postages,Financial Data Management plc,11/08/2023,577.45
Finance & Human Resources,Revenues,Supplies & Services,Postages,Financial Data Management plc,18/08/2023,508.70
Finance & Human Resources,Revenues,Supplies & Services,Postages,Financial Data Management plc,18/08/2023,333.52
Finance & Human Resources,Revenues,Supplies & Services,Postages,Financial Data Management plc,18/08/2023,475.23
Finance & Human Resources,Revenues,Supplies & Services,Postages,Financial Data Management plc,18/08/2023,378.22
Finance & Human Resources,Revenues,Supplies & Services,Postages,Financial Data Management plc,18/08/2023,854.68
Finance & Human Resources,Revenues,Supplies & Services,Postages,Financial Data Management plc,18/08/2023,200.82
Finance & Human Resources,Revenues,Supplies & Services,Consultancy,G K Ltd,11/08/2023,"1,140.00"
Finance & Human Resources,Revenues,Supplies & Services,Consultancy,Inform CPI Ltd,03/08/2023,"1,250.00"
Finance & Human Resources,Revenues,Supplies & Services,Consultancy,Inform CPI Ltd,22/08/2023,200.00
Finance & Human Resources,Revenues,Supplies & Services,Consultancy,Inform CPI Ltd,25/08/2023,"18,700.00"
Finance & Human Resources,Revenues,Third Party Payments,Private Contractors,R LTD,01/08/2023,163.73
Health & Wellbeing,Consultant in Public Health,Premises-Related Expenditure,Hire Of Rooms,MEETING POINT TRUST LTD,02/08/2023,120.40
Health & Wellbeing,Consultant in Public Health,Supplies & Services,Equipment - Hire,Engaging Communities Solutions ,09/08/2023,"5,000.00"
Health & Wellbeing,Consultant in Public Health,Third Party Payments,Health Funded Services,NHS Shropshire Telford & Wrekin ICB ,23/08/2023,"2,021.81"
Health & Wellbeing,Consultant in Public Health,Supplies & Services,Sub Contractors,A Better Tomorrow C.I.C.,23/08/2023,160.00
Health & Wellbeing,Consultant in Public Health,Supplies & Services,Sub Contractors,A Better Tomorrow C.I.C.,01/08/2023,"11,500.00"
Health & Wellbeing,Consultant in Public Health,Supplies & Services,Sub Contractors,R Fellowship,02/08/2023,"29,525.44"
Health & Wellbeing,Consultant in Public Health,Supplies & Services,Sub Contractors,A Rapid Diagnostics Limited,04/08/2023,156.00
Health & Wellbeing,Consultant in Public Health,Supplies & Services,Sub Contractors,A Rapid Diagnostics Limited,02/08/2023,355.00
Health & Wellbeing,Consultant in Public Health,Supplies & Services,Sub Contractors,A Rapid Diagnostics Limited,02/08/2023,-355.00
Health & Wellbeing,Consultant in Public Health,Supplies & Services,Sub Contractors,A Rapid Diagnostics Limited,02/08/2023,330.00
Health & Wellbeing,Consultant in Public Health,Supplies & Services,Sub Contractors,A Rapid Diagnostics Limited,17/08/2023,156.00
Health & Wellbeing,Consultant in Public Health,Supplies & Services,Sub Contractors,A Rapid Diagnostics Limited,17/08/2023,156.00
Health & Wellbeing,Consultant in Public Health,Supplies & Services,Sub Contractors,A Rapid Diagnostics Limited,17/08/2023,360.00
Health & Wellbeing,Consultant in Public Health,Supplies & Services,Sub Contractors,A Rapid Diagnostics Limited,17/08/2023,156.00
Health & Wellbeing,Consultant in Public Health,Supplies & Services,Sub Contractors,A Rapid Diagnostics Limited,17/08/2023,234.00
Health & Wellbeing,Consultant in Public Health,Supplies & Services,Sub Contractors,A Rapid Diagnostics Limited,17/08/2023,120.00
Health & Wellbeing,Consultant in Public Health,Supplies & Services,Sub Contractors,A Rapid Diagnostics Limited,17/08/2023,468.00
Health & Wellbeing,Consultant in Public Health,Supplies & Services,Sub Contractors,NHS Midlands and Lancashire CSU,17/08/2023,990.25
Health & Wellbeing,Consultant in Public Health,Supplies & Services,Sub Contractors,NHS Midlands and Lancashire CSU,17/08/2023,990.25
Health & Wellbeing,Consultant in Public Health,Supplies & Services,Sub Contractors,WELLINGTON ROAD SURGERY,01/08/2023,"2,100.00"
Health & Wellbeing,Consultant in Public Health,Supplies & Services,Service Contracts,Recharge CIC ,08/08/2023,"8,125.00"
Health & Wellbeing,Consultant in Public Health,Supplies & Services,Service Contracts,Recharge CIC ,08/08/2023,"8,125.00"
Health & Wellbeing,Consultant in Public Health,Supplies & Services,Sub Contractors,Buckinghamshire Healthcare NHS Trust,08/08/2023,131.00
Health & Wellbeing,Consultant in Public Health,Supplies & Services,Sub Contractors,Chelsea and Westminster Hospital,01/08/2023,-204.84
Health & Wellbeing,Consultant in Public Health,Supplies & Services,Sub Contractors,Chelsea and Westminster Hospital,01/08/2023,338.84
Health & Wellbeing,Consultant in Public Health,Supplies & Services,Sub Contractors,The Royal Wolverhampton NHS Trust,08/08/2023,927.00
Health & Wellbeing,Consultant in Public Health,Supplies & Services,Sub Contractors,University Hospitals Birmingham NHS Foundation Trust,17/08/2023,466.00
Health & Wellbeing,Consultant in Public Health,Supplies & Services,Sub Contractors,University Hospitals Birmingham NHS Foundation Trust,17/08/2023,102.00
Health & Wellbeing,Consultant in Public Health,Supplies & Services,Sub Contractors,University Hospitals Birmingham NHS Foundation Trust,17/08/2023,393.00
Health & Wellbeing,Consultant in Public Health,Supplies & Services,Sub Contractors,University Hospitals Birmingham NHS Foundation Trust,17/08/2023,834.00
Health & Wellbeing,Consultant in Public Health,Supplies & Services,Other Services,J U Removals Ltd,11/08/2023,365.00
Health & Wellbeing,Consultant in Public Health,Supplies & Services,Other Services,SHROPSHIRE COMMUNITY HEALTH NHS TRUST,02/08/2023,"406,666.67"
Health & Wellbeing,Consultant in Public Health,Supplies & Services,Other Grants (Expenses),TELFORD MIND,02/08/2023,"6,250.00"
Health & Wellbeing,Consultant in Public Health,Premises-Related Expenditure,Other,SHREWSBURY & TELFORD HOSPITAL NHS TRUST,09/08/2023,"12,448.58"
Health & Wellbeing,Health Improvement,Premises-Related Expenditure,Hire Of Rooms,Brookside Central,11/08/2023,180.00
Health & Wellbeing,Health Improvement,Supplies & Services,Public Participation,B Archers Ltd,10/08/2023,"2,000.00"
Health & Wellbeing,Health Improvement,Supplies & Services,Equipment - Purchase,R F PHOTOGRAPHY,10/08/2023,150.00
Health & Wellbeing,Health Improvement,Premises-Related Expenditure,Hire Of Rooms,DONNINGTON PARTNERSHIP,11/08/2023,210.00
Health & Wellbeing,Health Improvement,Employees,Professional Subs,Libraries Connected,18/08/2023,793.59
Health & Wellbeing,Health Improvement,Supplies & Services,Libraries Book Fund,A & H Library Services Ltd,23/08/2023,257.38
Health & Wellbeing,Health Improvement,Supplies & Services,Libraries Book Fund,A & H Library Services Ltd,01/08/2023,228.68
Health & Wellbeing,Health Improvement,Supplies & Services,Libraries Book Fund,A & H Library Services Ltd,01/08/2023,172.00
Health & Wellbeing,Health Improvement,Supplies & Services,Libraries Book Fund,A & H Library Services Ltd,09/08/2023,196.51
Health & Wellbeing,Health Improvement,Supplies & Services,Libraries Book Fund,A & H Library Services Ltd,17/08/2023,158.14
Health & Wellbeing,Health Improvement,Supplies & Services,Libraries Book Fund,A & H Library Services Ltd,22/08/2023,150.18
Health & Wellbeing,Health Improvement,Supplies & Services,Libraries Book Fund,A & H Library Services Ltd,22/08/2023,101.33
Health & Wellbeing,Health Improvement,Supplies & Services,Libraries Book Fund,A & H Library Services Ltd,22/08/2023,167.84
Health & Wellbeing,Health Improvement,Supplies & Services,Libraries Book Fund,A & H Library Services Ltd,22/08/2023,126.91
Health & Wellbeing,Health Improvement,Supplies & Services,Libraries Book Fund,A & H Library Services Ltd,24/08/2023,184.26
Health & Wellbeing,Health Improvement,Supplies & Services,Libraries Book Fund,P  LTD,08/08/2023,581.10
Health & Wellbeing,Health Improvement,Supplies & Services,Libraries Book Fund,P  LTD,22/08/2023,194.05
Health & Wellbeing,Health Improvement,Supplies & Services,Libraries Book Fund,P  LTD,22/08/2023,187.35
Health & Wellbeing,Health Improvement,Supplies & Services,Libraries Book Fund,P  LTD,22/08/2023,315.15
Health & Wellbeing,Health Improvement,Supplies & Services,Libraries Book Fund,ULVERSCROFT LARGE PRINT BOOKS LIMITED,24/08/2023,639.27
Health & Wellbeing,Health Improvement,Supplies & Services,Libraries Book Fund,W F H LTD,23/08/2023,135.20
Health & Wellbeing,Health Improvement,Supplies & Services,Libraries Book Fund,W F H LTD,22/08/2023,185.06
Health & Wellbeing,Health Improvement,Supplies & Services,Libraries Book Fund,W F H LTD,22/08/2023,131.94
Health & Wellbeing,Health Improvement,Supplies & Services,Libraries Book Fund,W F H LTD,22/08/2023,123.22
Health & Wellbeing,Health Improvement,Supplies & Services,Computer Software (Maint),AXIELL LTD,09/08/2023,"5,220.87"
Health & Wellbeing,Health Protection,Supplies & Services,Consultancy,Vivid Resourcing,21/08/2023,"1,672.77"
Health & Wellbeing,Health Protection,Supplies & Services,Consultancy,Vivid Resourcing,14/08/2023,"2,090.96"
Health & Wellbeing,Health Protection,Supplies & Services,Consultancy,Vivid Resourcing,14/08/2023,836.39
Health & Wellbeing,Health Protection,Supplies & Services,Consultancy,Vivid Resourcing,25/08/2023,"1,672.77"
Health & Wellbeing,Health Protection,Supplies & Services,Other Services,Northumbrian Water Limited,01/08/2023,935.06
Health & Wellbeing,Health Protection,Supplies & Services,Legal Expenses,Vortex Inflatables Ltd,11/08/2023,160.00
"Housing, Employment & Infrastructure","Housing, Employment & Infrastructure",Employees,Agency Supply Costs,The Oyster Partnership Ltd,01/08/2023,"1,360.22"
"Housing, Employment & Infrastructure","Housing, Employment & Infrastructure",Employees,Agency Supply Costs,The Oyster Partnership Ltd,08/08/2023,"1,423.10"
"Housing, Employment & Infrastructure","Housing, Employment & Infrastructure",Employees,Agency Supply Costs,The Oyster Partnership Ltd,21/08/2023,"1,467.34"
"Housing, Employment & Infrastructure","Housing, Employment & Infrastructure",Employees,Agency Supply Costs,The Oyster Partnership Ltd,21/08/2023,"1,347.49"
"Housing, Employment & Infrastructure","Housing, Employment & Infrastructure",Employees,Agency Supply Costs,The Oyster Partnership Ltd,21/08/2023,"1,566.51"
"Housing, Employment & Infrastructure",Inward Investment & Business Support,Supplies & Services,Consultancy,Breeze Strategy,14/08/2023,"4,950.00"
"Housing, Employment & Infrastructure",Inward Investment & Business Support,Supplies & Services,Marketing & Publicity,EMERGE DESIGN LTD,09/08/2023,462.00
"Housing, Employment & Infrastructure",Inward Investment & Business Support,Supplies & Services,Licences,The Curiuous Way,08/08/2023,180.00
"Housing, Employment & Infrastructure",Inward Investment & Business Support,Supplies & Services,Consultancy,WEST MIDLANDS COMBINED AUTHORITY,23/08/2023,"30,000.00"
"Housing, Employment & Infrastructure",Inward Investment & Business Support,Supplies & Services,Consultancy,Connect Consultancy Limited,08/08/2023,250.00
"Housing, Employment & Infrastructure",Inward Investment & Business Support,Supplies & Services,Consultancy,The Marches Local Enterprise Partnership,30/08/2023,"23,323.00"
"Housing, Employment & Infrastructure",Inward Investment & Business Support,Employees,Professional Subs,Connect Consultancy Limited,08/08/2023,250.00
"Housing, Employment & Infrastructure",Inward Investment & Business Support,Supplies & Services,Other Services,Alcium Software Ltd,30/08/2023,"2,350.00"
"Housing, Employment & Infrastructure",Inward Investment & Business Support,Supplies & Services,Consultancy,European Innovation Limited,21/08/2023,"3,288.89"
"Housing, Employment & Infrastructure",Inward Investment & Business Support,Supplies & Services,IT Services,Y LIMITED,09/08/2023,"1,704.00"
"Housing, Employment & Infrastructure",Inward Investment & Business Support,Capital Expenditure,Other Capital Expenditure,Broxap Ltd,03/08/2023,179.00
"Housing, Employment & Infrastructure",Inward Investment & Business Support,Capital Expenditure,Payments to Contractor,B T B ,17/08/2023,"1,079.00"
"Housing, Employment & Infrastructure",Inward Investment & Business Support,Capital Expenditure,Payments to Contractor,Castlepoint WM Limited,21/08/2023,410.00
"Housing, Employment & Infrastructure",Inward Investment & Business Support,Capital Expenditure,Payments to Contractor,C Bakery,03/08/2023,951.00
"Housing, Employment & Infrastructure",Inward Investment & Business Support,Capital Expenditure,Payments to Contractor,Madeley Laundry,09/08/2023,"1,180.00"
"Housing, Employment & Infrastructure",Inward Investment & Business Support,Capital Expenditure,Payments to Contractor,Madeley Laundry,21/08/2023,795.00
"Housing, Employment & Infrastructure",Inward Investment & Business Support,Capital Expenditure,Payments to Contractor,M J S Gardening Services,21/08/2023,240.00
"Housing, Employment & Infrastructure",Inward Investment & Business Support,Capital Expenditure,Payments to Contractor,P LTD,21/08/2023,"8,058.50"
"Housing, Employment & Infrastructure",Inward Investment & Business Support,Capital Expenditure,Payments to Contractor,P LTD,21/08/2023,"72,627.50"
"Housing, Employment & Infrastructure",Inward Investment & Business Support,Capital Expenditure,Payments to Contractor,W and P Building Contractors Ltd,23/08/2023,"2,731.83"
"Housing, Employment & Infrastructure",Local Plan,Employees,Recruitment Advertising,REDACTIVE PUBLISHING LIMITED,03/08/2023,"1,205.00"
"Housing, Employment & Infrastructure",Local Plan,Supplies & Services,Research Surveys,DLP Planning Ltd,08/08/2023,"4,222.50"
"Housing, Employment & Infrastructure",Private Sector Housing & Enforcement,Employees,Agency Supply Costs,G2 Recruitment Solutions,01/08/2023,"1,258.00"
"Housing, Employment & Infrastructure",Private Sector Housing & Enforcement,Employees,Agency Supply Costs,G2 Recruitment Solutions,01/08/2023,476.00
"Housing, Employment & Infrastructure",Private Sector Housing & Enforcement,Employees,Agency Supply Costs,G2 Recruitment Solutions,21/08/2023,"1,258.00"
"Housing, Employment & Infrastructure",Private Sector Housing & Enforcement,Premises-Related Expenditure,Contract Cleaning,Vortex Cleaning Ltd,22/08/2023,450.00
"Housing, Employment & Infrastructure",Private Sector Housing & Enforcement,Capital Expenditure,Expenditure on loans & other financial assistance,Marches Energy Agency,21/08/2023,"3,001.98"
"Housing, Employment & Infrastructure",Private Sector Housing & Enforcement,Capital Expenditure,Expenditure on loans & other financial assistance,Surefire Management Services Ltd,03/08/2023,"142,220.13"
"Housing, Employment & Infrastructure",Private Sector Housing & Enforcement,Capital Expenditure,Expenditure on loans & other financial assistance,Surefire Management Services Ltd,01/08/2023,"1,625.00"
"Housing, Employment & Infrastructure",Private Sector Housing & Enforcement,Capital Expenditure,Other Capital Expenditure,Surefire Management Services Ltd,01/08/2023,"3,055.00"
"Housing, Employment & Infrastructure",Private Sector Housing & Enforcement,Capital Expenditure,Other Capital Expenditure,Surefire Management Services Ltd,01/08/2023,950.00
"Housing, Employment & Infrastructure",Private Sector Housing & Enforcement,Capital Expenditure,Expenditure on loans & other financial assistance,Surefire Management Services Ltd,08/08/2023,"-1,690.00"
"Housing, Employment & Infrastructure",Private Sector Housing & Enforcement,Capital Expenditure,Expenditure on loans & other financial assistance,Surefire Management Services Ltd,09/08/2023,"4,062.50"
"Housing, Employment & Infrastructure",Private Sector Housing & Enforcement,Capital Expenditure,Other Capital Expenditure,Surefire Management Services Ltd,09/08/2023,"32,495.00"
"Housing, Employment & Infrastructure",Private Sector Housing & Enforcement,Capital Expenditure,Other Capital Expenditure,Surefire Management Services Ltd,09/08/2023,"10,810.00"
"Housing, Employment & Infrastructure",Private Sector Housing & Enforcement,Capital Expenditure,Expenditure on loans & other financial assistance,Surefire Management Services Ltd,09/08/2023,"5,525.00"
"Housing, Employment & Infrastructure",Private Sector Housing & Enforcement,Capital Expenditure,Expenditure on loans & other financial assistance,Surefire Management Services Ltd,21/08/2023,"38,931.54"
"Housing, Employment & Infrastructure",Private Sector Housing & Enforcement,Capital Expenditure,Expenditure on loans & other financial assistance,Surefire Management Services Ltd,21/08/2023,"54,587.43"
Neighbourhood & Enforcement Services,"Highways, Engineering & Project Delivery",Supplies & Services,Materials,Compass Minerals UK Ltd,15/08/2023,"16,673.04"
Neighbourhood & Enforcement Services,"Highways, Engineering & Project Delivery",Supplies & Services,Materials,Compass Minerals UK Ltd,15/08/2023,"11,534.94"
Neighbourhood & Enforcement Services,"Highways, Engineering & Project Delivery",Supplies & Services,Materials,Compass Minerals UK Ltd,22/08/2023,"2,533.59"
Neighbourhood & Enforcement Services,"Highways, Engineering & Project Delivery",Supplies & Services,Materials,Compass Minerals UK Ltd,15/08/2023,"12,804.42"
Neighbourhood & Enforcement Services,"Highways, Engineering & Project Delivery",Supplies & Services,Materials,Compass Minerals UK Ltd,15/08/2023,"14,126.89"
Neighbourhood & Enforcement Services,"Highways, Engineering & Project Delivery",Supplies & Services,Materials,Compass Minerals UK Ltd,22/08/2023,"8,902.59"
Neighbourhood & Enforcement Services,"Highways, Engineering & Project Delivery",Supplies & Services,Materials,Compass Minerals UK Ltd,22/08/2023,"19,099.79"
Neighbourhood & Enforcement Services,"Highways, Engineering & Project Delivery",Supplies & Services,Materials,Compass Minerals UK Ltd,22/08/2023,"10,300.47"
Neighbourhood & Enforcement Services,"Highways, Engineering & Project Delivery",Supplies & Services,Materials,Compass Minerals UK Ltd,22/08/2023,"10,302.25"
Neighbourhood & Enforcement Services,"Highways, Engineering & Project Delivery",Third Party Payments,Residential EMI,VAISALA LIMITED,29/08/2023,"9,279.00"
Neighbourhood & Enforcement Services,"Highways, Engineering & Project Delivery",Third Party Payments,Highways Contract - BBLP,Balfour Beatty Civils Limited,15/08/2023,"1,345,294.67"
Neighbourhood & Enforcement Services,"Highways, Engineering & Project Delivery",Premises-Related Expenditure,Street Lights Planned Maintenance,National Grid Electricity Distribution plc,15/08/2023,374.29
Neighbourhood & Enforcement Services,"Highways, Engineering & Project Delivery",Premises-Related Expenditure,Electricity,West Mercia Energy (WME),24/08/2023,454.49
Neighbourhood & Enforcement Services,"Highways, Engineering & Project Delivery",Premises-Related Expenditure,Electricity,West Mercia Energy (WME),24/08/2023,"62,725.61"
Neighbourhood & Enforcement Services,"Highways, Engineering & Project Delivery",Premises-Related Expenditure,Street Lights Planned Maintenance,THE MIDLAND NEWS ASSOCIATION LTD,01/08/2023,174.20
Neighbourhood & Enforcement Services,"Highways, Engineering & Project Delivery",Third Party Payments,Contractor Recharge,PRYSMIAN CABLES & SYSTEMS LTD,15/08/2023,"105,585.71"
Neighbourhood & Enforcement Services,"Highways, Engineering & Project Delivery",Third Party Payments,Contractor Recharge,PRYSMIAN CABLES & SYSTEMS LTD,15/08/2023,"88,544.46"
Neighbourhood & Enforcement Services,"Highways, Engineering & Project Delivery",Premises-Related Expenditure,Electricity,West Mercia Energy (WME),24/08/2023,510.82
Neighbourhood & Enforcement Services,"Highways, Engineering & Project Delivery",Supplies & Services,Other Services,WATER PLUS FORMERLY SEVERN TRENT WATER LTD,15/08/2023,"2,004.89"
Neighbourhood & Enforcement Services,"Highways, Engineering & Project Delivery",Premises-Related Expenditure,Lift Maintenance,STANNAH LIFT SERVICES LTD,22/08/2023,"1,661.52"
Neighbourhood & Enforcement Services,"Highways, Engineering & Project Delivery",Premises-Related Expenditure,Window Cleaning,Vortex Cleaning Ltd,29/08/2023,430.00
Neighbourhood & Enforcement Services,"Highways, Engineering & Project Delivery",Premises-Related Expenditure,Window Cleaning,Vortex Cleaning Ltd,01/08/2023,430.00
Neighbourhood & Enforcement Services,"Highways, Engineering & Project Delivery",Supplies & Services,Other Services,PUMP & PLANT SERVICES LTD,17/08/2023,195.00
Neighbourhood & Enforcement Services,"Highways, Engineering & Project Delivery",Supplies & Services,Protective Clothing,ETAK Creative Ltd,22/08/2023,284.00
Neighbourhood & Enforcement Services,"Highways, Engineering & Project Delivery",Supplies & Services,Consultancy,W Aspen,15/08/2023,"5,541.60"
Neighbourhood & Enforcement Services,"Highways, Engineering & Project Delivery",Supplies & Services,Consultancy,W Aspen,15/08/2023,114.00
Neighbourhood & Enforcement Services,"Highways, Engineering & Project Delivery",Supplies & Services,Consultancy,W Aspen,15/08/2023,144.32
Neighbourhood & Enforcement Services,"Highways, Engineering & Project Delivery",Supplies & Services,Consultancy,W Aspen,15/08/2023,"6,480.54"
Neighbourhood & Enforcement Services,"Highways, Engineering & Project Delivery",Supplies & Services,Consultancy,W Aspen,15/08/2023,218.70
Neighbourhood & Enforcement Services,"Highways, Engineering & Project Delivery",Supplies & Services,Consultancy,W Aspen,15/08/2023,150.00
Neighbourhood & Enforcement Services,"Highways, Engineering & Project Delivery",Supplies & Services,Consultancy,W Aspen,15/08/2023,184.24
Neighbourhood & Enforcement Services,"Highways, Engineering & Project Delivery",Supplies & Services,Consultancy,W Aspen,15/08/2023,140.40
Neighbourhood & Enforcement Services,"Highways, Engineering & Project Delivery",Capital Expenditure,Marketing / Advertising,THE MIDLAND NEWS ASSOCIATION LTD,01/08/2023,116.14
Neighbourhood & Enforcement Services,"Highways, Engineering & Project Delivery",Capital Expenditure,Marketing / Advertising,THE MIDLAND NEWS ASSOCIATION LTD,15/08/2023,116.14
Neighbourhood & Enforcement Services,"Highways, Engineering & Project Delivery",Capital Expenditure,Payments to Contractor,W Aspen,18/08/2023,589.14
Neighbourhood & Enforcement Services,"Highways, Engineering & Project Delivery",Capital Expenditure,External Professional Fees,XAIS Asset Management Ltd,03/08/2023,"6,400.00"
Neighbourhood & Enforcement Services,"Highways, Engineering & Project Delivery",Capital Expenditure,Payments to Contractor,Amey OW Ltd,17/08/2023,"1,796.55"
Neighbourhood & Enforcement Services,"Highways, Engineering & Project Delivery",Capital Expenditure,Payments to Contractor,Red Rock Geoscience Ltd,29/08/2023,"18,000.00"
Neighbourhood & Enforcement Services,"Highways, Engineering & Project Delivery",Capital Expenditure,Payments to Contractor,GRANVILLE CONSTRUCTION & MAINTENANCE LTD,25/08/2023,"1,020.00"
Neighbourhood & Enforcement Services,"Highways, Engineering & Project Delivery",Capital Expenditure,Payments to Contractor,GRANVILLE CONSTRUCTION & MAINTENANCE LTD,25/08/2023,967.00
Neighbourhood & Enforcement Services,Neighbourhood & Environmental Services,Premises-Related Expenditure,Grounds Maintenance - Other,ENVIRONMENT AGENCY,10/08/2023,120.00
Neighbourhood & Enforcement Services,Neighbourhood & Environmental Services,Premises-Related Expenditure,Grounds Maintenance - Other,H RIVER MAINTENANCE,01/08/2023,350.00
Neighbourhood & Enforcement Services,Neighbourhood & Environmental Services,Premises-Related Expenditure,Grounds Maintenance - Other,PUMP & PLANT SERVICES LTD,10/08/2023,127.30
Neighbourhood & Enforcement Services,Neighbourhood & Environmental Services,Third Party Payments,Contractor Recharge,Id verde,09/08/2023,"497,789.64"
Neighbourhood & Enforcement Services,Neighbourhood & Environmental Services,Supplies & Services,Other Materials,West Mercia Energy (WME),24/08/2023,129.87
Neighbourhood & Enforcement Services,Neighbourhood & Environmental Services,Supplies & Services,Play development,J L & SONS LTD,10/08/2023,109.92
Neighbourhood & Enforcement Services,Neighbourhood & Environmental Services,Supplies & Services,Sport Equip - Purchase,Online Playgrounds,03/08/2023,"2,298.35"
Neighbourhood & Enforcement Services,Neighbourhood & Environmental Services,Supplies & Services,Sport Equip - Purchase,Online Playgrounds,02/08/2023,424.00
Neighbourhood & Enforcement Services,Public Protection,Employees,Other Employee Costs,WARWICKSHIRE COUNTY COUNCIL,31/08/2023,498.00
Neighbourhood & Enforcement Services,Public Protection,Supplies & Services,Sampling & Analysis,S F Associates Ltd,21/08/2023,750.00
Neighbourhood & Enforcement Services,Public Protection,Supplies & Services,Stationery,SIGNS EXPRESS,23/08/2023,588.50
Neighbourhood & Enforcement Services,Public Protection,Supplies & Services,Other Services,Trebla Security Ltd,08/08/2023,444.00
Neighbourhood & Enforcement Services,Public Protection,Supplies & Services,Equipment - Purchase,VIP-SYSTEMS LIMITED,23/08/2023,"1,057.48"
Neighbourhood & Enforcement Services,Public Protection,Supplies & Services,Medical Consultants Fees,Zoo and Wildlife Solutions Ltd,17/08/2023,"1,325.00"
Neighbourhood & Enforcement Services,Public Protection,Supplies & Services,Sub Contractors,O R Ltd,21/08/2023,"1,644.65"
Neighbourhood & Enforcement Services,Public Protection,Supplies & Services,Sub Contractors,O R Ltd,21/08/2023,"1,644.65"
Neighbourhood & Enforcement Services,Public Protection,Supplies & Services,Sub Contractors,O R Ltd,21/08/2023,"1,644.65"
Neighbourhood & Enforcement Services,Public Protection,Supplies & Services,Sub Contractors,O R Ltd,21/08/2023,"1,644.65"
Neighbourhood & Enforcement Services,Public Protection,Supplies & Services,Sub Contractors,O R Ltd,21/08/2023,"1,644.65"
Neighbourhood & Enforcement Services,Public Protection,Supplies & Services,Licences,R H Environmental Ltd,10/08/2023,"1,819.00"
Neighbourhood & Enforcement Services,Public Protection,Premises-Related Expenditure,Sewage Charges,WATER PLUS FORMERLY SEVERN TRENT WATER LTD,10/08/2023,365.37
Neighbourhood & Enforcement Services,Public Protection,Premises-Related Expenditure,Sewage Charges,WATER PLUS FORMERLY SEVERN TRENT WATER LTD,10/08/2023,113.00
Neighbourhood & Enforcement Services,Public Protection,Premises-Related Expenditure,Sewage Charges,WATER PLUS FORMERLY SEVERN TRENT WATER LTD,10/08/2023,189.45
Neighbourhood & Enforcement Services,Public Protection,Premises-Related Expenditure,Sewage Charges,WATER PLUS FORMERLY SEVERN TRENT WATER LTD,11/08/2023,113.00
Neighbourhood & Enforcement Services,Public Protection,Premises-Related Expenditure,Sewage Charges,WATER PLUS FORMERLY SEVERN TRENT WATER LTD,11/08/2023,189.45
Neighbourhood & Enforcement Services,Public Protection,Premises-Related Expenditure,Sewage Charges,WATER PLUS FORMERLY SEVERN TRENT WATER LTD,11/08/2023,194.73
Neighbourhood & Enforcement Services,Public Protection,Premises-Related Expenditure,Sewage Charges,WATER PLUS FORMERLY SEVERN TRENT WATER LTD,11/08/2023,189.45
Neighbourhood & Enforcement Services,Public Protection,Supplies & Services,Security Services,The Arch Company Properties Limited,03/08/2023,360.27
Neighbourhood & Enforcement Services,Public Protection,Supplies & Services,Security Services,ETAK Creative Ltd,21/08/2023,"1,251.12"
Neighbourhood & Enforcement Services,Public Protection,Supplies & Services,Security Services,Security Wise Ltd,21/08/2023,614.00
Neighbourhood & Enforcement Services,Public Protection,Supplies & Services,Security Services,Security Wise Ltd,21/08/2023,"4,698.00"
Neighbourhood & Enforcement Services,Public Protection,Supplies & Services,Security Services,Security Wise Ltd,21/08/2023,"4,613.00"
Neighbourhood & Enforcement Services,Public Protection,Supplies & Services,Security Services,Security Wise Ltd,21/08/2023,"5,527.00"
Neighbourhood & Enforcement Services,Public Protection,Supplies & Services,Security Services,Security Wise Ltd,24/08/2023,"8,772.00"
Neighbourhood & Enforcement Services,Public Protection,Employees,Agency Supply Costs,NSL Limited,10/08/2023,"3,873.00"
Neighbourhood & Enforcement Services,Public Protection,Supplies & Services,Security Services,Chipside Ltd,10/08/2023,284.99
Neighbourhood & Enforcement Services,Public Protection,Supplies & Services,Security Services,Chipside Ltd,10/08/2023,294.17
Neighbourhood & Enforcement Services,Public Protection,Supplies & Services,Security Services,Chipside Ltd,10/08/2023,104.44
Neighbourhood & Enforcement Services,Public Protection,Supplies & Services,Protective Clothing,ETAK Creative Ltd,23/08/2023,790.00
Neighbourhood & Enforcement Services,Public Protection,Supplies & Services,Security Services,METRIC GROUP LTD,03/08/2023,884.00
Neighbourhood & Enforcement Services,Public Protection,Capital Expenditure,Payments to Contractor,Security Wise Ltd,21/08/2023,"18,632.00"
Neighbourhood & Enforcement Services,Public Protection,Capital Expenditure,Payments to Contractor,Security Wise Ltd,21/08/2023,"8,940.00"
Neighbourhood & Enforcement Services,Safer & Stronger Communities,Supplies & Services,Other Services,PG Skips Ltd,03/08/2023,243.30
Neighbourhood & Enforcement Services,Safer & Stronger Communities,Transport-Related Expenditure,Outside Hire,ASLES LTD,17/08/2023,"1,950.00"
Neighbourhood & Enforcement Services,Safer & Stronger Communities,Supplies & Services,Other Services,S SECURITY LTD,10/08/2023,600.00
Neighbourhood & Enforcement Services,Safer & Stronger Communities,Premises-Related Expenditure,Leasehold Rents,GPS Property Shropshire LLP,10/08/2023,700.00
Neighbourhood & Enforcement Services,Safer & Stronger Communities,Premises-Related Expenditure,Leasehold Rents,GPS Property Shropshire LLP,15/08/2023,725.00
Neighbourhood & Enforcement Services,Safer & Stronger Communities,Premises-Related Expenditure,General Rents,Barratt West Midlands,30/08/2023,700.00
Neighbourhood & Enforcement Services,Safer & Stronger Communities,Supplies & Services,Furniture - Purchase,DK Furniture Limited,17/08/2023,"4,375.00"
Neighbourhood & Enforcement Services,Safer & Stronger Communities,Supplies & Services,Furniture - Purchase,DK Furniture Limited,17/08/2023,"4,570.00"
Neighbourhood & Enforcement Services,Safer & Stronger Communities,Supplies & Services,Furniture - Purchase,DK Furniture Limited,18/08/2023,"4,010.00"
Neighbourhood & Enforcement Services,Safer & Stronger Communities,Supplies & Services,Furniture - Purchase,DK Furniture Limited,25/08/2023,"2,255.00"
Neighbourhood & Enforcement Services,Safer & Stronger Communities,Supplies & Services,Furniture - Purchase,DK Furniture Limited,25/08/2023,"2,215.00"
Neighbourhood & Enforcement Services,Safer & Stronger Communities,Supplies & Services,Furniture - Purchase,DK Furniture Limited,25/08/2023,"4,375.00"
Neighbourhood & Enforcement Services,Safer & Stronger Communities,Supplies & Services,Furniture - Purchase,DK Furniture Limited,25/08/2023,"4,010.00"
Neighbourhood & Enforcement Services,Safer & Stronger Communities,Supplies & Services,Furniture - Purchase,DK Furniture Limited,25/08/2023,"4,375.00"
Neighbourhood & Enforcement Services,Safer & Stronger Communities,Supplies & Services,Emergency Provisions for Young People,WB Building Services Limited,24/08/2023,127.50
Neighbourhood & Enforcement Services,Safer & Stronger Communities,Supplies & Services,Other Services,Bright Sporting Ltd,25/08/2023,280.00
Neighbourhood & Enforcement Services,Safer & Stronger Communities,Supplies & Services,Other Services,Deco Stitch Ltd,09/08/2023,"1,265.33"
Neighbourhood & Enforcement Services,Safer & Stronger Communities,Supplies & Services,Other Services,Deco Stitch Ltd,09/08/2023,553.65
Neighbourhood & Enforcement Services,Safer & Stronger Communities,Supplies & Services,Other Services,Horsehay Village Hall,11/08/2023,480.00
Neighbourhood & Enforcement Services,Safer & Stronger Communities,Supplies & Services,Other Services,Paintwell Limited,16/08/2023,209.31
Neighbourhood & Enforcement Services,Safer & Stronger Communities,Supplies & Services,Other Services,SHROPSHIRE CRICKET BOARD,02/08/2023,"1,500.00"
Neighbourhood & Enforcement Services,Safer & Stronger Communities,Supplies & Services,Other Services,TELFORD COLLEGE,22/08/2023,528.00
Neighbourhood & Enforcement Services,Safer & Stronger Communities,Supplies & Services,Other Services,THE SMALL WOODS ASSOCIATION,09/08/2023,"4,000.00"
Neighbourhood & Enforcement Services,Safer & Stronger Communities,Supplies & Services,Other Services,Industry Signage,22/08/2023,333.00
Neighbourhood & Enforcement Services,Safer & Stronger Communities,Supplies & Services,Other Services,LAWLEY & OVERDALE PARISH COUNCIL,22/08/2023,242.50
Neighbourhood & Enforcement Services,Strategic Transport & Highway Network Management,Supplies & Services,Comp Hardware (Purch / Hire),One.network,31/08/2023,"30,554.00"
Neighbourhood & Enforcement Services,Strategic Transport & Highway Network Management,Supplies & Services,Comp Hardware (Purch / Hire),One.network,31/08/2023,"24,619.59"
Neighbourhood & Enforcement Services,Strategic Transport & Highway Network Management,Supplies & Services,Advertising,THE MIDLAND NEWS ASSOCIATION LTD,03/08/2023,116.14
Neighbourhood & Enforcement Services,Strategic Transport & Highway Network Management,Supplies & Services,Advertising,THE MIDLAND NEWS ASSOCIATION LTD,03/08/2023,116.14
Neighbourhood & Enforcement Services,Strategic Transport & Highway Network Management,Supplies & Services,Advertising,THE MIDLAND NEWS ASSOCIATION LTD,03/08/2023,116.14
Neighbourhood & Enforcement Services,Strategic Transport & Highway Network Management,Supplies & Services,Advertising,THE MIDLAND NEWS ASSOCIATION LTD,11/08/2023,116.14
Neighbourhood & Enforcement Services,Strategic Transport & Highway Network Management,Supplies & Services,Advertising,THE MIDLAND NEWS ASSOCIATION LTD,11/08/2023,116.14
Neighbourhood & Enforcement Services,Strategic Transport & Highway Network Management,Supplies & Services,Advertising,THE MIDLAND NEWS ASSOCIATION LTD,03/08/2023,116.14
Neighbourhood & Enforcement Services,Strategic Transport & Highway Network Management,Supplies & Services,Advertising,THE MIDLAND NEWS ASSOCIATION LTD,03/08/2023,116.14
Neighbourhood & Enforcement Services,Strategic Transport & Highway Network Management,Supplies & Services,Advertising,THE MIDLAND NEWS ASSOCIATION LTD,03/08/2023,116.14
Neighbourhood & Enforcement Services,Strategic Transport & Highway Network Management,Supplies & Services,Advertising,THE MIDLAND NEWS ASSOCIATION LTD,03/08/2023,116.14
Neighbourhood & Enforcement Services,Strategic Transport & Highway Network Management,Supplies & Services,Advertising,THE MIDLAND NEWS ASSOCIATION LTD,31/08/2023,145.17
Neighbourhood & Enforcement Services,Strategic Transport & Highway Network Management,Supplies & Services,Advertising,THE MIDLAND NEWS ASSOCIATION LTD,31/08/2023,116.14
Neighbourhood & Enforcement Services,Strategic Transport & Highway Network Management,Supplies & Services,Consultancy,W Aspen,31/08/2023,"4,768.80"
Neighbourhood & Enforcement Services,Strategic Transport & Highway Network Management,Supplies & Services,Consultancy,W Aspen,31/08/2023,184.24
Neighbourhood & Enforcement Services,Strategic Transport & Highway Network Management,Supplies & Services,Consultancy,C West Ltd,29/08/2023,"1,713.25"
Neighbourhood & Enforcement Services,Strategic Transport & Highway Network Management,Supplies & Services,Consultancy,C West Ltd,01/08/2023,"1,713.25"
Neighbourhood & Enforcement Services,Strategic Transport & Highway Network Management,Supplies & Services,Consultancy,C West Ltd,15/08/2023,"1,713.25"
Neighbourhood & Enforcement Services,Strategic Transport & Highway Network Management,Supplies & Services,Consultancy,C West Ltd,15/08/2023,"1,713.25"
Neighbourhood & Enforcement Services,Strategic Transport & Highway Network Management,Supplies & Services,Consultancy,C West Ltd,21/08/2023,"1,694.00"
Neighbourhood & Enforcement Services,Strategic Transport & Highway Network Management,Supplies & Services,Consultancy,W Aspen,15/08/2023,"3,662.24"
Neighbourhood & Enforcement Services,Strategic Transport & Highway Network Management,Supplies & Services,Consultancy,W Aspen,15/08/2023,125.46
Neighbourhood & Enforcement Services,Strategic Transport & Highway Network Management,Supplies & Services,Other Services,Tandem Group Cycles Limited,15/08/2023,"4,200.00"
Neighbourhood & Enforcement Services,Strategic Transport & Highway Network Management,Supplies & Services,Concessionary Travel,B P B TRAVEL LTD,22/08/2023,517.00
Neighbourhood & Enforcement Services,Strategic Transport & Highway Network Management,Supplies & Services,Concessionary Travel,Banga Travel,14/08/2023,"2,213.00"
Neighbourhood & Enforcement Services,Strategic Transport & Highway Network Management,Supplies & Services,Concessionary Travel,Banga Travel,14/08/2023,"2,081.00"
Neighbourhood & Enforcement Services,Strategic Transport & Highway Network Management,Supplies & Services,Comp Software (Purch / Hire),ITSO LTD,11/08/2023,"1,984.00"
Neighbourhood & Enforcement Services,Strategic Transport & Highway Network Management,Supplies & Services,Comp Software (Purch / Hire),ITSO LTD,11/08/2023,"1,226.00"
Neighbourhood & Enforcement Services,Strategic Transport & Highway Network Management,Transport-Related Expenditure,Subsidised Routes,ARRIVA MIDLANDS LTD ,31/08/2023,"10,676.06"
Neighbourhood & Enforcement Services,Strategic Transport & Highway Network Management,Transport-Related Expenditure,Subsidised Routes,ARRIVA MIDLANDS LTD ,31/08/2023,"2,578.26"
Neighbourhood & Enforcement Services,Strategic Transport & Highway Network Management,Transport-Related Expenditure,Subsidised Routes,ARRIVA MIDLANDS LTD ,31/08/2023,"2,473.00"
Neighbourhood & Enforcement Services,Strategic Transport & Highway Network Management,Transport-Related Expenditure,Subsidised Routes,ARRIVA MIDLANDS LTD ,31/08/2023,"6,526.78"
Neighbourhood & Enforcement Services,Strategic Transport & Highway Network Management,Transport-Related Expenditure,Subsidised Routes,ARRIVA MIDLANDS LTD ,31/08/2023,"36,898.42"
Neighbourhood & Enforcement Services,Strategic Transport & Highway Network Management,Transport-Related Expenditure,Subsidised Routes,ARRIVA MIDLANDS LTD ,31/08/2023,"4,923.10"
Neighbourhood & Enforcement Services,Strategic Transport & Highway Network Management,Transport-Related Expenditure,Subsidised Routes,ARRIVA MIDLANDS LTD ,31/08/2023,"2,275.24"
Neighbourhood & Enforcement Services,Strategic Transport & Highway Network Management,Transport-Related Expenditure,Subsidised Routes,ARRIVA MIDLANDS LTD ,31/08/2023,"10,676.06"
Neighbourhood & Enforcement Services,Strategic Transport & Highway Network Management,Transport-Related Expenditure,Subsidised Routes,ARRIVA MIDLANDS LTD ,31/08/2023,"2,578.26"
Neighbourhood & Enforcement Services,Strategic Transport & Highway Network Management,Transport-Related Expenditure,Subsidised Routes,ARRIVA MIDLANDS LTD ,31/08/2023,"2,473.00"
Neighbourhood & Enforcement Services,Strategic Transport & Highway Network Management,Transport-Related Expenditure,Subsidised Routes,ARRIVA MIDLANDS LTD ,31/08/2023,"6,526.78"
Neighbourhood & Enforcement Services,Strategic Transport & Highway Network Management,Transport-Related Expenditure,Subsidised Routes,ARRIVA MIDLANDS LTD ,31/08/2023,"36,898.42"
Neighbourhood & Enforcement Services,Strategic Transport & Highway Network Management,Transport-Related Expenditure,Subsidised Routes,ARRIVA MIDLANDS LTD ,31/08/2023,"4,923.10"
Neighbourhood & Enforcement Services,Strategic Transport & Highway Network Management,Transport-Related Expenditure,Subsidised Routes,ARRIVA MIDLANDS LTD ,31/08/2023,"2,275.24"
Neighbourhood & Enforcement Services,Strategic Transport & Highway Network Management,Transport-Related Expenditure,Subsidised Routes,B P B TRAVEL LTD,22/08/2023,"10,400.00"
Neighbourhood & Enforcement Services,Strategic Transport & Highway Network Management,Transport-Related Expenditure,Subsidised Routes,B P B TRAVEL LTD,22/08/2023,"6,200.00"
Neighbourhood & Enforcement Services,Strategic Transport & Highway Network Management,Transport-Related Expenditure,Servicing & Repairs V&P,AEM GROUP LTD,01/08/2023,"1,217.94"
Neighbourhood & Enforcement Services,Strategic Transport & Highway Network Management,Transport-Related Expenditure,Servicing & Repairs V&P,AEM GROUP LTD,01/08/2023,213.45
Neighbourhood & Enforcement Services,Strategic Transport & Highway Network Management,Transport-Related Expenditure,Servicing & Repairs V&P,AEM GROUP LTD,01/08/2023,480.43
Neighbourhood & Enforcement Services,Strategic Transport & Highway Network Management,Transport-Related Expenditure,Servicing & Repairs V&P,AEM GROUP LTD,01/08/2023,178.08
Neighbourhood & Enforcement Services,Strategic Transport & Highway Network Management,Transport-Related Expenditure,Fuel,ALLSTAR BUSINESS SOLUTIONS LTD,14/08/2023,"4,095.85"
Neighbourhood & Enforcement Services,Strategic Transport & Highway Network Management,Transport-Related Expenditure,Fuel,ALLSTAR BUSINESS SOLUTIONS LTD,22/08/2023,"2,195.30"
Neighbourhood & Enforcement Services,Strategic Transport & Highway Network Management,Transport-Related Expenditure,Outside Hire,DAYS RENTAL,14/08/2023,477.30
Neighbourhood & Enforcement Services,Strategic Transport & Highway Network Management,Transport-Related Expenditure,Outside Hire,DAYS RENTAL,14/08/2023,310.31
Neighbourhood & Enforcement Services,Strategic Transport & Highway Network Management,Transport-Related Expenditure,Outside Hire,DAYS RENTAL,14/08/2023,310.31
Neighbourhood & Enforcement Services,Strategic Transport & Highway Network Management,Transport-Related Expenditure,Outside Hire,DAYS RENTAL,14/08/2023,310.31
Neighbourhood & Enforcement Services,Strategic Transport & Highway Network Management,Transport-Related Expenditure,Outside Hire,DAYS RENTAL,14/08/2023,310.31
Neighbourhood & Enforcement Services,Strategic Transport & Highway Network Management,Transport-Related Expenditure,Outside Hire,DAYS RENTAL,14/08/2023,444.23
Neighbourhood & Enforcement Services,Strategic Transport & Highway Network Management,Transport-Related Expenditure,Outside Hire,DAYS RENTAL,14/08/2023,310.31
Neighbourhood & Enforcement Services,Strategic Transport & Highway Network Management,Transport-Related Expenditure,Outside Hire,DAYS RENTAL,14/08/2023,310.31
Neighbourhood & Enforcement Services,Strategic Transport & Highway Network Management,Transport-Related Expenditure,Outside Hire,DAYS RENTAL,14/08/2023,310.31
Neighbourhood & Enforcement Services,Strategic Transport & Highway Network Management,Transport-Related Expenditure,Outside Hire,DAYS RENTAL,14/08/2023,"1,270.07"
Neighbourhood & Enforcement Services,Strategic Transport & Highway Network Management,Transport-Related Expenditure,Outside Hire,DAYS RENTAL,14/08/2023,310.31
Neighbourhood & Enforcement Services,Strategic Transport & Highway Network Management,Transport-Related Expenditure,Outside Hire,DAYS RENTAL,14/08/2023,423.77
Neighbourhood & Enforcement Services,Strategic Transport & Highway Network Management,Transport-Related Expenditure,Outside Hire,DAYS RENTAL,14/08/2023,"1,337.03"
Neighbourhood & Enforcement Services,Strategic Transport & Highway Network Management,Transport-Related Expenditure,Outside Hire,DAYS RENTAL,14/08/2023,310.31
Neighbourhood & Enforcement Services,Strategic Transport & Highway Network Management,Transport-Related Expenditure,Outside Hire,DAYS RENTAL,22/08/2023,755.21
Neighbourhood & Enforcement Services,Strategic Transport & Highway Network Management,Transport-Related Expenditure,Vehicle Parts,Enterprise Flexi Rent,14/08/2023,"1,651.69"
Neighbourhood & Enforcement Services,Strategic Transport & Highway Network Management,Transport-Related Expenditure,Servicing & Repairs V&P,FURROWS OF TELFORD,14/08/2023,567.41
Neighbourhood & Enforcement Services,Strategic Transport & Highway Network Management,Transport-Related Expenditure,Servicing & Repairs V&P,FURROWS OF TELFORD,14/08/2023,499.99
Neighbourhood & Enforcement Services,Strategic Transport & Highway Network Management,Transport-Related Expenditure,Servicing & Repairs V&P,FURROWS OF TELFORD,01/08/2023,279.17
Neighbourhood & Enforcement Services,Strategic Transport & Highway Network Management,Transport-Related Expenditure,Servicing & Repairs V&P,FURROWS OF TELFORD,22/08/2023,259.19
Neighbourhood & Enforcement Services,Strategic Transport & Highway Network Management,Transport-Related Expenditure,Servicing & Repairs V&P,FURROWS OF TELFORD,22/08/2023,127.50
Neighbourhood & Enforcement Services,Strategic Transport & Highway Network Management,Transport-Related Expenditure,Servicing & Repairs V&P,FURROWS OF TELFORD,31/08/2023,127.50
Neighbourhood & Enforcement Services,Strategic Transport & Highway Network Management,Transport-Related Expenditure,Servicing & Repairs V&P,FURROWS OF TELFORD,25/08/2023,175.25
Neighbourhood & Enforcement Services,Strategic Transport & Highway Network Management,Transport-Related Expenditure,Servicing & Repairs V&P,FURROWS OF TELFORD,25/08/2023,127.50
Neighbourhood & Enforcement Services,Strategic Transport & Highway Network Management,Transport-Related Expenditure,Servicing & Repairs V&P,FURROWS OF TELFORD,22/08/2023,127.50
Neighbourhood & Enforcement Services,Strategic Transport & Highway Network Management,Transport-Related Expenditure,Servicing & Repairs V&P,FURROWS OF TELFORD,22/08/2023,439.96
Neighbourhood & Enforcement Services,Strategic Transport & Highway Network Management,Transport-Related Expenditure,Tyres - Routine,FURROWS OF TELFORD,01/08/2023,127.50
Neighbourhood & Enforcement Services,Strategic Transport & Highway Network Management,Transport-Related Expenditure,Vehicle Parts,FURROWS OF TELFORD,22/08/2023,127.50
Neighbourhood & Enforcement Services,Strategic Transport & Highway Network Management,Transport-Related Expenditure,Vehicle Parts,THE LODGE TYRE CO LTD,01/08/2023,154.30
Neighbourhood & Enforcement Services,Strategic Transport & Highway Network Management,Transport-Related Expenditure,Vehicle Parts,THE LODGE TYRE CO LTD,01/08/2023,245.00
Neighbourhood & Enforcement Services,Strategic Transport & Highway Network Management,Premises-Related Expenditure,R&M -Building Other,MSM Hire Ltd,11/08/2023,510.00
Neighbourhood & Enforcement Services,Strategic Transport & Highway Network Management,Premises-Related Expenditure,R&M -Building Other,Security Wise Ltd,22/08/2023,"1,000.00"
Neighbourhood & Enforcement Services,Strategic Transport & Highway Network Management,Supplies & Services,Subscriptions,APSE ,25/08/2023,880.80
Neighbourhood & Enforcement Services,Strategic Transport & Highway Network Management,Supplies & Services,Protective Clothing,ETAK Creative Ltd,22/08/2023,723.20
Neighbourhood & Enforcement Services,Strategic Transport & Highway Network Management,Transport-Related Expenditure,Outside Hire,DAYS RENTAL,31/08/2023,215.58
Neighbourhood & Enforcement Services,Strategic Transport & Highway Network Management,Transport-Related Expenditure,Outside Hire,Enterprise Flexi Rent,03/08/2023,327.71
Neighbourhood & Enforcement Services,Strategic Transport & Highway Network Management,Transport-Related Expenditure,Servicing & Repairs V&P,AEM GROUP LTD,01/08/2023,368.94
Neighbourhood & Enforcement Services,Strategic Transport & Highway Network Management,Transport-Related Expenditure,Servicing & Repairs V&P,AEM GROUP LTD,01/08/2023,166.75
Neighbourhood & Enforcement Services,Strategic Transport & Highway Network Management,Transport-Related Expenditure,Servicing & Repairs V&P,AEM GROUP LTD,01/08/2023,160.00
Neighbourhood & Enforcement Services,Strategic Transport & Highway Network Management,Transport-Related Expenditure,Servicing & Repairs V&P,AEM GROUP LTD,01/08/2023,560.70
Neighbourhood & Enforcement Services,Strategic Transport & Highway Network Management,Transport-Related Expenditure,Servicing & Repairs V&P,AEM GROUP LTD,01/08/2023,148.63
Neighbourhood & Enforcement Services,Strategic Transport & Highway Network Management,Transport-Related Expenditure,Servicing & Repairs V&P,AEM GROUP LTD,01/08/2023,228.63
Neighbourhood & Enforcement Services,Strategic Transport & Highway Network Management,Transport-Related Expenditure,Servicing & Repairs V&P,AEM GROUP LTD,01/08/2023,126.58
Neighbourhood & Enforcement Services,Strategic Transport & Highway Network Management,Transport-Related Expenditure,Outside Hire,DAYS RENTAL,14/08/2023,"1,170.87"
Neighbourhood & Enforcement Services,Strategic Transport & Highway Network Management,Transport-Related Expenditure,Outside Hire,DAYS RENTAL,14/08/2023,423.77
Neighbourhood & Enforcement Services,Strategic Transport & Highway Network Management,Transport-Related Expenditure,Hire Charges from MO,DAYS RENTAL,14/08/2023,560.47
Neighbourhood & Enforcement Services,Strategic Transport & Highway Network Management,Transport-Related Expenditure,Outside Hire,Enterprise Flexi Rent,14/08/2023,317.14
Neighbourhood & Enforcement Services,Strategic Transport & Highway Network Management,Transport-Related Expenditure,Servicing & Repairs V&P,FURROWS OF TELFORD,14/08/2023,409.99
Neighbourhood & Enforcement Services,Strategic Transport & Highway Network Management,Transport-Related Expenditure,Servicing & Repairs V&P,FURROWS OF TELFORD,14/08/2023,468.59
Neighbourhood & Enforcement Services,Strategic Transport & Highway Network Management,Transport-Related Expenditure,Servicing & Repairs V&P,FURROWS OF TELFORD,01/08/2023,"1,299.04"
Neighbourhood & Enforcement Services,Strategic Transport & Highway Network Management,Transport-Related Expenditure,Servicing & Repairs V&P,FURROWS OF TELFORD,22/08/2023,147.30
Neighbourhood & Enforcement Services,Strategic Transport & Highway Network Management,Transport-Related Expenditure,Servicing & Repairs V&P,FURROWS OF TELFORD,22/08/2023,392.21
Neighbourhood & Enforcement Services,Strategic Transport & Highway Network Management,Transport-Related Expenditure,Servicing & Repairs V&P,Shropshire Alloys,22/08/2023,130.00
Neighbourhood & Enforcement Services,Strategic Transport & Highway Network Management,Transport-Related Expenditure,Hire Charges from MO,THE LODGE TYRE CO LTD,14/08/2023,148.30
Neighbourhood & Enforcement Services,Strategic Transport & Highway Network Management,Transport-Related Expenditure,Vehicle Parts,THE LODGE TYRE CO LTD,01/08/2023,544.20
Neighbourhood & Enforcement Services,Strategic Transport & Highway Network Management,Transport-Related Expenditure,Servicing & Repairs V&P,THE LODGE TYRE CO LTD,22/08/2023,161.71
Neighbourhood & Enforcement Services,Strategic Transport & Highway Network Management,Capital Expenditure,Payments to Contractor,Dynniq UK Limited,29/08/2023,842.55
Neighbourhood & Enforcement Services,Strategic Transport & Highway Network Management,Capital Expenditure,Payments to Contractor,M Signs Ltd,09/08/2023,"8,450.00"
Neighbourhood & Enforcement Services,Strategic Transport & Highway Network Management,Capital Expenditure,Payments to Contractor,SWARCO UK & IRELAND LTD,01/08/2023,"7,634.64"
Neighbourhood & Enforcement Services,Strategic Transport & Highway Network Management,Capital Expenditure,Payments to Contractor,SWARCO UK & IRELAND LTD,01/08/2023,"3,623.29"
Neighbourhood & Enforcement Services,Strategic Transport & Highway Network Management,Capital Expenditure,Payments to Contractor,SWARCO UK & IRELAND LTD,01/08/2023,"3,069.22"
Neighbourhood & Enforcement Services,Strategic Transport & Highway Network Management,Capital Expenditure,Payments to Contractor,SWARCO UK & IRELAND LTD,23/08/2023,601.70
Neighbourhood & Enforcement Services,Strategic Transport & Highway Network Management,Capital Expenditure,Marketing / Advertising,THE MIDLAND NEWS ASSOCIATION LTD,29/08/2023,406.48
Neighbourhood & Enforcement Services,Strategic Transport & Highway Network Management,Capital Expenditure,Marketing / Advertising,THE MIDLAND NEWS ASSOCIATION LTD,29/08/2023,116.14
Neighbourhood & Enforcement Services,Strategic Transport & Highway Network Management,Capital Expenditure,Expenditure on loans & other financial assistance,THE MIDLAND NEWS ASSOCIATION LTD,01/08/2023,522.61
Neighbourhood & Enforcement Services,Strategic Transport & Highway Network Management,Capital Expenditure,Expenditure on loans & other financial assistance,THE MIDLAND NEWS ASSOCIATION LTD,01/08/2023,348.41
Neighbourhood & Enforcement Services,Strategic Transport & Highway Network Management,Capital Expenditure,Expenditure on loans & other financial assistance,THE MIDLAND NEWS ASSOCIATION LTD,01/08/2023,232.27
Neighbourhood & Enforcement Services,Strategic Transport & Highway Network Management,Capital Expenditure,Expenditure on loans & other financial assistance,THE MIDLAND NEWS ASSOCIATION LTD,02/08/2023,435.51
Neighbourhood & Enforcement Services,Strategic Transport & Highway Network Management,Capital Expenditure,Marketing / Advertising,THE MIDLAND NEWS ASSOCIATION LTD,02/08/2023,348.41
Neighbourhood & Enforcement Services,Strategic Transport & Highway Network Management,Capital Expenditure,Marketing / Advertising,THE MIDLAND NEWS ASSOCIATION LTD,16/08/2023,232.27
Neighbourhood & Enforcement Services,Strategic Transport & Highway Network Management,Capital Expenditure,Marketing / Advertising,THE MIDLAND NEWS ASSOCIATION LTD,16/08/2023,116.14
Neighbourhood & Enforcement Services,Strategic Transport & Highway Network Management,Capital Expenditure,Marketing / Advertising,THE MIDLAND NEWS ASSOCIATION LTD,17/08/2023,435.51
Neighbourhood & Enforcement Services,Strategic Transport & Highway Network Management,Capital Expenditure,Marketing / Advertising,THE MIDLAND NEWS ASSOCIATION LTD,17/08/2023,493.58
Neighbourhood & Enforcement Services,Strategic Transport & Highway Network Management,Capital Expenditure,Marketing / Advertising,THE MIDLAND NEWS ASSOCIATION LTD,21/08/2023,493.58
Neighbourhood & Enforcement Services,Strategic Transport & Highway Network Management,Capital Expenditure,Marketing / Advertising,THE MIDLAND NEWS ASSOCIATION LTD,31/08/2023,406.48
Neighbourhood & Enforcement Services,Strategic Transport & Highway Network Management,Capital Expenditure,Payments to Contractor,ATKINS LIMITED,10/08/2023,"12,500.00"
Neighbourhood & Enforcement Services,Strategic Transport & Highway Network Management,Capital Expenditure,Payments to Contractor,ATKINS LIMITED,17/08/2023,"4,350.00"
Neighbourhood & Enforcement Services,Strategic Transport & Highway Network Management,Capital Expenditure,Payments to Contractor,ATKINS LIMITED,17/08/2023,"11,773.88"
Neighbourhood & Enforcement Services,Strategic Transport & Highway Network Management,Capital Expenditure,Payments to Contractor,Journeo Passenger Systems Ltd,01/08/2023,"2,667.00"
Neighbourhood & Enforcement Services,Strategic Transport & Highway Network Management,Capital Expenditure,Payments to Contractor,Journeo Passenger Systems Ltd,01/08/2023,"4,018.80"
Neighbourhood & Enforcement Services,Strategic Transport & Highway Network Management,Capital Expenditure,Payments to Contractor,Journeo Passenger Systems Ltd,18/08/2023,"3,024.00"
Neighbourhood & Enforcement Services,Strategic Transport & Highway Network Management,Capital Expenditure,Payments to Contractor,Journeo Passenger Systems Ltd,18/08/2023,"3,720.00"
Neighbourhood & Enforcement Services,Strategic Transport & Highway Network Management,Capital Expenditure,Payments to Contractor,Journeo Passenger Systems Ltd,18/08/2023,"3,420.00"
Neighbourhood & Enforcement Services,Strategic Transport & Highway Network Management,Capital Expenditure,Payments to Contractor,Journeo Passenger Systems Ltd,18/08/2023,"2,702.40"
Neighbourhood & Enforcement Services,Strategic Transport & Highway Network Management,Capital Expenditure,Payments to Contractor,Journeo Passenger Systems Ltd,18/08/2023,"4,178.40"
Neighbourhood & Enforcement Services,Strategic Transport & Highway Network Management,Capital Expenditure,Payments to Contractor,Journeo Passenger Systems Ltd,18/08/2023,"3,420.00"
Neighbourhood & Enforcement Services,Strategic Transport & Highway Network Management,Capital Expenditure,Payments to Contractor,Journeo Passenger Systems Ltd,18/08/2023,"5,006.70"
Neighbourhood & Enforcement Services,Strategic Transport & Highway Network Management,Capital Expenditure,Payments to Contractor,Journeo Passenger Systems Ltd,18/08/2023,"3,084.30"
Neighbourhood & Enforcement Services,Strategic Transport & Highway Network Management,Capital Expenditure,Payments to Contractor,Journeo Passenger Systems Ltd,18/08/2023,"3,205.80"
Neighbourhood & Enforcement Services,Strategic Transport & Highway Network Management,Capital Expenditure,Payments to Contractor,Journeo Passenger Systems Ltd,18/08/2023,"3,494.70"
Neighbourhood & Enforcement Services,Strategic Transport & Highway Network Management,Capital Expenditure,Payments to Contractor,Journeo Passenger Systems Ltd,18/08/2023,"4,178.40"
Neighbourhood & Enforcement Services,Strategic Transport & Highway Network Management,Capital Expenditure,Payments to Contractor,Journeo Passenger Systems Ltd,18/08/2023,"5,006.70"
Neighbourhood & Enforcement Services,Strategic Transport & Highway Network Management,Capital Expenditure,Payments to Contractor,Journeo Passenger Systems Ltd,18/08/2023,"3,024.00"
Neighbourhood & Enforcement Services,Strategic Transport & Highway Network Management,Capital Expenditure,Payments to Contractor,Journeo Passenger Systems Ltd,18/08/2023,"2,702.40"
Neighbourhood & Enforcement Services,Strategic Transport & Highway Network Management,Capital Expenditure,Payments to Contractor,Journeo Passenger Systems Ltd,18/08/2023,"3,024.00"
Neighbourhood & Enforcement Services,Strategic Transport & Highway Network Management,Capital Expenditure,Payments to Contractor,Journeo Passenger Systems Ltd,18/08/2023,"3,024.00"
Neighbourhood & Enforcement Services,Strategic Transport & Highway Network Management,Capital Expenditure,Payments to Contractor,Journeo Passenger Systems Ltd,18/08/2023,"3,420.00"
Neighbourhood & Enforcement Services,Strategic Transport & Highway Network Management,Capital Expenditure,Payments to Contractor,Vivacity Labs,21/08/2023,"7,272.52"
Neighbourhood & Enforcement Services,Waste & Neighbourhood Services,Premises-Related Expenditure,Grounds Maintenance - Other,Amey OW Ltd,15/08/2023,268.66
Neighbourhood & Enforcement Services,Waste & Neighbourhood Services,Premises-Related Expenditure,Grounds Maintenance - Other,H Tree Care Ltd,03/08/2023,"4,200.00"
Neighbourhood & Enforcement Services,Waste & Neighbourhood Services,Premises-Related Expenditure,Grounds Maint - Sports Pitches,J M Ltd,24/08/2023,"1,350.00"
Neighbourhood & Enforcement Services,Waste & Neighbourhood Services,Premises-Related Expenditure,Grounds Maintenance - Other,MSM Hire Ltd,08/08/2023,"1,632.52"
Neighbourhood & Enforcement Services,Waste & Neighbourhood Services,Premises-Related Expenditure,Grounds Maintenance - Other,MSM Hire Ltd,22/08/2023,372.00
Neighbourhood & Enforcement Services,Waste & Neighbourhood Services,Premises-Related Expenditure,Grounds Maintenance - Other,MSM Hire Ltd,22/08/2023,187.68
Neighbourhood & Enforcement Services,Waste & Neighbourhood Services,Supplies & Services,Other Services,EMERGE DESIGN LTD,04/08/2023,"2,995.00"
Neighbourhood & Enforcement Services,Waste & Neighbourhood Services,Third Party Payments,Private Contractors,Veolia ES Telford and Wrekin Ltd,25/08/2023,"973,524.23"
Neighbourhood & Enforcement Services,Waste & Neighbourhood Services,Third Party Payments,Specialist Waste Contractor charge,PHS GROUP,14/08/2023,"2,356.60"
Neighbourhood & Enforcement Services,Waste & Neighbourhood Services,Capital Expenditure,Payments to Contractor,Playforce,10/08/2023,"14,000.00"
Neighbourhood & Enforcement Services,Waste & Neighbourhood Services,Capital Expenditure,Payments to Contractor,Playforce,09/08/2023,"20,000.00"
Neighbourhood & Enforcement Services,Waste & Neighbourhood Services,Capital Expenditure,Payments to Contractor,Playforce,11/08/2023,"28,000.00"
Policy & Governance,Governance & Legal Services,Supplies & Services,Audit Services,Lighthouse UK Consultancy Ltd,22/08/2023,"2,440.00"
Policy & Governance,Governance & Legal Services,Supplies & Services,Other Services,Ace Education Advice & Training,03/08/2023,195.00
Policy & Governance,Governance & Legal Services,Supplies & Services,Mobile Phones,EE LTD EQUIPMENT  ,08/08/2023,136.00
Policy & Governance,Governance & Legal Services,Supplies & Services,Events,SERCO LEISURE OPERATING LTD,03/08/2023,250.00
Policy & Governance,Governance & Legal Services,Supplies & Services,Other Services,SIGNS EXPRESS,08/08/2023,"7,502.24"
Policy & Governance,Governance & Legal Services,Transport-Related Expenditure,Car Hire Charges,K & L CARS,18/08/2023,200.00
Policy & Governance,Governance & Legal Services,Employees,Staff Training,SHROPSHIRE COUNCIL,25/08/2023,608.00
Policy & Governance,Governance & Legal Services,Premises-Related Expenditure,Leasehold Rents,L T & SON,25/08/2023,300.00
Policy & Governance,Governance & Legal Services,Premises-Related Expenditure,Leasehold Rents,The Methodist Church St Georges,24/08/2023,-300.00
Policy & Governance,Governance & Legal Services,Supplies & Services,Equipment - Hire,GRANVILLE CONSTRUCTION & MAINTENANCE LTD,01/08/2023,900.00
Policy & Governance,Governance & Legal Services,Supplies & Services,Printing - Other,IMPACT MAIL & PRINT LTD,09/08/2023,310.00
Policy & Governance,Governance & Legal Services,Supplies & Services,Printing - Other,IMPACT MAIL & PRINT LTD,09/08/2023,375.00
Policy & Governance,Governance & Legal Services,Supplies & Services,Printing - Other,IMPACT MAIL & PRINT LTD,09/08/2023,210.90
Policy & Governance,Governance & Legal Services,Supplies & Services,Postages,ROYAL MAIL GROUP PLC ,09/08/2023,323.85
Policy & Governance,Governance & Legal Services,Supplies & Services,Postages,ROYAL MAIL GROUP PLC ,29/08/2023,683.75
Policy & Governance,Governance & Legal Services,Supplies & Services,Stationery,S & SONS LTD,15/08/2023,"1,028.00"
Policy & Governance,Governance & Legal Services,Supplies & Services,Stationery,S & SONS LTD,15/08/2023,"2,113.10"
Policy & Governance,Governance & Legal Services,Employees,Staff Training,ASSOCIATION OF ELECTORAL ADMINISTRATORS,25/08/2023,285.00
Policy & Governance,Governance & Legal Services,Supplies & Services,Printing - Other,ELECTORAL REFORM SERVICES,08/08/2023,"3,972.38"
Policy & Governance,Governance & Legal Services,Supplies & Services,Printing - Other,IMPACT MAIL & PRINT LTD,14/08/2023,"5,181.35"
Policy & Governance,Governance & Legal Services,Supplies & Services,Printing - Other,IMPACT MAIL & PRINT LTD,22/08/2023,"3,219.16"
Policy & Governance,Governance & Legal Services,Supplies & Services,Postages,ROYAL MAIL GROUP PLC ,29/08/2023,108.46
Policy & Governance,Governance & Legal Services,Supplies & Services,Postages,ROYAL MAIL GROUP PLC ,04/08/2023,"8,890.74"
Policy & Governance,Governance & Legal Services,Supplies & Services,Postages,ROYAL MAIL GROUP PLC ,14/08/2023,"17,037.81"
Policy & Governance,Governance & Legal Services,Supplies & Services,Postages,ROYAL MAIL GROUP PLC ,29/08/2023,"7,779.31"
Policy & Governance,Governance & Legal Services,Employees,Agency Supply Costs,S Partnership,31/08/2023,"2,191.88"
Policy & Governance,Governance & Legal Services,Employees,Agency Supply Costs,S Partnership,02/08/2023,"1,777.20"
Policy & Governance,Governance & Legal Services,Employees,Agency Supply Costs,S Partnership,02/08/2023,"1,782.90"
Policy & Governance,Governance & Legal Services,Employees,Agency Supply Costs,S Partnership,01/08/2023,"1,895.68"
Policy & Governance,Governance & Legal Services,Employees,Agency Supply Costs,S Partnership,01/08/2023,"2,132.64"
Policy & Governance,Governance & Legal Services,Employees,Agency Supply Costs,S Partnership,01/08/2023,"2,458.48"
Policy & Governance,Governance & Legal Services,Employees,Agency Supply Costs,S Partnership,02/08/2023,"1,782.90"
Policy & Governance,Governance & Legal Services,Employees,Agency Supply Costs,S Partnership,02/08/2023,"2,334.00"
Policy & Governance,Governance & Legal Services,Employees,Agency Supply Costs,S Partnership,02/08/2023,"1,782.90"
Policy & Governance,Governance & Legal Services,Employees,Agency Supply Costs,S Partnership,09/08/2023,"2,191.88"
Policy & Governance,Governance & Legal Services,Employees,Agency Supply Costs,S Partnership,09/08/2023,"2,060.24"
Policy & Governance,Governance & Legal Services,Employees,Agency Supply Costs,S Partnership,29/08/2023,"2,191.88"
Policy & Governance,Governance & Legal Services,Employees,Staff Training,St Ives Chambers,25/08/2023,650.00
Policy & Governance,Governance & Legal Services,Employees,Agency Supply Costs,Venn Group Limited,10/08/2023,"1,176.00"
Policy & Governance,Governance & Legal Services,Supplies & Services,Legal Expenses,NO 5 CHAMBERS LIMITED,01/08/2023,"4,083.33"
Policy & Governance,Governance & Legal Services,Supplies & Services,Legal Expenses,NO 5 CHAMBERS LIMITED,02/08/2023,"3,166.67"
Policy & Governance,Governance & Legal Services,Supplies & Services,Miscellaneous Insurance,A J. G INSURANCE BROKERS LTD ,03/08/2023,"21,293.44"
Policy & Governance,Governance & Legal Services,Supplies & Services,Miscellaneous Insurance,A J. G INSURANCE BROKERS LTD ,03/08/2023,"43,527.71"
Policy & Governance,Governance & Legal Services,Supplies & Services,Miscellaneous Insurance,A J. G INSURANCE BROKERS LTD ,09/08/2023,560.00
Policy & Governance,Governance & Legal Services,Supplies & Services,Miscellaneous Insurance,A J. G INSURANCE BROKERS LTD ,09/08/2023,"9,182.56"
Policy & Governance,Governance & Legal Services,Supplies & Services,Miscellaneous Insurance,A J. G INSURANCE BROKERS LTD ,09/08/2023,"12,685.34"
Policy & Governance,Governance & Legal Services,Supplies & Services,Miscellaneous Insurance,A J. G INSURANCE BROKERS LTD ,09/08/2023,"10,640.00"
Policy & Governance,Governance & Legal Services,Supplies & Services,Miscellaneous Insurance,A J. G INSURANCE BROKERS LTD ,15/08/2023,"97,440.00"
Policy & Governance,Governance & Legal Services,Supplies & Services,Miscellaneous Insurance,A J. G INSURANCE BROKERS LTD ,22/08/2023,"227,334.28"
Policy & Governance,Governance & Legal Services,Supplies & Services,Miscellaneous Insurance,A J. G INSURANCE BROKERS LTD ,22/08/2023,"192,514.08"
Policy & Governance,Governance & Legal Services,Supplies & Services,Miscellaneous Insurance,A J. G INSURANCE BROKERS LTD ,22/08/2023,"522,795.84"
Policy & Governance,Organisational Development & Delivery,Employees,Staff Training,S W LTD,10/08/2023,600.00
Policy & Governance,Organisational Development & Delivery,Employees,Staff Training,Intensive Interaction Institute,05/08/2023,"2,650.00"
Policy & Governance,Organisational Development & Delivery,Employees,Staff Training,SHROPSHIRE COUNCIL,23/08/2023,283.50
Policy & Governance,Organisational Development & Delivery,Employees,Staff Training,West Midlands Employers,09/08/2023,350.00
Policy & Governance,Organisational Development & Delivery,Employees,Staff Training,West Midlands Employers,09/08/2023,350.00
Prosperity & Investment,BiT,Premises-Related Expenditure,Specific Works,AGS Tech Limited,01/08/2023,200.00
Prosperity & Investment,BiT,Employees,Staff Training,CIPFA BUSINESS LTD,31/08/2023,"1,645.00"
Prosperity & Investment,BiT,Employees,Course Fees,NBS,18/08/2023,"23,115.00"
Prosperity & Investment,BiT,Supplies & Services,Miscellaneous Insurance,A J. G INSURANCE BROKERS LTD ,11/08/2023,610.90
Prosperity & Investment,BiT,Supplies & Services,Computer Software (Maint),CONCERTO SUPPORT SERVICES LTD,11/08/2023,"28,443.00"
Prosperity & Investment,BiT,Supplies & Services,Complaints,GRANVILLE CONSTRUCTION & MAINTENANCE LTD,01/08/2023,"1,540.00"
Prosperity & Investment,BiT,Supplies & Services,Complaints,GRANVILLE CONSTRUCTION & MAINTENANCE LTD,01/08/2023,"2,121.00"
Prosperity & Investment,BiT,Supplies & Services,Complaints,GRANVILLE CONSTRUCTION & MAINTENANCE LTD,01/08/2023,568.79
Prosperity & Investment,BiT,Supplies & Services,Equipment - Purchase,T Reuters,14/08/2023,134.00
Prosperity & Investment,BiT,Supplies & Services,Equipment - Purchase,T Reuters,21/08/2023,144.00
Prosperity & Investment,BiT,Supplies & Services,Equipment - Purchase,T Reuters,18/08/2023,144.00
Prosperity & Investment,BiT,Premises-Related Expenditure,R&M -Buildings DLO Charge,ASLES LTD,11/08/2023,364.70
Prosperity & Investment,BiT,Premises-Related Expenditure,R&M -Buildings DLO Charge,Belvidere Lifts Ltd,11/08/2023,160.00
Prosperity & Investment,BiT,Premises-Related Expenditure,R&M -Buildings DLO Charge,B INDUSTRIAL SERVICES,01/08/2023,163.45
Prosperity & Investment,BiT,Premises-Related Expenditure,R&M -Buildings DLO Charge,Churches Fire Security Ltd,01/08/2023,496.55
Prosperity & Investment,BiT,Premises-Related Expenditure,R&M -Buildings DLO Charge,Churches Fire Security Ltd,11/08/2023,108.00
Prosperity & Investment,BiT,Premises-Related Expenditure,R&M -Buildings DLO Charge,Churches Fire Security Ltd,25/08/2023,120.00
Prosperity & Investment,BiT,Premises-Related Expenditure,R&M -Buildings DLO Charge,COOL SERVICES LTD,01/08/2023,154.00
Prosperity & Investment,BiT,Premises-Related Expenditure,R&M -Buildings DLO Charge,COOL SERVICES LTD,01/08/2023,254.72
Prosperity & Investment,BiT,Premises-Related Expenditure,R&M -Buildings DLO Charge,COOL SERVICES LTD,09/08/2023,154.00
Prosperity & Investment,BiT,Premises-Related Expenditure,R&M -Buildings DLO Charge,COOL SERVICES LTD,11/08/2023,154.00
Prosperity & Investment,BiT,Premises-Related Expenditure,R&M -Buildings DLO Charge,COOL SERVICES LTD,11/08/2023,420.00
Prosperity & Investment,BiT,Premises-Related Expenditure,R&M -Buildings DLO Charge,COOL SERVICES LTD,21/08/2023,382.00
Prosperity & Investment,BiT,Premises-Related Expenditure,R&M -Buildings DLO Charge,Cubic FM Ltd,18/08/2023,"1,357.00"
Prosperity & Investment,BiT,Premises-Related Expenditure,R&M -Buildings DLO Charge,Ductbusters Ltd,24/08/2023,"1,828.00"
Prosperity & Investment,BiT,Premises-Related Expenditure,R&M -Buildings DLO Charge,E Solutions Ltd,14/08/2023,380.00
Prosperity & Investment,BiT,Premises-Related Expenditure,R&M -Buildings DLO Charge,E Solutions Ltd,01/08/2023,660.00
Prosperity & Investment,BiT,Premises-Related Expenditure,R&M -Buildings DLO Charge,E Solutions Ltd,01/08/2023,380.00
Prosperity & Investment,BiT,Premises-Related Expenditure,R&M -Buildings DLO Charge,GRANVILLE CONSTRUCTION & MAINTENANCE LTD,03/08/2023,167.18
Prosperity & Investment,BiT,Premises-Related Expenditure,R&M -Buildings DLO Charge,GRANVILLE CONSTRUCTION & MAINTENANCE LTD,10/08/2023,194.00
Prosperity & Investment,BiT,Premises-Related Expenditure,R&M -Buildings DLO Charge,GRANVILLE CONSTRUCTION & MAINTENANCE LTD,10/08/2023,116.40
Prosperity & Investment,BiT,Premises-Related Expenditure,R&M -Buildings DLO Charge,GRANVILLE CONSTRUCTION & MAINTENANCE LTD,02/08/2023,130.41
Prosperity & Investment,BiT,Premises-Related Expenditure,R&M -Buildings DLO Charge,GRANVILLE CONSTRUCTION & MAINTENANCE LTD,02/08/2023,183.08
Prosperity & Investment,BiT,Premises-Related Expenditure,R&M -Buildings DLO Charge,GRANVILLE CONSTRUCTION & MAINTENANCE LTD,09/08/2023,829.31
Prosperity & Investment,BiT,Premises-Related Expenditure,R&M -Buildings DLO Charge,GRANVILLE CONSTRUCTION & MAINTENANCE LTD,11/08/2023,192.37
Prosperity & Investment,BiT,Premises-Related Expenditure,R&M -Buildings DLO Charge,GRANVILLE CONSTRUCTION & MAINTENANCE LTD,18/08/2023,168.00
Prosperity & Investment,BiT,Premises-Related Expenditure,R&M -Buildings DLO Charge,Heightsafe Systems Ltd,11/08/2023,295.00
Prosperity & Investment,BiT,Premises-Related Expenditure,R&M -Buildings DLO Charge,Heightsafe Systems Ltd,25/08/2023,295.00
Prosperity & Investment,BiT,Premises-Related Expenditure,R&M -Buildings DLO Charge,HYDRO-TECH ENVIRONMENTAL LLP,01/08/2023,160.00
Prosperity & Investment,BiT,Premises-Related Expenditure,R&M -Buildings DLO Charge,HYDRO-TECH ENVIRONMENTAL LLP,01/08/2023,510.00
Prosperity & Investment,BiT,Premises-Related Expenditure,R&M -Buildings DLO Charge,JCE & SONS LTD,24/08/2023,376.90
Prosperity & Investment,BiT,Premises-Related Expenditure,R&M -Buildings DLO Charge,JCE & SONS LTD,01/08/2023,577.20
Prosperity & Investment,BiT,Premises-Related Expenditure,R&M -Buildings DLO Charge,JCE & SONS LTD,01/08/2023,140.06
Prosperity & Investment,BiT,Premises-Related Expenditure,R&M -Buildings DLO Charge,JCE & SONS LTD,02/08/2023,370.00
Prosperity & Investment,BiT,Premises-Related Expenditure,R&M -Buildings DLO Charge,JCE & SONS LTD,09/08/2023,235.50
Prosperity & Investment,BiT,Premises-Related Expenditure,R&M -Buildings DLO Charge,JCE & SONS LTD,21/08/2023,144.94
Prosperity & Investment,BiT,Premises-Related Expenditure,R&M -Buildings DLO Charge,JCE & SONS LTD,21/08/2023,179.52
Prosperity & Investment,BiT,Premises-Related Expenditure,R&M -Buildings DLO Charge,JCE & SONS LTD,21/08/2023,310.86
Prosperity & Investment,BiT,Premises-Related Expenditure,R&M -Buildings DLO Charge,O DELTA LTD,18/08/2023,759.00
Prosperity & Investment,BiT,Premises-Related Expenditure,R&M -Buildings DLO Charge,Pumpforce Ltd,01/08/2023,451.00
Prosperity & Investment,BiT,Premises-Related Expenditure,R&M -Buildings DLO Charge,R Maintenance Services Ltd,18/08/2023,791.76
Prosperity & Investment,BiT,Premises-Related Expenditure,R&M -Buildings DLO Charge,Security Wise Ltd,14/08/2023,"1,191.00"
Prosperity & Investment,BiT,Premises-Related Expenditure,R&M -Buildings DLO Charge,Security Wise Ltd,04/08/2023,179.50
Prosperity & Investment,BiT,Premises-Related Expenditure,R&M -Buildings DLO Charge,Security Wise Ltd,04/08/2023,195.00
Prosperity & Investment,BiT,Premises-Related Expenditure,R&M -Buildings DLO Charge,Security Wise Ltd,04/08/2023,268.00
Prosperity & Investment,BiT,Premises-Related Expenditure,R&M -Buildings DLO Charge,Security Wise Ltd,04/08/2023,230.00
Prosperity & Investment,BiT,Premises-Related Expenditure,R&M -Buildings DLO Charge,Security Wise Ltd,04/08/2023,259.00
Prosperity & Investment,BiT,Premises-Related Expenditure,R&M -Buildings DLO Charge,Security Wise Ltd,04/08/2023,146.00
Prosperity & Investment,BiT,Premises-Related Expenditure,R&M -Buildings DLO Charge,Security Wise Ltd,04/08/2023,102.00
Prosperity & Investment,BiT,Premises-Related Expenditure,R&M -Buildings DLO Charge,Security Wise Ltd,04/08/2023,180.00
Prosperity & Investment,BiT,Premises-Related Expenditure,R&M -Buildings DLO Charge,Security Wise Ltd,04/08/2023,217.00
Prosperity & Investment,BiT,Premises-Related Expenditure,R&M -Buildings DLO Charge,Security Wise Ltd,04/08/2023,201.00
Prosperity & Investment,BiT,Premises-Related Expenditure,R&M -Buildings DLO Charge,Security Wise Ltd,04/08/2023,193.00
Prosperity & Investment,BiT,Premises-Related Expenditure,R&M -Buildings DLO Charge,Security Wise Ltd,01/08/2023,165.00
Prosperity & Investment,BiT,Premises-Related Expenditure,R&M -Buildings DLO Charge,Security Wise Ltd,11/08/2023,465.00
Prosperity & Investment,BiT,Premises-Related Expenditure,R&M -Buildings DLO Charge,SKIPS TELFORD LTD,01/08/2023,200.00
Prosperity & Investment,BiT,Premises-Related Expenditure,R&M -Buildings DLO Charge,SKIPS TELFORD LTD,31/08/2023,220.00
Prosperity & Investment,BiT,Premises-Related Expenditure,R&M -Buildings DLO Charge,TAYLORS MECHANICAL H & P SERVICES LTD,01/08/2023,479.07
Prosperity & Investment,BiT,Premises-Related Expenditure,R&M -Buildings DLO Charge,TAYLORS MECHANICAL H & P SERVICES LTD,01/08/2023,360.00
Prosperity & Investment,BiT,Premises-Related Expenditure,R&M -Buildings DLO Charge,TAYLORS MECHANICAL H & P SERVICES LTD,01/08/2023,240.00
Prosperity & Investment,BiT,Premises-Related Expenditure,R&M -Buildings DLO Charge,TAYLORS MECHANICAL H & P SERVICES LTD,01/08/2023,120.00
Prosperity & Investment,BiT,Premises-Related Expenditure,R&M -Buildings DLO Charge,TAYLORS MECHANICAL H & P SERVICES LTD,01/08/2023,300.00
Prosperity & Investment,BiT,Premises-Related Expenditure,R&M -Buildings DLO Charge,TAYLORS MECHANICAL H & P SERVICES LTD,01/08/2023,240.00
Prosperity & Investment,BiT,Premises-Related Expenditure,R&M -Buildings DLO Charge,TAYLORS MECHANICAL H & P SERVICES LTD,01/08/2023,180.00
Prosperity & Investment,BiT,Premises-Related Expenditure,R&M -Buildings DLO Charge,TAYLORS MECHANICAL H & P SERVICES LTD,01/08/2023,105.00
Prosperity & Investment,BiT,Premises-Related Expenditure,R&M -Buildings DLO Charge,TAYLORS MECHANICAL H & P SERVICES LTD,01/08/2023,186.80
Prosperity & Investment,BiT,Premises-Related Expenditure,R&M -Buildings DLO Charge,TAYLORS MECHANICAL H & P SERVICES LTD,01/08/2023,607.50
Prosperity & Investment,BiT,Premises-Related Expenditure,R&M -Buildings DLO Charge,TAYLORS MECHANICAL H & P SERVICES LTD,01/08/2023,427.50
Prosperity & Investment,BiT,Premises-Related Expenditure,R&M -Buildings DLO Charge,TAYLORS MECHANICAL H & P SERVICES LTD,01/08/2023,112.50
Prosperity & Investment,BiT,Premises-Related Expenditure,R&M -Buildings DLO Charge,TAYLORS MECHANICAL H & P SERVICES LTD,01/08/2023,945.00
Prosperity & Investment,BiT,Premises-Related Expenditure,R&M -Buildings DLO Charge,TAYLORS MECHANICAL H & P SERVICES LTD,01/08/2023,292.50
Prosperity & Investment,BiT,Premises-Related Expenditure,R&M -Buildings DLO Charge,TAYLORS MECHANICAL H & P SERVICES LTD,01/08/2023,517.50
Prosperity & Investment,BiT,Premises-Related Expenditure,R&M -Buildings DLO Charge,TAYLORS MECHANICAL H & P SERVICES LTD,21/08/2023,183.38
Prosperity & Investment,BiT,Premises-Related Expenditure,R&M -Buildings DLO Charge,TAYLORS MECHANICAL H & P SERVICES LTD,21/08/2023,290.00
Prosperity & Investment,BiT,Premises-Related Expenditure,R&M -Buildings DLO Charge,TAYLORS MECHANICAL H & P SERVICES LTD,21/08/2023,394.04
Prosperity & Investment,BiT,Premises-Related Expenditure,R&M -Buildings DLO Charge,TAYLORS MECHANICAL H & P SERVICES LTD,21/08/2023,271.63
Prosperity & Investment,BiT,Premises-Related Expenditure,R&M -Buildings DLO Charge,TAYLORS MECHANICAL H & P SERVICES LTD,21/08/2023,298.26
Prosperity & Investment,BiT,Premises-Related Expenditure,R&M -Buildings DLO Charge,TAYLORS MECHANICAL H & P SERVICES LTD,21/08/2023,"1,552.50"
Prosperity & Investment,BiT,Premises-Related Expenditure,R&M -Buildings DLO Charge,TAYLORS MECHANICAL H & P SERVICES LTD,21/08/2023,150.00
Prosperity & Investment,BiT,Premises-Related Expenditure,R&M -Buildings DLO Charge,TAYLORS MECHANICAL H & P SERVICES LTD,21/08/2023,549.84
Prosperity & Investment,BiT,Premises-Related Expenditure,R&M -Buildings DLO Charge,TAYLORS MECHANICAL H & P SERVICES LTD,21/08/2023,304.56
Prosperity & Investment,BiT,Premises-Related Expenditure,R&M -Buildings DLO Charge,WREKIN DRAIN SERVICES LTD,01/08/2023,125.00
Prosperity & Investment,BiT,Premises-Related Expenditure,R&M -Buildings DLO Charge,WREKIN DRAIN SERVICES LTD,01/08/2023,201.66
Prosperity & Investment,BiT,Premises-Related Expenditure,R&M -Buildings DLO Charge,WREKIN DRAIN SERVICES LTD,01/08/2023,201.66
Prosperity & Investment,BiT,Supplies & Services,Security Services,BUSINESS WATCH GUARDING LIMITED,25/08/2023,-509.00
Prosperity & Investment,BiT,Premises-Related Expenditure,R&M -Buildings DLO Charge,POWERGUARDS INC RAMPING SYSTEMS,14/08/2023,"2,421.00"
Prosperity & Investment,BiT,Premises-Related Expenditure,R&M -Buildings DLO Charge,POWERGUARDS INC RAMPING SYSTEMS,14/08/2023,132.00
Prosperity & Investment,BiT,Premises-Related Expenditure,R&M -Buildings DLO Charge,SKIPS TELFORD LTD,31/08/2023,250.00
Prosperity & Investment,BiT,Premises-Related Expenditure,R&M -Buildings DLO Charge,Belvidere Lifts Ltd,01/08/2023,150.00
Prosperity & Investment,BiT,Premises-Related Expenditure,Electricity,BRITISH GAS BUSINESS ,31/08/2023,832.01
Prosperity & Investment,BiT,Premises-Related Expenditure,Service Contracts,Churches Fire Security Ltd,11/08/2023,126.00
Prosperity & Investment,BiT,Premises-Related Expenditure,Service Contracts,O DELTA LTD,14/08/2023,125.00
Prosperity & Investment,BiT,Premises-Related Expenditure,Service Contracts,O DELTA LTD,11/08/2023,125.00
Prosperity & Investment,BiT,Premises-Related Expenditure,Service Contracts,PP ELECTRICAL SERVICES Ltd,14/08/2023,220.00
Prosperity & Investment,BiT,Premises-Related Expenditure,Service Contracts,R Maintenance Services Ltd,21/08/2023,435.00
Prosperity & Investment,BiT,Premises-Related Expenditure,Service Contracts,Security Wise Ltd,04/08/2023,195.00
Prosperity & Investment,BiT,Premises-Related Expenditure,R&M -Buildings DLO Charge,Security Wise Ltd,04/08/2023,140.00
Prosperity & Investment,BiT,Premises-Related Expenditure,R&M -Buildings DLO Charge,Security Wise Ltd,04/08/2023,200.00
Prosperity & Investment,BiT,Premises-Related Expenditure,R&M -Buildings DLO Charge,Security Wise Ltd,09/08/2023,415.00
Prosperity & Investment,BiT,Premises-Related Expenditure,Service Contracts,Security Wise Ltd,09/08/2023,150.00
Prosperity & Investment,BiT,Premises-Related Expenditure,R&M -Buildings DLO Charge,SKIPS TELFORD LTD,24/08/2023,220.00
Prosperity & Investment,BiT,Premises-Related Expenditure,R&M -Buildings DLO Charge,SKIPS TELFORD LTD,01/08/2023,220.00
Prosperity & Investment,BiT,Premises-Related Expenditure,Service Contracts,TAYLORS MECHANICAL H & P SERVICES LTD,21/08/2023,240.00
Prosperity & Investment,BiT,Premises-Related Expenditure,R&M -Buildings DLO Charge,TAYLORS MECHANICAL H & P SERVICES LTD,21/08/2023,111.00
Prosperity & Investment,BiT,Premises-Related Expenditure,R&M -Buildings DLO Charge,TAYLORS MECHANICAL H & P SERVICES LTD,21/08/2023,"1,210.66"
Prosperity & Investment,BiT,Premises-Related Expenditure,Electricity,West Mercia Energy (WME),24/08/2023,122.92
Prosperity & Investment,BiT,Premises-Related Expenditure,Electricity,West Mercia Energy (WME),24/08/2023,157.04
Prosperity & Investment,BiT,Premises-Related Expenditure,Electricity,West Mercia Energy (WME),24/08/2023,372.03
Prosperity & Investment,BiT,Premises-Related Expenditure,Electricity,West Mercia Energy (WME),24/08/2023,"1,917.97"
Prosperity & Investment,BiT,Premises-Related Expenditure,Electricity,West Mercia Energy (WME),24/08/2023,"2,345.69"
Prosperity & Investment,BiT,Premises-Related Expenditure,Electricity,West Mercia Energy (WME),24/08/2023,230.22
Prosperity & Investment,BiT,Premises-Related Expenditure,Electricity,West Mercia Energy (WME),24/08/2023,147.39
Prosperity & Investment,BiT,Premises-Related Expenditure,Electricity,West Mercia Energy (WME),24/08/2023,141.97
Prosperity & Investment,BiT,Premises-Related Expenditure,Gas,West Mercia Energy (WME),24/08/2023,-166.34
Prosperity & Investment,BiT,Premises-Related Expenditure,Gas,West Mercia Energy (WME),24/08/2023,948.52
Prosperity & Investment,BiT,Premises-Related Expenditure,Gas,West Mercia Energy (WME),24/08/2023,"2,543.92"
Prosperity & Investment,BiT,Premises-Related Expenditure,Electricity,West Mercia Energy (WME),24/08/2023,"2,030.24"
Prosperity & Investment,BiT,Premises-Related Expenditure,Electricity,West Mercia Energy (WME),24/08/2023,187.63
Prosperity & Investment,BiT,Premises-Related Expenditure,Electricity,West Mercia Energy (WME),24/08/2023,133.27
Prosperity & Investment,BiT,Premises-Related Expenditure,Electricity,West Mercia Energy (WME),24/08/2023,149.75
Prosperity & Investment,BiT,Premises-Related Expenditure,Electricity,West Mercia Energy (WME),24/08/2023,"1,239.84"
Prosperity & Investment,BiT,Premises-Related Expenditure,Gas,West Mercia Energy (WME),24/08/2023,160.05
Prosperity & Investment,BiT,Supplies & Services,Equipment - Hire,Culligan LTD,24/08/2023,129.92
Prosperity & Investment,BiT,Premises-Related Expenditure,R&M -Buildings DLO Charge,B INDUSTRIAL SERVICES,01/08/2023,107.93
Prosperity & Investment,BiT,Premises-Related Expenditure,R&M -Buildings DLO Charge,B INDUSTRIAL SERVICES,01/08/2023,110.20
Prosperity & Investment,BiT,Premises-Related Expenditure,R&M -Buildings DLO Charge,B INDUSTRIAL SERVICES,01/08/2023,269.88
Prosperity & Investment,BiT,Premises-Related Expenditure,R&M -Buildings DLO Charge,B INDUSTRIAL SERVICES,01/08/2023,183.08
Prosperity & Investment,BiT,Premises-Related Expenditure,R&M -Buildings DLO Charge,B INDUSTRIAL SERVICES,01/08/2023,152.20
Prosperity & Investment,BiT,Premises-Related Expenditure,R&M -Buildings DLO Charge,B INDUSTRIAL SERVICES,01/08/2023,124.88
Prosperity & Investment,BiT,Premises-Related Expenditure,R&M -Buildings DLO Charge,B INDUSTRIAL SERVICES,01/08/2023,117.07
Prosperity & Investment,BiT,Premises-Related Expenditure,R&M -Buildings DLO Charge,B INDUSTRIAL SERVICES,01/08/2023,110.25
Prosperity & Investment,BiT,Premises-Related Expenditure,R&M -Buildings DLO Charge,B INDUSTRIAL SERVICES,01/08/2023,129.25
Prosperity & Investment,BiT,Premises-Related Expenditure,R&M -Buildings DLO Charge,B INDUSTRIAL SERVICES,01/08/2023,110.25
Prosperity & Investment,BiT,Premises-Related Expenditure,R&M -Buildings DLO Charge,B INDUSTRIAL SERVICES,01/08/2023,206.34
Prosperity & Investment,BiT,Premises-Related Expenditure,R&M -Buildings DLO Charge,B INDUSTRIAL SERVICES,01/08/2023,343.34
Prosperity & Investment,BiT,Premises-Related Expenditure,R&M -Buildings DLO Charge,B INDUSTRIAL SERVICES,01/08/2023,130.06
Prosperity & Investment,BiT,Premises-Related Expenditure,R&M -Buildings DLO Charge,B INDUSTRIAL SERVICES,01/08/2023,175.09
Prosperity & Investment,BiT,Premises-Related Expenditure,R&M -Buildings DLO Charge,B INDUSTRIAL SERVICES,01/08/2023,465.19
Prosperity & Investment,BiT,Premises-Related Expenditure,R&M -Buildings DLO Charge,CALTEL CATERING & LAUNDRY EQUIPMENT LLP,31/08/2023,"4,002.00"
Prosperity & Investment,BiT,Premises-Related Expenditure,R&M -Buildings DLO Charge,COOL SERVICES LTD,14/08/2023,892.53
Prosperity & Investment,BiT,Premises-Related Expenditure,R&M -Buildings DLO Charge,COOL SERVICES LTD,01/08/2023,225.43
Prosperity & Investment,BiT,Premises-Related Expenditure,Service Contracts,Ductbusters Ltd,31/08/2023,400.00
Prosperity & Investment,BiT,Premises-Related Expenditure,Service Contracts,Ductbusters Ltd,21/08/2023,400.00
Prosperity & Investment,BiT,Premises-Related Expenditure,Service Contracts,Ductbusters Ltd,21/08/2023,400.00
Prosperity & Investment,BiT,Premises-Related Expenditure,Service Contracts,Ductbusters Ltd,21/08/2023,400.00
Prosperity & Investment,BiT,Premises-Related Expenditure,R&M -Buildings DLO Charge,GRANVILLE CONSTRUCTION & MAINTENANCE LTD,24/08/2023,260.00
Prosperity & Investment,BiT,Premises-Related Expenditure,R&M -Buildings DLO Charge,GRANVILLE CONSTRUCTION & MAINTENANCE LTD,11/08/2023,398.98
Prosperity & Investment,BiT,Premises-Related Expenditure,R&M -Buildings DLO Charge,JCE & SONS LTD,01/08/2023,128.00
Prosperity & Investment,BiT,Premises-Related Expenditure,R&M -Buildings DLO Charge,JCE & SONS LTD,01/08/2023,130.74
Prosperity & Investment,BiT,Premises-Related Expenditure,R&M -Buildings DLO Charge,JCE & SONS LTD,21/08/2023,193.90
Prosperity & Investment,BiT,Premises-Related Expenditure,R&M -Buildings DLO Charge,TAYLORS MECHANICAL H & P SERVICES LTD,21/08/2023,358.17
Prosperity & Investment,BiT,Premises-Related Expenditure,Service Contracts,TAYLORS MECHANICAL H & P SERVICES LTD,21/08/2023,240.00
Prosperity & Investment,BiT,Premises-Related Expenditure,Service Contracts,TAYLORS MECHANICAL H & P SERVICES LTD,21/08/2023,300.00
Prosperity & Investment,BiT,Premises-Related Expenditure,R&M -Buildings DLO Charge,TAYLORS MECHANICAL H & P SERVICES LTD,21/08/2023,167.83
Prosperity & Investment,BiT,Premises-Related Expenditure,R&M -Buildings DLO Charge,TAYLORS MECHANICAL H & P SERVICES LTD,21/08/2023,925.29
Prosperity & Investment,BiT,Premises-Related Expenditure,R&M -Buildings DLO Charge,TAYLORS MECHANICAL H & P SERVICES LTD,01/08/2023,111.00
Prosperity & Investment,BiT,Premises-Related Expenditure,R&M -Buildings DLO Charge,TAYLORS MECHANICAL H & P SERVICES LTD,11/08/2023,154.94
Prosperity & Investment,BiT,Premises-Related Expenditure,R&M -Buildings DLO Charge,WREKIN DRAIN SERVICES LTD,01/08/2023,375.00
Prosperity & Investment,BiT,Premises-Related Expenditure,R&M -Buildings DLO Charge,WREKIN DRAIN SERVICES LTD,01/08/2023,125.00
Prosperity & Investment,BiT,Premises-Related Expenditure,R&M -Buildings DLO Charge,WREKIN DRAIN SERVICES LTD,01/08/2023,125.00
Prosperity & Investment,BiT,Premises-Related Expenditure,R&M -Buildings DLO Charge,A1 Glass & Glazing Limited,10/08/2023,325.00
Prosperity & Investment,BiT,Premises-Related Expenditure,R&M -Buildings DLO Charge,A1 Glass & Glazing Limited,09/08/2023,190.00
Prosperity & Investment,BiT,Premises-Related Expenditure,R&M -Buildings DLO Charge,A1 Glass & Glazing Limited,18/08/2023,295.00
